Workbook

Sheet Interfaz
C5: POBLACIÓN ASIGNADA SEGÚN CENSOS INEI - RENIEC - PN - CNV - 2012
C10: RED INTEGRADA DE SALUD HUAURA OYÓN
A22: Elaboración: Área de Estadística - RIS Huaura Oyón.
A23: NOTA: LA POBLACION ESTIMADA DE EDADES SIMPLES Y GRUPOS DE EDAD DE DISTRITOS, CORRESPONDEN A CIFRAS REFERENCIALES HASTA OBTENER LAS CIFRAS DE LAS PROYECCIONES DEL INEI
A26: OFICINA DE GESTION DE LA INFORMACIÓN - MINISTERIO DE SALUD
R27: Versión1.030

Sheet Poblacion
C1: 1 | D1: 2 | E1: 3 | F1: 4 | G1: 5 | H1: 6 | I1: 7 | J1: 8 | K1: 9 | L1: 10 | M1: 11 | N1: 12 | O1: 13 | P1: 14 | Q1: 15 | R1: 16 | S1: 17 | T1: 18 | U1: 19 | V1: 20 | W1: 21 | X1: 22 | Y1: 23 | Z1: 24 | AA1: 25 | AB1: 26 | AC1: 27 | AD1: 28 | AE1: 29 | AF1: 30 | AG1: 31 | AH1: 32 | AI1: 33 | AJ1: 34 | AK1: 35 | AL1: 36 | AM1: 37 | AN1: 38 | AO1: 39 | AP1: 40 | AQ1: 41 | AR1: 42 | AS1: 43 | AT1: 44 | AU1: 45 | AV1: 46 | AW1: 47 | AX1: 48 | AY1: 49 | AZ1: 50 | BA1: 51 | BB1: 52 | BC1: 53 | BD1: 54 | BE1: 55 | BF1: 56 | BG1: 57 | BH1: 58 | BI1: 59 | BJ1: 60 | BK1: 61 | BL1: 62 | BM1: 63 | BN1: 64 | BO1: 65 | BP1: 66 | BQ1: 67 | BR1: 68 | BS1: 69 | BT1: 70 | BU1: 71 | BV1: 72 | BW1: 73 | BX1: 74 | BY1: 75 | BZ1: 76 | CA1: 77 | CB1: 78 | CC1: 79 | CD1: 80 | CE1: 81 | CF1: 82 | CG1: 83 | CH1: 84 | CI1: 85 | CJ1: 86 | CK1: 87 | CL1: 88 | CM1: 89 | CN1: 90 | CO1: 91 | CP1: 92 | CQ1: 93 | CR1: 94 | CV1: 77 | CW1: 78 | CX1: 79 | CY1: 80 | CZ1: 81 | DA1: 82 | DB1: 83 | DC1: 84 | DD1: 85 | DE1: 86 | DF1: 87 | DG1: 88 | DH1: 89 | DI1: 90 | DJ1: 91 | DK1: 92 | DL1: 93 | DM1: 94 | DN1: 95 | DO1: 96 | DP1: 97 | DQ1: 98 | DR1: 99 | DS1: 106 | DT1: 107 | DU1: 108 | DV1: 109 | DW1: 110 | DX1: 111
AE2: POBLACIÓN ESTIMADA POR GRUPOS DE EDAD, SEGÚN PROVINCIAS DISTRITOS Y ESTABLECIMIENTOS DE SALUD
AE3: RED INTEGRADA DE SALUD HUAURA OYON - AÑO 2012 | CL3: MAS GRUPOS DE EDAD
AE4: EDADES PUNTUALES Y GRUPOS DE EDAD
C5: N° | E5: DIRECCION DE SALUD | F5: TOTAL GENERAL | H5: TOTAL MASCULINO | I5: TOTAL FEMENINO | K5: EDAD | M5: EDAD | O5: EDAD | Q5: EDAD | S5: EDAD | U5: EDAD | W5: EDAD | Y5: EDAD | AA5: EDAD | AC5: EDAD | AE5: EDAD | AG5: EDAD | AI5: EDAD | AK5: EDAD | AM5: EDAD | AO5: EDAD | AQ5: EDAD | AS5: EDAD | AU5: EDAD | AW5: EDAD | AY5: EDAD | BA5: EDAD | BC5: EDAD | BE5: EDAD | BG5: EDAD | BI5: EDAD | BK5: EDAD | BM5: EDAD | BO5: EDAD | BQ5: EDAD | BS5: EDAD | BU5: EDAD | BW5: EDAD | BY5: NACIMIENTOS | BZ5: 28 DIAS | CA5: POBLACION FEMENINA TOTAL | CB5: POBLACION FEMENINA | CG5: menor de 1 Año | CH5: Pre escolar (1-4) | CI5: Niño (0 - 11) | CJ5: Escolar (05 - 17) | CK5: Adolescente (12 - 17) | CL5: Adulto Joven (18 - 29) | CM5: Adulto (30-59) | CN5: Adu.Mayor (60 a MAS) | CP5: Escolar (05 - 09) | CQ5: Adolescente (10 - 19) | CR5: Adulto (20-59)
A6: UBIGEO | E6: PROVINCIA | K6: 0 | M6: 1 | O6: 2 | Q6: 3 | S6: 4 | U6: 5 | W6: 6 | Y6: 7 | AA6: 8 | AC6: 9 | AE6: 10 | AG6: 11 | AI6: 12 | AK6: 13 | AM6: 14 | AO6: 15 | AQ6: 16 | AS6: 17 | AU6: 18 | AW6: 19 | AY6: 20 - 24 | BA6: 25 - 29 | BC6: 30 - 34 | BE6: 35 - 39 | BG6: 40 - 44 | BI6: 45 - 49 | BK6: 50 - 54 | BM6: 55 - 59 | BO6: 60 - 64 | BQ6: 65 - 69 | BS6: 70- 74 | BU6: 75 - 79 | BW6: 80 - + | CB6: 10-14 | CC6: 15-19 | CD6: 20-49 | CE6: GESTANTE
B7: Microredes | D7: RENAES | E7: DISTRITO | K7: M | L7: F | M7: M | N7: F | O7: M | P7: F | Q7: M | R7: F | S7: M | T7: F | U7: M | V7: F | W7: M | X7: F | Y7: M | Z7: F | AA7: M | AB7: F | AC7: M | AD7: F | AE7: M | AF7: F | AG7: M | AH7: F | AI7: M | AJ7: F | AK7: M | AL7: F | AM7: M | AN7: F | AO7: M | AP7: F | AQ7: M | AR7: F | AS7: M | AT7: F | AU7: M | AV7: F | AW7: M | AX7: F | AY7: M | AZ7: F | BA7: M | BB7: F | BC7: M | BD7: F | BE7: M | BF7: F | BG7: M | BH7: F | BI7: M | BJ7: F | BK7: M | BL7: F | BM7: M | BN7: F | BO7: M | BP7: F | BQ7: M | BR7: F | BS7: M | BT7: F | BU7: M | BV7: F | BW7: M | BX7: F
A8: 150000 | C8: 1 | E8: RED HUAURA - OYON | F8: 236587 | H8: 117146.0531 | I8: 119440.9469 | K8: 2179.6503 | L8: 2222.3497 | M8: 2088.5427 | N8: 2129.4573 | O8: 2028.62955 | P8: 2068.37045 | Q8: 1998.4254 | R8: 2037.5746 | S8: 1990.503 | T8: 2029.497 | U8: 2007.3381 | V8: 2046.6619 | W8: 2038.53255 | X8: 2078.46745 | Y8: 2083.5912 | Z8: 2124.4088 | AA8: 2135.0868 | AB8: 2176.9132 | AC8: 2191.5339 | AD8: 2234.4661 | AE8: 2253.42765 | AF8: 2297.57235 | AG8: 2320.76805 | AH8: 2366.23195 | AI8: 2364.34125 | AJ8: 2410.65875 | AK8: 2372.26365 | AL8: 2418.73635 | AM8: 2350.47705 | AN8: 2396.52295 | AO8: 2331.66135 | AP8: 2377.33865 | AQ8: 2311.85535 | AR8: 2357.14465 | AS8: 2276.6997 | AT8: 2321.3003 | AU8: 2226.1944 | AV8: 2269.8056 | AW8: 2163.31035 | AX8: 2205.68965 | AY8: 9931.22355 | AZ8: 10125.77645 | BA8: 9075.60435 | BB8: 9253.39565 | BC8: 8745.3393 | BD8: 8916.6607 | BE8: 8043.2166 | BF8: 8200.7834 | BG8: 7164.8205 | BH8: 7305.1795 | BI8: 6581.5338 | BJ8: 6710.4662 | BK8: 5485.76685 | BL8: 5593.23315 | BM8: 4717.29405 | BN8: 4809.70595 | BO8: 3869.1021 | BP8: 3944.8979 | BQ8: 3217.4847 | BR8: 3280.5153 | BS8: 2763.9273 | BT8: 2818.0727 | BU8: 1939.50255 | BV8: 1977.49745 | BW8: 1898.4051 | BX8: 1935.5949 | BY8: 4437 | BZ8: 337 | CA8: 117007 | CB8: 11434 | CC8: 11152 | CD8: 49482 | CE8: 5499 | CG8: =SUM(K8:L8) -> 4402 | CH8: =SUM(M8:T8) -> 16371 | CI8: =SUM(K8:AH8) -> 51128 | CJ8: =SUM(U8:AT8) -> 58644 | CK8: =SUM(AI8:AT8) -> 28289 | CL8: =SUM(AU8:BB8) -> 47251 | CM8: =SUM(BC8:BN8) -> 82274 | CN8: =SUM(BO8:BX8) -> 27645 | CP8: =SUM(U8:AD8) -> 21117 | CQ8: =SUM(AE8:AX8) -> 46392 | CR8: =SUM(AY8:BN8) -> 120660
A9: 150800 | C9: 2 | D9: 150800 | E9: PROVINCIA HUAURA | F9: 213188 | H9: 105560.0382 | I9: 107627.9618 | K9: 1922.1723 | L9: 1959.8277 | M9: 1838.49195 | N9: 1874.50805 | O9: 1785.01575 | P9: 1819.98425 | Q9: 1756.7922 | R9: 1791.2078 | S9: 1750.8504 | T9: 1785.1496 | U9: 1765.20975 | V9: 1799.79025 | W9: 1794.4236 | X9: 1829.5764 | Y9: 1835.52105 | Z9: 1871.47895 | AA9: 1885.03605 | AB9: 1921.96395 | AC9: 1939.0074 | AD9: 1976.9926 | AE9: 1996.93995 | AF9: 2036.06005 | AG9: 2059.824 | AH9: 2100.176 | AI9: 2105.3778 | AJ9: 2146.6222 | AK9: 2122.2129 | AL9: 2163.7871 | AM9: 2115.2808 | AN9: 2156.7192 | AO9: 2111.3196 | AP9: 2152.6804 | AQ9: 2105.3778 | AR9: 2146.6222 | AS9: 2083.09605 | AT9: 2123.90395 | AU9: 2039.52285 | AV9: 2079.47715 | AW9: 1982.5806 | AX9: 2021.4194 | AY9: 9078.57525 | AZ9: 9256.42475 | BA9: 8175.42165 | BB9: 8335.57835 | BC9: 7872.38985 | BD9: 8026.61015 | BE9: 7187.5974 | BF9: 7328.4026 | BG9: 6512.70795 | BH9: 6640.29205 | BI9: 5960.6157 | BJ9: 6077.3843 | BK9: 5018.34525 | BL9: 5116.65475 | BM9: 4323.6498 | BN9: 4408.3502 | BO9: 3558.1479 | BP9: 3627.8521 | BQ9: 2901.08385 | BR9: 2957.91615 | BS9: 2501.99295 | BT9: 2551.00705 | BU9: 1734.0153 | BV9: 1767.9847 | BW9: 1741.44255 | BX9: 1775.55745 | BY9: 3909 | BZ9: 298 | CA9: 106064 | CB9: 10217 | CC9: 10192 | CD9: 45275 | CE9: 4845 | CG9: 3882 | CH9: 14402 | CI9: 45096 | CJ9: 52345 | CK9: 25533 | CL9: 42969 | CM9: 74473 | CN9: 25117 | CP9: 18619 | CQ9: 41849 | CR9: 109319
A10: 150801 | C10: 3 | D10: 150802 | E10: DISTRITO HUACHO | F10: 58105 | H10: 28770.69075 | I10: 29334.30925 | K10: 478.81005 | L10: 488.18995 | M10: 451.5768 | N10: 460.4232 | O10: 433.7514 | P10: 442.2486 | Q10: 423.35325 | R10: 431.64675 | S10: 420.38235 | T10: 428.61765 | U10: 423.35325 | V10: 431.64675 | W10: 431.27565 | X10: 439.72435 | Y10: 442.6641 | Z10: 451.3359 | AA10: 457.02345 | AB10: 465.97655 | AC10: 472.3731 | AD10: 481.6269 | AE10: 490.1985 | AF10: 499.8015 | AG10: 510.0045 | AH10: 519.9955 | AI10: 524.36385 | AJ10: 534.63615 | AK10: 530.30565 | AL10: 540.69435 | AM10: 529.8105 | AN10: 540.1895 | AO10: 530.30565 | AP10: 540.69435 | AQ10: 529.8105 | AR10: 540.1895 | AS10: 526.34445 | AT10: 536.65555 | AU10: 519.9075 | AV10: 530.0925 | AW10: 510.49965 | AX10: 520.50035 | AY10: 2400.98235 | AZ10: 2448.01765 | BA10: 2170.24245 | BB10: 2212.75755 | BC10: 2101.91175 | BD10: 2143.08825 | BE10: 1990.00785 | BF10: 2028.99215 | BG10: 1873.15245 | BH10: 1909.84755 | BI10: 1764.21945 | BJ10: 1798.78055 | BK10: 1591.4121 | BL10: 1622.5879 | BM10: 1348.29345 | BN10: 1374.70655 | BO10: 1085.86395 | BP10: 1107.13605 | BQ10: 899.68755 | BR10: 917.31245 | BS10: 778.3758 | BT10: 793.6242 | BU10: 561.99525 | BV10: 573.00475 | BW10: 568.4322 | BX10: 579.5678 | BY10: 973 | BZ10: 74 | CA10: 29821 | CB10: 2621 | CC10: 2607 | CD10: 12887 | CE10: 1207 | CG10: 967 | CH10: 3492 | CI10: 10976 | CJ10: 12921 | CK10: 6404 | CL10: 11313 | CM10: 21547 | CN10: 7865 | CP10: 4497 | CQ10: 10505 | CR10: 30779
B11: 00 | C11: 4 | D11: 7639 | E11: HOSPITAL DOCENTE HUACHO | F11: 45319 | H11: 22439.70285 | I11: 22879.29715 | K11: 373.3431 | L11: 380.6569 | M11: 352.05165 | N11: 358.94835 | O11: 338.18745 | P11: 344.81255 | Q11: 330.26505 | R11: 336.73495 | S11: 327.7893 | T11: 334.2107 | U11: 330.26505 | V11: 336.73495 | W11: 336.20685 | X11: 342.79315 | Y11: 345.11955 | Z11: 351.88045 | AA11: 356.508 | AB11: 363.492 | AC11: 368.3916 | AD11: 375.6084 | AE11: 382.2558 | AF11: 389.7442 | AG11: 397.60545 | AH11: 405.39455 | AI11: 408.9939 | AJ11: 417.0061 | AK11: 413.45025 | AL11: 421.54975 | AM11: 413.45025 | AN11: 421.54975 | AO11: 413.45025 | AP11: 421.54975 | AQ11: 413.45025 | AR11: 421.54975 | AS11: 410.47935 | AT11: 418.52065 | AU11: 405.52785 | AV11: 413.47215 | AW11: 398.1006 | AX11: 405.8994 | AY11: 1872.6573 | AZ11: 1909.3427 | BA11: 1692.91785 | BB11: 1726.08215 | BC11: 1639.44165 | BD11: 1671.55835 | BE11: 1552.29525 | BF11: 1582.70475 | BG11: 1461.18765 | BH11: 1489.81235 | BI11: 1376.02185 | BJ11: 1402.97815 | BK11: 1241.34105 | BL11: 1265.65895 | BM11: 1051.6986 | BN11: 1072.3014 | BO11: 847.20165 | BP11: 863.79835 | BQ11: 701.62755 | BR11: 715.37245 | BS11: 607.0539 | BT11: 618.9461 | BU11: 438.20775 | BV11: 446.79225 | BW11: 443.15925 | BX11: 451.84075 | BY11: 759 | BZ11: 58 | CA11: 23260 | CB11: 2044 | CC11: 2033 | CD11: 10052 | CE11: 941 | CG11: 754 | CH11: 2723 | CI11: 8559 | CJ11: 10077 | CK11: 4995 | CL11: 8824 | CM11: 16807 | CN11: 6134 | CP11: 3507 | CQ11: 8193 | CR11: 24008
B12: 02 | C12: 5 | D12: 5679 | E12: CENTRO SALUD MANZANARES | F12: 12786 | H12: 6330.9879 | I12: 6455.0121 | K12: 105.46695 | L12: 107.53305 | M12: 99.52515 | N12: 101.47485 | O12: 95.56395 | P12: 97.43605 | Q12: 93.0882 | R12: 94.9118 | S12: 92.59305 | T12: 94.40695 | U12: 93.0882 | V12: 94.9118 | W12: 95.0688 | X12: 96.9312 | Y12: 97.54455 | Z12: 99.45545 | AA12: 100.51545 | AB12: 102.48455 | AC12: 103.9815 | AD12: 106.0185 | AE12: 107.9427 | AF12: 110.0573 | AG12: 112.39905 | AH12: 114.60095 | AI12: 115.36995 | AJ12: 117.63005 | AK12: 116.8554 | AL12: 119.1446 | AM12: 116.36025 | AN12: 118.63975 | AO12: 116.8554 | AP12: 119.1446 | AQ12: 116.36025 | AR12: 118.63975 | AS12: 115.8651 | AT12: 118.1349 | AU12: 114.37965 | AV12: 116.62035 | AW12: 112.39905 | AX12: 114.60095 | AY12: 528.32505 | AZ12: 538.67495 | BA12: 477.3246 | BB12: 486.6754 | BC12: 462.4701 | BD12: 471.5299 | BE12: 437.7126 | BF12: 446.2874 | BG12: 411.9648 | BH12: 420.0352 | BI12: 388.1976 | BJ12: 395.8024 | BK12: 350.07105 | BL12: 356.92895 | BM12: 296.59485 | BN12: 302.40515 | BO12: 238.6623 | BP12: 243.3377 | BQ12: 198.06 | BR12: 201.94 | BS12: 171.3219 | BT12: 174.6781 | BU12: 123.7875 | BV12: 126.2125 | BW12: 125.27295 | BX12: 127.72705 | BY12: 214 | BZ12: 16 | CA12: 6561 | CB12: 577 | CC12: 574 | CD12: 2835 | CE12: 266 | CG12: 213 | CH12: 769 | CI12: 2417 | CJ12: 2844 | CK12: 1409 | CL12: 2489 | CM12: 4740 | CN12: 1731 | CP12: 990 | CQ12: 2312 | CR12: 6771
A13: 150802 | C13: 6 | D13: 150802 | E13: DISTRITO AMBAR | F13: 2809 | H13: 1390.87635 | I13: 1418.12365 | K13: 20.7963 | L13: 21.2037 | M13: 25.25265 | N13: 25.74735 | O13: 29.21385 | P13: 29.78615 | Q13: 32.18475 | R13: 32.81525 | S13: 34.16535 | T13: 34.83465 | U13: 35.6508 | V13: 36.3492 | W13: 36.6411 | X13: 37.3589 | Y13: 36.6411 | Z13: 37.3589 | AA13: 36.6411 | AB13: 37.3589 | AC13: 36.14595 | AD13: 36.85405 | AE13: 35.15565 | AF13: 35.84435 | AG13: 33.6702 | AH13: 34.3298 | AI13: 32.18475 | AJ13: 32.81525 | AK13: 30.20415 | AL13: 30.79585 | AM13: 27.7284 | AN13: 28.2716 | AO13: 25.7478 | AP13: 26.2522 | AQ13: 23.27205 | AR13: 23.72795 | AS13: 21.29145 | AT13: 21.70855 | AU13: 20.7963 | AV13: 21.2037 | AW13: 21.29145 | AX13: 21.70855 | AY13: 106.9524 | AZ13: 109.0476 | BA13: 86.1561 | BB13: 87.8439 | BC13: 89.127 | BD13: 90.873 | BE13: 79.224 | BF13: 80.776 | BG13: 67.83555 | BH13: 69.16445 | BI13: 77.2434 | BJ13: 78.7566 | BK13: 64.3695 | BL13: 65.6305 | BM13: 52.98105 | BN13: 54.01895 | BO13: 49.01985 | BP13: 49.98015 | BQ13: 44.06835 | BR13: 44.93165 | BS13: 33.17505 | BT13: 33.82495 | BU13: 21.7866 | BV13: 22.2134 | BW13: 24.26235 | BX13: 24.73765 | BY13: 43 | BZ13: 3 | CA13: 1310 | CB13: 144 | CC13: 106 | CD13: 486 | CE13: 53 | CG13: 42 | CH13: 244 | CI13: 792 | CJ13: 830 | CK13: 324 | CL13: 475 | CM13: 870 | CN13: 348 | CP13: 367 | CQ13: 548 | CR13: 1260
B14: 01 | C14: 7 | D14: 5680 | E14: CENTRO SALUD AMBAR | F14: 1683 | H14: 833.33745 | I14: 849.66255 | K14: 12.37875 | L14: 12.62125 | M14: 15.34965 | N14: 15.65035 | O14: 17.33025 | P14: 17.66975 | Q14: 19.31085 | R14: 19.68915 | S14: 20.30115 | T14: 20.69885 | U14: 21.29145 | V14: 21.70855 | W14: 21.7866 | X14: 22.2134 | Y14: 21.7866 | Z14: 22.2134 | AA14: 21.7866 | AB14: 22.2134 | AC14: 21.7866 | AD14: 22.2134 | AE14: 21.29145 | AF14: 21.70855 | AG14: 20.30115 | AH14: 20.69885 | AI14: 19.31085 | AJ14: 19.68915 | AK14: 18.32055 | AL14: 18.67945 | AM14: 16.8351 | AN14: 17.1649 | AO14: 15.34965 | AP14: 15.65035 | AQ14: 13.8642 | AR14: 14.1358 | AS14: 12.8739 | AT14: 13.1261 | AU14: 12.37875 | AV14: 12.62125 | AW14: 12.8739 | AX14: 13.1261 | AY14: 64.3695 | AZ14: 65.6305 | BA14: 51.4956 | BB14: 52.5044 | BC14: 53.4762 | BD14: 54.5238 | BE14: 47.5344 | BF14: 48.4656 | BG14: 40.6023 | BH14: 41.3977 | BI14: 46.5441 | BJ14: 47.4559 | BK14: 38.6217 | BL14: 39.3783 | BM14: 31.6896 | BN14: 32.3104 | BO14: 29.21385 | BP14: 29.78615 | BQ14: 26.24295 | BR14: 26.75705 | BS14: 19.806 | BT14: 20.194 | BU14: 12.8739 | BV14: 13.1261 | BW14: 14.35935 | BX14: 14.64065 | BY14: 26 | BZ14: 2 | CA14: 786 | CB14: 86 | CC14: 64 | CD14: 292 | CE14: 32 | CG14: 25 | CH14: 146 | CI14: 474 | CJ14: 498 | CK14: 195 | CL14: 285 | CM14: 522 | CN14: 207 | CP14: 219 | CQ14: 330 | CR14: 756
B15: 01 | C15: 8 | D15: 5681 | E15: PUESTO SALUD AYNACA | F15: 1126 | H15: 557.5389 | I15: 568.4611 | K15: 8.41755 | L15: 8.58245 | M15: 9.903 | N15: 10.097 | O15: 11.8836 | P15: 12.1164 | Q15: 12.8739 | R15: 13.1261 | S15: 13.8642 | T15: 14.1358 | U15: 14.35935 | V15: 14.64065 | W15: 14.8545 | X15: 15.1455 | Y15: 14.8545 | Z15: 15.1455 | AA15: 14.8545 | AB15: 15.1455 | AC15: 14.35935 | AD15: 14.64065 | AE15: 13.8642 | AF15: 14.1358 | AG15: 13.36905 | AH15: 13.63095 | AI15: 12.8739 | AJ15: 13.1261 | AK15: 11.8836 | AL15: 12.1164 | AM15: 10.8933 | AN15: 11.1067 | AO15: 10.39815 | AP15: 10.60185 | AQ15: 9.40785 | AR15: 9.59215 | AS15: 8.41755 | AT15: 8.58245 | AU15: 8.41755 | AV15: 8.58245 | AW15: 8.41755 | AX15: 8.58245 | AY15: 42.5829 | AZ15: 43.4171 | BA15: 34.6605 | BB15: 35.3395 | BC15: 35.6508 | BD15: 36.3492 | BE15: 31.6896 | BF15: 32.3104 | BG15: 27.23325 | BH15: 27.76675 | BI15: 30.6993 | BJ15: 31.3007 | BK15: 25.7478 | BL15: 26.2522 | BM15: 21.29145 | BN15: 21.70855 | BO15: 19.806 | BP15: 20.194 | BQ15: 17.8254 | BR15: 18.1746 | BS15: 13.36905 | BT15: 13.63095 | BU15: 8.9127 | BV15: 9.0873 | BW15: 9.903 | BX15: 10.097 | BY15: 17 | BZ15: 1 | CA15: 524 | CB15: 58 | CC15: 42 | CD15: 194 | CE15: 21 | CG15: 17 | CH15: 98 | CI15: 318 | CJ15: 332 | CK15: 129 | CL15: 190 | CM15: 348 | CN15: 141 | CP15: 148 | CQ15: 218 | CR15: 504
A16: 150803 | C16: 9 | D16: 150803 | E16: DISTRITO CARQUIN | F16: 6604 | H16: 3269.9706 | I16: 3334.0294 | K16: 62.88405 | L16: 64.11595 | M16: 60.4083 | N16: 61.5917 | O16: 58.4277 | P16: 59.5723 | Q16: 56.94225 | R16: 58.05775 | S16: 56.4471 | T16: 57.5529 | U16: 55.4568 | V16: 56.5432 | W16: 54.96165 | X16: 56.03835 | Y16: 54.4665 | Z16: 55.5335 | AA16: 54.4665 | AB16: 55.5335 | AC16: 54.4665 | AD16: 55.5335 | AE16: 54.96165 | AF16: 56.03835 | AG16: 55.4568 | AH16: 56.5432 | AI16: 55.95195 | AJ16: 57.04805 | AK16: 56.4471 | AL16: 57.5529 | AM16: 56.4471 | AN16: 57.5529 | AO16: 56.94225 | AP16: 58.05775 | AQ16: 57.4374 | AR16: 58.5626 | AS16: 57.93255 | AT16: 59.06745 | AU16: 58.4277 | AV16: 59.5723 | AW16: 59.418 | AX16: 60.582 | AY16: 304.51725 | AZ16: 310.48275 | BA16: 296.59485 | BB16: 302.40515 | BC16: 293.1288 | BD16: 298.8712 | BE16: 229.7496 | BF16: 234.2504 | BG16: 227.27385 | BH16: 231.72615 | BI16: 174.2928 | BJ16: 177.7072 | BK16: 155.97225 | BL16: 159.02775 | BM16: 125.7681 | BN16: 128.2319 | BO16: 97.0494 | BP16: 98.9506 | BQ16: 89.127 | BR16: 90.873 | BS16: 62.88405 | BT16: 64.11595 | BU16: 36.6411 | BV16: 37.3589 | BW16: 38.6217 | BX16: 39.3783 | BY16: 128 | BZ16: 10 | CA16: 2879 | CB16: 256 | CC16: 284 | CD16: 1224 | CE16: 158 | CG16: 127 | CH16: 469 | CI16: 1372 | CJ16: 1465 | CK16: 689 | CL16: 1452 | CM16: 2436 | CN16: 655 | CP16: 553 | CQ16: 1150 | CR16: 3650
B17: 02 | C17: 10 | D17: 5664 | E17: CENTRO SALUD CARQUIN | F17: 6604 | H17: 3269.9706 | I17: 3334.0294 | K17: 62.88405 | L17: 64.11595 | M17: 60.4083 | N17: 61.5917 | O17: 58.4277 | P17: 59.5723 | Q17: 56.94225 | R17: 58.05775 | S17: 56.4471 | T17: 57.5529 | U17: 55.4568 | V17: 56.5432 | W17: 54.96165 | X17: 56.03835 | Y17: 54.4665 | Z17: 55.5335 | AA17: 54.4665 | AB17: 55.5335 | AC17: 54.4665 | AD17: 55.5335 | AE17: 54.96165 | AF17: 56.03835 | AG17: 55.4568 | AH17: 56.5432 | AI17: 55.95195 | AJ17: 57.04805 | AK17: 56.4471 | AL17: 57.5529 | AM17: 56.4471 | AN17: 57.5529 | AO17: 56.94225 | AP17: 58.05775 | AQ17: 57.4374 | AR17: 58.5626 | AS17: 57.93255 | AT17: 59.06745 | AU17: 58.4277 | AV17: 59.5723 | AW17: 59.418 | AX17: 60.582 | AY17: 304.51725 | AZ17: 310.48275 | BA17: 296.59485 | BB17: 302.40515 | BC17: 293.1288 | BD17: 298.8712 | BE17: 229.7496 | BF17: 234.2504 | BG17: 227.27385 | BH17: 231.72615 | BI17: 174.2928 | BJ17: 177.7072 | BK17: 155.97225 | BL17: 159.02775 | BM17: 125.7681 | BN17: 128.2319 | BO17: 97.0494 | BP17: 98.9506 | BQ17: 89.127 | BR17: 90.873 | BS17: 62.88405 | BT17: 64.11595 | BU17: 36.6411 | BV17: 37.3589 | BW17: 38.6217 | BX17: 39.3783 | BY17: 128 | BZ17: 10 | CA17: 2879 | CB17: 256 | CC17: 284 | CD17: 1224 | CE17: 158 | CG17: 127 | CH17: 469 | CI17: 1372 | CJ17: 1465 | CK17: 689 | CL17: 1452 | CM17: 2436 | CN17: 655 | CP17: 553 | CQ17: 1150 | CR17: 3650
A18: 150804 | C18: 11 | D18: 150804 | E18: DISTRUTO CHECRAS | F18: 1685 | H18: 834.32775 | I18: 850.67225 | K18: 14.35935 | L18: 14.64065 | M18: 12.8739 | N18: 13.1261 | O18: 12.37875 | P18: 12.62125 | Q18: 11.8836 | R18: 12.1164 | S18: 11.8836 | T18: 12.1164 | U18: 11.8836 | V18: 12.1164 | W18: 12.8739 | X18: 13.1261 | Y18: 13.36905 | Z18: 13.63095 | AA18: 14.35935 | AB18: 14.64065 | AC18: 14.8545 | AD18: 15.1455 | AE18: 15.8448 | AF18: 16.1552 | AG18: 16.8351 | AH18: 17.1649 | AI18: 17.33025 | AJ18: 17.66975 | AK18: 16.33995 | AL18: 16.66005 | AM18: 14.8545 | AN18: 15.1455 | AO18: 13.36905 | AP18: 13.63095 | AQ18: 11.8836 | AR18: 12.1164 | AS18: 10.39815 | AT18: 10.60185 | AU18: 9.40785 | AV18: 9.59215 | AW18: 8.41755 | AX18: 8.58245 | AY18: 32.6799 | AZ18: 33.3201 | BA18: 43.07805 | BB18: 43.92195 | BC18: 40.10715 | BD18: 40.89285 | BE18: 55.4568 | BF18: 56.5432 | BG18: 52.4859 | BH18: 53.5141 | BI18: 50.01015 | BJ18: 50.98985 | BK18: 61.3986 | BL18: 62.6014 | BM18: 45.5538 | BN18: 46.4462 | BO18: 46.5441 | BP18: 47.4559 | BQ18: 38.12655 | BR18: 38.87345 | BS18: 51.99075 | BT18: 53.00925 | BU18: 27.7284 | BV18: 28.2716 | BW18: 23.7672 | BX18: 24.2328 | BY18: 29 | BZ18: 2 | CA18: 839 | CB18: 75 | CC18: 43 | CD18: 244 | CE18: 36 | CG18: 29 | CH18: 99 | CI18: 330 | CJ18: 372 | CK18: 170 | CL18: 189 | CM18: 616 | CN18: 380 | CP18: 136 | CQ18: 272 | CR18: 769
B19: 05 | C19: 12 | D19: 5663 | E19: PUESTO SALUD PUÑUN | F19: 1685 | H19: 834.32775 | I19: 850.67225 | K19: 14.35935 | L19: 14.64065 | M19: 12.8739 | N19: 13.1261 | O19: 12.37875 | P19: 12.62125 | Q19: 11.8836 | R19: 12.1164 | S19: 11.8836 | T19: 12.1164 | U19: 11.8836 | V19: 12.1164 | W19: 12.8739 | X19: 13.1261 | Y19: 13.36905 | Z19: 13.63095 | AA19: 14.35935 | AB19: 14.64065 | AC19: 14.8545 | AD19: 15.1455 | AE19: 15.8448 | AF19: 16.1552 | AG19: 16.8351 | AH19: 17.1649 | AI19: 17.33025 | AJ19: 17.66975 | AK19: 16.33995 | AL19: 16.66005 | AM19: 14.8545 | AN19: 15.1455 | AO19: 13.36905 | AP19: 13.63095 | AQ19: 11.8836 | AR19: 12.1164 | AS19: 10.39815 | AT19: 10.60185 | AU19: 9.40785 | AV19: 9.59215 | AW19: 8.41755 | AX19: 8.58245 | AY19: 32.6799 | AZ19: 33.3201 | BA19: 43.07805 | BB19: 43.92195 | BC19: 40.10715 | BD19: 40.89285 | BE19: 55.4568 | BF19: 56.5432 | BG19: 52.4859 | BH19: 53.5141 | BI19: 50.01015 | BJ19: 50.98985 | BK19: 61.3986 | BL19: 62.6014 | BM19: 45.5538 | BN19: 46.4462 | BO19: 46.5441 | BP19: 47.4559 | BQ19: 38.12655 | BR19: 38.87345 | BS19: 51.99075 | BT19: 53.00925 | BU19: 27.7284 | BV19: 28.2716 | BW19: 23.7672 | BX19: 24.2328 | BY19: 29 | BZ19: 2 | CA19: 839 | CB19: 75 | CC19: 43 | CD19: 244 | CE19: 36 | CG19: 29 | CH19: 99 | CI19: 330 | CJ19: 372 | CK19: 170 | CL19: 189 | CM19: 616 | CN19: 380 | CP19: 136 | CQ19: 272 | CR19: 769
A20: 150805 | C20: 13 | D20: 150805 | E20: DISTRITO HUALMAY | F20: 28270 | H20: 13997.8905 | I20: 14272.1095 | K20: 255.99255 | L20: 261.00745 | M20: 241.13805 | N20: 245.86195 | O20: 231.7302 | P20: 236.2698 | Q20: 226.7787 | R20: 231.2213 | S20: 224.7981 | T20: 229.2019 | U20: 227.769 | V20: 232.231 | W20: 232.22535 | X20: 236.77465 | Y20: 239.15745 | Z20: 243.84255 | AA20: 247.07985 | AB20: 251.92015 | AC20: 255.99255 | AD20: 261.00745 | AE20: 265.4004 | AF20: 270.5996 | AG20: 276.2937 | AH20: 281.7063 | AI20: 283.2258 | AJ20: 288.7742 | AK20: 284.2161 | AL20: 289.7839 | AM20: 280.75005 | AN20: 286.24995 | AO20: 277.284 | AP20: 282.716 | AQ20: 273.3228 | AR20: 278.6772 | AS20: 268.86645 | AT20: 274.13355 | AU20: 263.91495 | AV20: 269.08505 | AW20: 258.4683 | AX20: 263.5317 | AY20: 1202.71935 | AZ20: 1226.28065 | BA20: 1085.3688 | BB20: 1106.6312 | BC20: 1051.20345 | BD20: 1071.79655 | BE20: 979.4067 | BF20: 998.5933 | BG20: 907.1148 | BH20: 924.8852 | BI20: 758.5698 | BJ20: 773.4302 | BK20: 661.5204 | BL20: 674.4796 | BM20: 596.1606 | BN20: 607.8394 | BO20: 471.3828 | BP20: 480.6172 | BQ20: 400.57635 | BR20: 408.42365 | BS20: 302.53665 | BT20: 308.46335 | BU20: 229.7496 | BV20: 234.2504 | BW20: 237.17685 | BX20: 241.82315 | BY20: 521 | BZ20: 40 | CA20: 14533 | CB20: 1393 | CC20: 1377 | CD20: 6237 | CE20: 646 | CG20: 517 | CH20: 1867 | CI20: 5906 | CJ20: 6890 | CK20: 3368 | CL20: 5676 | CM20: 10005 | CN20: 3315 | CP20: 2428 | CQ20: 5517 | CR20: 14626
B21: 02 | C21: 14 | D21: 5665 | E21: CENTRO SALUD HUALMAY | F21: 14901 | H21: 7378.23015 | I21: 7522.76985 | K21: 132.7002 | L21: 135.2998 | M21: 128.739 | N21: 131.261 | O21: 123.29235 | P21: 125.70765 | Q21: 118.836 | R21: 121.164 | S21: 119.33115 | T21: 121.66885 | U21: 121.31175 | V21: 123.68825 | W21: 123.7875 | X21: 126.2125 | Y21: 127.7487 | Z21: 130.2513 | AA21: 131.21475 | AB21: 133.78525 | AC21: 135.6711 | AD21: 138.3289 | AE21: 141.11775 | AF21: 143.88225 | AG21: 147.05955 | AH21: 149.94045 | AI21: 150.5256 | AJ21: 153.4744 | AK21: 151.02075 | AL21: 153.97925 | AM21: 149.04015 | AN21: 151.95985 | AO21: 148.04985 | AP21: 150.95015 | AQ21: 146.06925 | AR21: 148.93075 | AS21: 145.07895 | AT21: 147.92105 | AU21: 140.6226 | AV21: 143.3774 | AW21: 137.15655 | AX21: 139.84345 | AY21: 627.35505 | AZ21: 639.64495 | BA21: 578.83035 | BB21: 590.16965 | BC21: 558.5292 | BD21: 569.4708 | BE21: 514.956 | BF21: 525.044 | BG21: 480.2955 | BH21: 489.7045 | BI21: 399.0909 | BJ21: 406.9091 | BK21: 346.605 | BL21: 353.395 | BM21: 314.42025 | BN21: 320.57975 | BO21: 246.08955 | BP21: 250.91045 | BQ21: 211.9242 | BR21: 216.0758 | BS21: 153.4965 | BT21: 156.5035 | BU21: 112.8942 | BV21: 115.1058 | BW21: 115.36995 | BX21: 117.63005 | BY21: 272 | BZ21: 22 | CA21: 8634 | CB21: 778 | CC21: 773 | CD21: 3727 | CE21: 334 | CG21: 268 | CH21: 990 | CI21: 3132 | CJ21: 3671 | CK21: 1797 | CL21: 2997 | CM21: 5279 | CN21: 1696 | CP21: 1292 | CQ21: 2940 | CR21: 7715
B22: 02 | C22: 15 | D22: 5666 | E22: PUESTO SALUD DGO.MANDAMIENTO | F22: 9335 | H22: 4622.22525 | I22: 4712.77475 | K22: 84.67065 | L22: 86.32935 | M22: 79.224 | N22: 80.776 | O22: 76.2531 | P22: 77.7469 | Q22: 75.75795 | R22: 77.24205 | S22: 74.2725 | T22: 75.7275 | U22: 74.76765 | V22: 76.23235 | W22: 76.2531 | X22: 77.7469 | Y22: 78.72885 | Z22: 80.27115 | AA22: 81.69975 | AB22: 83.30025 | AC22: 84.1755 | AD22: 85.8245 | AE22: 87.64155 | AF22: 89.35845 | AG22: 91.1076 | AH22: 92.8924 | AI22: 93.58335 | AJ22: 95.41665 | AK22: 94.0785 | AL22: 95.9215 | AM22: 92.59305 | AN22: 94.40695 | AO22: 91.60275 | AP22: 93.39725 | AQ22: 90.1173 | AR22: 91.8827 | AS22: 88.1367 | AT22: 89.8633 | AU22: 87.1464 | AV22: 88.8536 | AW22: 85.1658 | AX22: 86.8342 | AY22: 399.58605 | AZ22: 407.41395 | BA22: 357.99345 | BB22: 365.00655 | BC22: 347.10015 | BD22: 353.89985 | BE22: 323.33295 | BF22: 329.66705 | BG22: 299.56575 | BH22: 305.43425 | BI22: 251.04105 | BJ22: 255.95895 | BK22: 217.866 | BL22: 222.134 | BM22: 196.0794 | BN22: 199.9206 | BO22: 155.4771 | BP22: 158.5229 | BQ22: 132.20505 | BR22: 134.79495 | BS22: 99.52515 | BT22: 101.47485 | BU22: 76.2531 | BV22: 77.7469 | BW22: 79.224 | BX22: 80.776 | BY22: 171 | BZ22: 13 | CA22: 4531 | CB22: 429 | CC22: 423 | CD22: 2199 | CE22: 215 | CG22: 171 | CH22: 617 | CI22: 1948 | CJ22: 2271 | CK22: 1111 | CL22: 1878 | CM22: 3302 | CN22: 1096 | CP22: 799 | CQ22: 1820 | CR22: 4832
B23: 02 | C23: 16 | D23: 5667 | E23: PUESTO SALUD CAMPO ALEGRE | F23: 4034 | H23: 1997.4351 | I23: 2036.5649 | K23: 38.6217 | L23: 39.3783 | M23: 33.17505 | N23: 33.82495 | O23: 32.18475 | P23: 32.81525 | Q23: 32.18475 | R23: 32.81525 | S23: 31.19445 | T23: 31.80555 | U23: 31.6896 | V23: 32.3104 | W23: 32.18475 | X23: 32.81525 | Y23: 32.6799 | Z23: 33.3201 | AA23: 34.16535 | AB23: 34.83465 | AC23: 36.14595 | AD23: 36.85405 | AE23: 36.6411 | AF23: 37.3589 | AG23: 38.12655 | AH23: 38.87345 | AI23: 39.11685 | AJ23: 39.88315 | AK23: 39.11685 | AL23: 39.88315 | AM23: 39.11685 | AN23: 39.88315 | AO23: 37.6314 | AP23: 38.3686 | AQ23: 37.13625 | AR23: 37.86375 | AS23: 35.6508 | AT23: 36.3492 | AU23: 36.14595 | AV23: 36.85405 | AW23: 36.14595 | AX23: 36.85405 | AY23: 175.77825 | AZ23: 179.22175 | BA23: 148.545 | BB23: 151.455 | BC23: 145.5741 | BD23: 148.4259 | BE23: 141.11775 | BF23: 143.88225 | BG23: 127.25355 | BH23: 129.74645 | BI23: 108.43785 | BJ23: 110.56215 | BK23: 97.0494 | BL23: 98.9506 | BM23: 85.66095 | BN23: 87.33905 | BO23: 69.81615 | BP23: 71.18385 | BQ23: 56.4471 | BR23: 57.5529 | BS23: 49.515 | BT23: 50.485 | BU23: 40.6023 | BV23: 41.3977 | BW23: 42.5829 | BX23: 43.4171 | BY23: 78 | BZ23: 5 | CA23: 1368 | CB23: 186 | CC23: 181 | CD23: 311 | CE23: 97 | CG23: 78 | CH23: 260 | CI23: 826 | CJ23: 948 | CK23: 460 | CL23: 801 | CM23: 1424 | CN23: 523 | CP23: 337 | CQ23: 757 | CR23: 2079
A24: 150806 | C24: 17 | D24: 150806 | E24: DISTRITO HUAURA | F24: 34156 | H24: 16912.3434 | I24: 17243.6566 | K24: 315.41055 | L24: 321.58945 | M24: 300.55605 | N24: 306.44395 | O24: 290.65305 | P24: 296.34695 | Q24: 286.1967 | R24: 291.8033 | S24: 286.69185 | T24: 292.30815 | U24: 289.66275 | V24: 295.33725 | W24: 296.0997 | X24: 301.9003 | Y24: 305.50755 | Z24: 311.49245 | AA24: 316.40085 | AB24: 322.59915 | AC24: 328.28445 | AD24: 334.71555 | AE24: 340.6632 | AF24: 347.3368 | AG24: 353.5371 | AH24: 360.4629 | AI24: 365.4207 | AJ24: 372.5793 | AK24: 374.82855 | AL24: 382.17145 | AM24: 381.76065 | AN24: 389.23935 | AO24: 388.1976 | AP24: 395.8024 | AQ24: 395.1297 | AR24: 402.8703 | AS24: 394.1394 | AT24: 401.8606 | AU24: 380.77035 | AV24: 388.22965 | AW24: 359.97405 | AX24: 367.02595 | AY24: 1533.47955 | AZ24: 1563.52045 | BA24: 1352.7498 | BB24: 1379.2502 | BC24: 1284.4191 | BD24: 1309.5809 | BE24: 1124.9808 | BF24: 1147.0192 | BG24: 1019.0187 | BH24: 1038.9813 | BI24: 921.47415 | BJ24: 939.52585 | BK24: 727.37535 | BL24: 741.62465 | BM24: 587.2479 | BN24: 598.7521 | BO24: 465.441 | BP24: 474.559 | BQ24: 385.2267 | BR24: 392.7733 | BS24: 350.07105 | BT24: 356.92895 | BU24: 212.9145 | BV24: 217.0855 | BW24: 198.06 | BX24: 201.94 | BY24: 642 | BZ24: 49 | CA24: 16925 | CB24: 1748 | CC24: 1861 | CD24: 7428 | CE24: 795 | CG24: 637 | CH24: 2351 | CI24: 7492 | CJ24: 9148 | CK24: 4644 | CL24: 7325 | CM24: 11440 | CN24: 3255 | CP24: 3102 | CQ24: 7542 | CR24: 17269
B25: 01 | C25: 18 | D25: 5682 | E25: CENTRO SALUD HUAURA | F25: 15541 | H25: 7695.12615 | I25: 7845.87385 | K25: 143.5935 | L25: 146.4065 | M25: 135.6711 | N25: 138.3289 | O25: 132.7002 | P25: 135.2998 | Q25: 130.22445 | R25: 132.77555 | S25: 130.22445 | T25: 132.77555 | U25: 131.7099 | V25: 134.2901 | W25: 134.6808 | X25: 137.3192 | Y25: 139.13715 | Z25: 141.86285 | AA25: 144.08865 | AB25: 146.91135 | AC25: 149.5353 | AD25: 152.4647 | AE25: 154.98195 | AF25: 158.01805 | AG25: 160.92375 | AH25: 164.07625 | AI25: 166.3704 | AJ25: 169.6296 | AK25: 170.3316 | AL25: 173.6684 | AM25: 173.79765 | AN25: 177.20235 | AO25: 176.76855 | AP25: 180.23145 | AQ25: 179.73945 | AR25: 183.26055 | AS25: 179.2443 | AT25: 182.7557 | AU25: 173.3025 | AV25: 176.6975 | AW25: 163.89465 | AX25: 167.10535 | AY25: 697.66635 | AZ25: 711.33365 | BA25: 615.47145 | BB25: 627.52855 | BC25: 584.277 | BD25: 595.723 | BE25: 511.9851 | BF25: 522.0149 | BG25: 463.4604 | BH25: 472.5396 | BI25: 419.39205 | BJ25: 427.60795 | BK25: 331.25535 | BL25: 337.74465 | BM25: 267.381 | BN25: 272.619 | BO25: 211.9242 | BP25: 216.0758 | BQ25: 175.2831 | BR25: 178.7169 | BS25: 159.4383 | BT25: 162.5617 | BU25: 96.55425 | BV25: 98.44575 | BW25: 90.1173 | BX25: 91.8827 | BY25: 292 | BZ25: 22 | CA25: 7700 | CB25: 795 | CC25: 847 | CD25: 3380 | CE25: 361 | CG25: 290 | CH25: 1068 | CI25: 3408 | CJ25: 4163 | CK25: 2113 | CL25: 3333 | CM25: 5206 | CN25: 1481 | CP25: 1412 | CQ25: 3432 | CR25: 7858
B26: 01 | C26: 19 | D26: 5686 | E26: CENTRO MAT. INF. EL SOCORRO | F26: 11955 | H26: 5919.51825 | I26: 6035.48175 | K26: 110.9136 | L26: 113.0864 | M26: 105.46695 | N26: 107.53305 | O26: 101.50575 | P26: 103.49425 | Q26: 100.0203 | R26: 101.9797 | S26: 100.51545 | T26: 102.48455 | U26: 101.50575 | V26: 103.49425 | W26: 103.48635 | X26: 105.51365 | Y26: 106.9524 | Z26: 109.0476 | AA26: 110.9136 | AB26: 113.0864 | AC26: 114.8748 | AD26: 117.1252 | AE26: 119.33115 | AF26: 121.66885 | AG26: 123.7875 | AH26: 126.2125 | AI26: 127.7487 | AJ26: 130.2513 | AK26: 131.7099 | AL26: 134.2901 | AM26: 133.6905 | AN26: 136.3095 | AO26: 135.6711 | AP26: 138.3289 | AQ26: 138.14685 | AR26: 140.85315 | AS26: 138.14685 | AT26: 140.85315 | AU26: 133.19535 | AV26: 135.80465 | AW26: 125.7681 | AX26: 128.2319 | AY26: 536.7426 | AZ26: 547.2574 | BA26: 473.3634 | BB26: 482.6366 | BC26: 449.5962 | BD26: 458.4038 | BE26: 393.64425 | BF26: 401.35575 | BG26: 356.508 | BH26: 363.492 | BI26: 322.34265 | BJ26: 328.65735 | BK26: 254.5071 | BL26: 259.4929 | BM26: 205.48725 | BN26: 209.51275 | BO26: 162.90435 | BP26: 166.09565 | BQ26: 134.6808 | BR26: 137.3192 | BS26: 122.30205 | BT26: 124.69795 | BU26: 74.76765 | BV26: 76.23235 | BW26: 69.321 | BX26: 70.679 | BY26: 225 | BZ26: 17 | CA26: 5924 | CB26: 612 | CC26: 651 | CD26: 2600 | CE26: 282 | CG26: 224 | CH26: 823 | CI26: 2624 | CJ26: 3203 | CK26: 1626 | CL26: 2563 | CM26: 4003 | CN26: 1139 | CP26: 1086 | CQ26: 2640 | CR26: 6043
B27: 01 | C27: 20 | D27: 5683 | E27: PUESTO SALUD HUMAYA | F27: 4099 | H27: 2029.61985 | I27: 2069.38015 | K27: 37.6314 | L27: 38.3686 | M27: 37.13625 | N27: 37.86375 | O27: 34.6605 | P27: 35.3395 | Q27: 34.16535 | R27: 34.83465 | S27: 34.16535 | T27: 34.83465 | U27: 34.6605 | V27: 35.3395 | W27: 35.6508 | X27: 36.3492 | Y27: 36.6411 | Z27: 37.3589 | AA27: 37.6314 | AB27: 38.3686 | AC27: 39.11685 | AD27: 39.88315 | AE27: 41.09745 | AF27: 41.90255 | AG27: 42.08775 | AH27: 42.91225 | AI27: 44.06835 | AJ27: 44.93165 | AK27: 45.05865 | AL27: 45.94135 | AM27: 46.04895 | AN27: 46.95105 | AO27: 46.5441 | AP27: 47.4559 | AQ27: 47.5344 | AR27: 48.4656 | AS27: 47.5344 | AT27: 48.4656 | AU27: 45.5538 | AV27: 46.4462 | AW27: 43.07805 | AX27: 43.92195 | AY27: 184.1958 | AZ27: 187.8042 | BA27: 162.4092 | BB27: 165.5908 | BC27: 153.99165 | BD27: 157.00835 | BE27: 135.17595 | BF27: 137.82405 | BG27: 122.30205 | BH27: 124.69795 | BI27: 110.41845 | BJ27: 112.58155 | BK27: 87.1464 | BL27: 88.8536 | BM27: 70.3113 | BN27: 71.6887 | BO27: 55.95195 | BP27: 57.04805 | BQ27: 46.04895 | BR27: 46.95105 | BS27: 42.08775 | BT27: 42.91225 | BU27: 25.7478 | BV27: 26.2522 | BW27: 23.7672 | BX27: 24.2328 | BY27: 76 | BZ27: 6 | CA27: 2031 | CB27: 210 | CC27: 223 | CD27: 891 | CE27: 79 | CG27: 76 | CH27: 283 | CI27: 898 | CJ27: 1098 | CK27: 559 | CL27: 879 | CM27: 1372 | CN27: 391 | CP27: 371 | CQ27: 906 | CR27: 2072
B28: 01 | C28: 21 | D28: 5684 | E28: PUESTO SALUD VILCAHUAURA | F28: 2049 | H28: 1014.56235 | I28: 1034.43765 | K28: 18.8157 | L28: 19.1843 | M28: 17.8254 | N28: 18.1746 | O28: 17.33025 | P28: 17.66975 | Q28: 17.33025 | R28: 17.66975 | S28: 17.33025 | T28: 17.66975 | U28: 17.33025 | V28: 17.66975 | W28: 17.8254 | X28: 18.1746 | Y28: 18.32055 | Z28: 18.67945 | AA28: 18.8157 | AB28: 19.1843 | AC28: 19.806 | AD28: 20.194 | AE28: 20.30115 | AF28: 20.69885 | AG28: 21.29145 | AH28: 21.70855 | AI28: 21.7866 | AJ28: 22.2134 | AK28: 22.28175 | AL28: 22.71825 | AM28: 22.7769 | AN28: 23.2231 | AO28: 23.27205 | AP28: 23.72795 | AQ28: 23.7672 | AR28: 24.2328 | AS28: 23.7672 | AT28: 24.2328 | AU28: 22.7769 | AV28: 23.2231 | AW28: 21.7866 | AX28: 22.2134 | AY28: 92.0979 | AZ28: 93.9021 | BA28: 81.2046 | BB28: 82.7954 | BC28: 77.2434 | BD28: 78.7566 | BE28: 67.3404 | BF28: 68.6596 | BG28: 61.3986 | BH28: 62.6014 | BI28: 55.4568 | BJ28: 56.5432 | BK28: 43.5732 | BL28: 44.4268 | BM28: 35.15565 | BN28: 35.84435 | BO28: 27.7284 | BP28: 28.2716 | BQ28: 23.27205 | BR28: 23.72795 | BS28: 20.7963 | BT28: 21.2037 | BU28: 12.8739 | BV28: 13.1261 | BW28: 11.8836 | BX28: 12.1164 | BY28: 39 | BZ28: 3 | CA28: 1016 | CB28: 105 | CC28: 112 | CD28: 446 | CE28: 54 | CG28: 38 | CH28: 141 | CI28: 449 | CJ28: 548 | CK28: 278 | CL28: 440 | CM28: 687 | CN28: 195 | CP28: 186 | CQ28: 452 | CR28: 1037
B29: 01 | C29: 22 | D29: 5685 | E29: PUESTO SALUD PEÑICO | F29: 512 | H29: 253.5168 | I29: 258.4832 | K29: 4.45635 | L29: 4.54365 | M29: 4.45635 | N29: 4.54365 | O29: 4.45635 | P29: 4.54365 | Q29: 4.45635 | R29: 4.54365 | S29: 4.45635 | T29: 4.54365 | U29: 4.45635 | V29: 4.54365 | W29: 4.45635 | X29: 4.54365 | Y29: 4.45635 | Z29: 4.54365 | AA29: 4.9515 | AB29: 5.0485 | AC29: 4.9515 | AD29: 5.0485 | AE29: 4.9515 | AF29: 5.0485 | AG29: 5.44665 | AH29: 5.55335 | AI29: 5.44665 | AJ29: 5.55335 | AK29: 5.44665 | AL29: 5.55335 | AM29: 5.44665 | AN29: 5.55335 | AO29: 5.9418 | AP29: 6.0582 | AQ29: 5.9418 | AR29: 6.0582 | AS29: 5.44665 | AT29: 5.55335 | AU29: 5.9418 | AV29: 6.0582 | AW29: 5.44665 | AX29: 5.55335 | AY29: 22.7769 | AZ29: 23.2231 | BA29: 20.30115 | BB29: 20.69885 | BC29: 19.31085 | BD29: 19.68915 | BE29: 16.8351 | BF29: 17.1649 | BG29: 15.34965 | BH29: 15.65035 | BI29: 13.8642 | BJ29: 14.1358 | BK29: 10.8933 | BL29: 11.1067 | BM29: 8.9127 | BN29: 9.0873 | BO29: 6.9321 | BP29: 7.0679 | BQ29: 5.9418 | BR29: 6.0582 | BS29: 5.44665 | BT29: 5.55335 | BU29: 2.9709 | BV29: 3.0291 | BW29: 2.9709 | BX29: 3.0291 | BY29: 10 | BZ29: 1 | CA29: 254 | CB29: 26 | CC29: 28 | CD29: 111 | CE29: 19 | CG29: 9 | CH29: 36 | CI29: 113 | CJ29: 136 | CK29: 68 | CL29: 110 | CM29: 172 | CN29: 49 | CP29: 47 | CQ29: 112 | CR29: 259
A30: 150807 | C30: 23 | D30: 150807 | E30: DISTRITO LEONCIO PRADO | F30: 2020 | H30: 1000.203 | I30: 1019.797 | K30: 15.34965 | L30: 15.65035 | M30: 19.31085 | N30: 19.68915 | O30: 21.7866 | P30: 22.2134 | Q30: 23.7672 | R30: 24.2328 | S30: 24.26235 | T30: 24.73765 | U30: 24.7575 | V30: 25.2425 | W30: 24.26235 | X30: 24.73765 | Y30: 23.7672 | Z30: 24.2328 | AA30: 22.28175 | AB30: 22.71825 | AC30: 21.29145 | AD30: 21.70855 | AE30: 19.31085 | AF30: 19.68915 | AG30: 17.33025 | AH30: 17.66975 | AI30: 15.8448 | AJ30: 16.1552 | AK30: 15.34965 | AL30: 15.65035 | AM30: 15.8448 | AN30: 16.1552 | AO30: 15.8448 | AP30: 16.1552 | AQ30: 15.8448 | AR30: 16.1552 | AS30: 15.8448 | AT30: 16.1552 | AU30: 16.33995 | AV30: 16.66005 | AW30: 16.33995 | AX30: 16.66005 | AY30: 82.69005 | AZ30: 84.30995 | BA30: 76.2531 | BB30: 77.7469 | BC30: 64.3695 | BD30: 65.6305 | BE30: 60.4083 | BF30: 61.5917 | BG30: 52.98105 | BH30: 54.01895 | BI30: 59.418 | BJ30: 60.582 | BK30: 53.4762 | BL30: 54.5238 | BM30: 34.6605 | BN30: 35.3395 | BO30: 34.16535 | BP30: 34.83465 | BQ30: 28.7187 | BR30: 29.2813 | BS30: 27.7284 | BT30: 28.2716 | BU30: 19.31085 | BV30: 19.68915 | BW30: 21.29145 | BX30: 21.70855 | BY30: 31 | BZ30: 2 | CA30: 923 | CB30: 86 | CC30: 68 | CD30: 357 | CE30: 38 | CG30: 31 | CH30: 180 | CI30: 520 | CJ30: 500 | CK30: 191 | CL30: 387 | CM30: 657 | CN30: 265 | CP30: 235 | CQ30: 331 | CR30: 978
B31: 03 | C31: 24 | D31: 5778 | E31: PUESTO SALUD AUQUIMARCA | F31: 364 | H31: 180.2346 | I31: 183.7654 | K31: 2.9709 | L31: 3.0291 | M31: 3.46605 | N31: 3.53395 | O31: 3.9612 | P31: 4.0388 | Q31: 4.45635 | R31: 4.54365 | S31: 4.45635 | T31: 4.54365 | U31: 4.45635 | V31: 4.54365 | W31: 4.45635 | X31: 4.54365 | Y31: 4.45635 | Z31: 4.54365 | AA31: 3.9612 | AB31: 4.0388 | AC31: 3.9612 | AD31: 4.0388 | AE31: 3.46605 | AF31: 3.53395 | AG31: 2.9709 | AH31: 3.0291 | AI31: 2.9709 | AJ31: 3.0291 | AK31: 2.9709 | AL31: 3.0291 | AM31: 2.9709 | AN31: 3.0291 | AO31: 2.9709 | AP31: 3.0291 | AQ31: 2.9709 | AR31: 3.0291 | AS31: 2.9709 | AT31: 3.0291 | AU31: 2.9709 | AV31: 3.0291 | AW31: 2.9709 | AX31: 3.0291 | AY31: 14.8545 | AZ31: 15.1455 | BA31: 13.8642 | BB31: 14.1358 | BC31: 11.38845 | BD31: 11.61155 | BE31: 10.8933 | BF31: 11.1067 | BG31: 9.40785 | BH31: 9.59215 | BI31: 10.8933 | BJ31: 11.1067 | BK31: 9.40785 | BL31: 9.59215 | BM31: 5.9418 | BN31: 6.0582 | BO31: 5.9418 | BP31: 6.0582 | BQ31: 4.9515 | BR31: 5.0485 | BS31: 4.9515 | BT31: 5.0485 | BU31: 3.46605 | BV31: 3.53395 | BW31: 3.46605 | BX31: 3.53395 | BY31: 6 | BZ31: 0 | CA31: 166 | CB31: 15 | CC31: 12 | CD31: 64 | CE31: 7 | CG31: 6 | CH31: 33 | CI31: 95 | CJ31: 92 | CK31: 36 | CL31: 70 | CM31: 117 | CN31: 46 | CP31: 43 | CQ31: 61 | CR31: 175
B32: 03 | C32: 25 | D32: 5779 | E32: PUESTO SALUD PARAN | F32: 828 | H32: 409.9842 | I32: 418.0158 | K32: 5.9418 | L32: 6.0582 | M32: 7.9224 | N32: 8.0776 | O32: 8.9127 | P32: 9.0873 | Q32: 9.40785 | R32: 9.59215 | S32: 9.903 | T32: 10.097 | U32: 10.39815 | V32: 10.60185 | W32: 9.903 | X32: 10.097 | Y32: 9.40785 | Z32: 9.59215 | AA32: 9.40785 | AB32: 9.59215 | AC32: 8.41755 | AD32: 8.58245 | AE32: 7.9224 | AF32: 8.0776 | AG32: 7.42725 | AH32: 7.57275 | AI32: 6.43695 | AJ32: 6.56305 | AK32: 5.9418 | AL32: 6.0582 | AM32: 6.43695 | AN32: 6.56305 | AO32: 6.43695 | AP32: 6.56305 | AQ32: 6.43695 | AR32: 6.56305 | AS32: 6.43695 | AT32: 6.56305 | AU32: 6.43695 | AV32: 6.56305 | AW32: 6.43695 | AX32: 6.56305 | AY32: 34.16535 | AZ32: 34.83465 | BA32: 31.19445 | BB32: 31.80555 | BC32: 26.7381 | BD32: 27.2619 | BE32: 24.7575 | BF32: 25.2425 | BG32: 22.28175 | BH32: 22.71825 | BI32: 24.26235 | BJ32: 24.73765 | BK32: 21.7866 | BL32: 22.2134 | BM32: 14.35935 | BN32: 14.64065 | BO32: 14.35935 | BP32: 14.64065 | BQ32: 11.8836 | BR32: 12.1164 | BS32: 11.38845 | BT32: 11.61155 | BU32: 7.9224 | BV32: 8.0776 | BW32: 8.9127 | BX32: 9.0873 | BY32: 12 | BZ32: 2 | CA32: 378 | CB32: 36 | CC32: 28 | CD32: 147 | CE32: 15 | CG32: 12 | CH32: 73 | CI32: 212 | CJ32: 204 | CK32: 77 | CL32: 158 | CM32: 271 | CN32: 110 | CP32: 96 | CQ32: 134 | CR32: 403
B33: 03 | C33: 26 | D33: 6725 | E33: PUESTO SALUD SANTA CRUZ | F33: 404 | H33: 200.0406 | I33: 203.9594 | K33: 2.9709 | L33: 3.0291 | M33: 3.9612 | N33: 4.0388 | O33: 4.45635 | P33: 4.54365 | Q33: 4.9515 | R33: 5.0485 | S33: 4.9515 | T33: 5.0485 | U33: 4.45635 | V33: 4.54365 | W33: 4.9515 | X33: 5.0485 | Y33: 4.9515 | Z33: 5.0485 | AA33: 4.45635 | AB33: 4.54365 | AC33: 4.45635 | AD33: 4.54365 | AE33: 3.9612 | AF33: 4.0388 | AG33: 3.46605 | AH33: 3.53395 | AI33: 2.9709 | AJ33: 3.0291 | AK33: 2.9709 | AL33: 3.0291 | AM33: 2.9709 | AN33: 3.0291 | AO33: 2.9709 | AP33: 3.0291 | AQ33: 2.9709 | AR33: 3.0291 | AS33: 2.9709 | AT33: 3.0291 | AU33: 3.46605 | AV33: 3.53395 | AW33: 3.46605 | AX33: 3.53395 | AY33: 16.33995 | AZ33: 16.66005 | BA33: 15.34965 | BB33: 15.65035 | BC33: 12.8739 | BD33: 13.1261 | BE33: 11.8836 | BF33: 12.1164 | BG33: 10.39815 | BH33: 10.60185 | BI33: 11.8836 | BJ33: 12.1164 | BK33: 10.8933 | BL33: 11.1067 | BM33: 6.9321 | BN33: 7.0679 | BO33: 6.9321 | BP33: 7.0679 | BQ33: 5.9418 | BR33: 6.0582 | BS33: 5.44665 | BT33: 5.55335 | BU33: 3.9612 | BV33: 4.0388 | BW33: 4.45635 | BX33: 4.54365 | BY33: 6 | BZ33: 0 | CA33: 185 | CB33: 17 | CC33: 14 | CD33: 71 | CE33: 8 | CG33: 6 | CH33: 37 | CI33: 105 | CJ33: 98 | CK33: 36 | CL33: 78 | CM33: 131 | CN33: 54 | CP33: 47 | CQ33: 65 | CR33: 195
B34: 03 | C34: 27 | D34: 7757 | E34: PUESTO SALUD HUANANGUI | F34: 424 | H34: 209.9436 | I34: 214.0564 | K34: 3.46605 | L34: 3.53395 | M34: 3.9612 | N34: 4.0388 | O34: 4.45635 | P34: 4.54365 | Q34: 4.9515 | R34: 5.0485 | S34: 4.9515 | T34: 5.0485 | U34: 5.44665 | V34: 5.55335 | W34: 4.9515 | X34: 5.0485 | Y34: 4.9515 | Z34: 5.0485 | AA34: 4.45635 | AB34: 4.54365 | AC34: 4.45635 | AD34: 4.54365 | AE34: 3.9612 | AF34: 4.0388 | AG34: 3.46605 | AH34: 3.53395 | AI34: 3.46605 | AJ34: 3.53395 | AK34: 3.46605 | AL34: 3.53395 | AM34: 3.46605 | AN34: 3.53395 | AO34: 3.46605 | AP34: 3.53395 | AQ34: 3.46605 | AR34: 3.53395 | AS34: 3.46605 | AT34: 3.53395 | AU34: 3.46605 | AV34: 3.53395 | AW34: 3.46605 | AX34: 3.53395 | AY34: 17.33025 | AZ34: 17.66975 | BA34: 15.8448 | BB34: 16.1552 | BC34: 13.36905 | BD34: 13.63095 | BE34: 12.8739 | BF34: 13.1261 | BG34: 10.8933 | BH34: 11.1067 | BI34: 12.37875 | BJ34: 12.62125 | BK34: 11.38845 | BL34: 11.61155 | BM34: 7.42725 | BN34: 7.57275 | BO34: 6.9321 | BP34: 7.0679 | BQ34: 5.9418 | BR34: 6.0582 | BS34: 5.9418 | BT34: 6.0582 | BU34: 3.9612 | BV34: 4.0388 | BW34: 4.45635 | BX34: 4.54365 | BY34: 7 | BZ34: 0 | CA34: 194 | CB34: 18 | CC34: 14 | CD34: 75 | CE34: 8 | CG34: 7 | CH34: 37 | CI34: 108 | CJ34: 106 | CK34: 42 | CL34: 81 | CM34: 138 | CN34: 55 | CP34: 49 | CQ34: 71 | CR34: 205
A35: 150808 | C35: 28 | D35: 150808 | E35: DISTRITO PACCHO | F35: 2186 | H35: 1082.3979 | I35: 1103.6021 | K35: 15.8448 | L35: 16.1552 | M35: 15.8448 | N35: 16.1552 | O35: 16.33995 | P35: 16.66005 | Q35: 16.8351 | R35: 17.1649 | S35: 16.8351 | T35: 17.1649 | U35: 17.8254 | V35: 18.1746 | W35: 18.32055 | X35: 18.67945 | Y35: 18.8157 | Z35: 19.1843 | AA35: 19.31085 | AB35: 19.68915 | AC35: 20.30115 | AD35: 20.69885 | AE35: 20.30115 | AF35: 20.69885 | AG35: 20.7963 | AH35: 21.2037 | AI35: 20.30115 | AJ35: 20.69885 | AK35: 19.31085 | AL35: 19.68915 | AM35: 16.8351 | AN35: 17.1649 | AO35: 15.34965 | AP35: 15.65035 | AQ35: 13.36905 | AR35: 13.63095 | AS35: 11.8836 | AT35: 12.1164 | AU35: 11.38845 | AV35: 11.61155 | AW35: 11.8836 | AX35: 12.1164 | AY35: 62.3889 | AZ35: 63.6111 | BA35: 60.4083 | BB35: 61.5917 | BC35: 68.82585 | BD35: 70.17415 | BE35: 67.3404 | BF35: 68.6596 | BG35: 70.3113 | BH35: 71.6887 | BI35: 61.3986 | BJ35: 62.6014 | BK35: 55.95195 | BL35: 57.04805 | BM35: 54.96165 | BN35: 56.03835 | BO35: 65.85495 | BP35: 67.14505 | BQ35: 60.4083 | BR35: 61.5917 | BS35: 51.99075 | BT35: 53.00925 | BU35: 34.6605 | BV35: 35.3395 | BW35: 30.20415 | BX35: 30.79585 | BY35: 32 | BZ35: 2 | CA35: 1055 | CB35: 101 | CC35: 47 | CD35: 365 | CE35: 40 | CG35: 32 | CH35: 133 | CI35: 439 | CJ35: 470 | CK35: 196 | CL35: 295 | CM35: 765 | CN35: 491 | CP35: 191 | CQ35: 326 | CR35: 1013
B36: 05 | C36: 29 | D36: 5650 | E36: CENTRO SALUD PACCHO | F36: 831 | H36: 411.46965 | I36: 419.53035 | K36: 5.9418 | L36: 6.0582 | M36: 5.9418 | N36: 6.0582 | O36: 6.43695 | P36: 6.56305 | Q36: 6.43695 | R36: 6.56305 | S36: 6.43695 | T36: 6.56305 | U36: 6.43695 | V36: 6.56305 | W36: 6.9321 | X36: 7.0679 | Y36: 6.9321 | Z36: 7.0679 | AA36: 7.42725 | AB36: 7.57275 | AC36: 7.9224 | AD36: 8.0776 | AE36: 7.9224 | AF36: 8.0776 | AG36: 7.9224 | AH36: 8.0776 | AI36: 7.9224 | AJ36: 8.0776 | AK36: 7.42725 | AL36: 7.57275 | AM36: 6.43695 | AN36: 6.56305 | AO36: 5.9418 | AP36: 6.0582 | AQ36: 4.9515 | AR36: 5.0485 | AS36: 4.45635 | AT36: 4.54365 | AU36: 4.45635 | AV36: 4.54365 | AW36: 4.45635 | AX36: 4.54365 | AY36: 23.7672 | AZ36: 24.2328 | BA36: 22.7769 | BB36: 23.2231 | BC36: 26.24295 | BD36: 26.75705 | BE36: 25.25265 | BF36: 25.74735 | BG36: 26.7381 | BH36: 27.2619 | BI36: 23.27205 | BJ36: 23.72795 | BK36: 21.29145 | BL36: 21.70855 | BM36: 20.7963 | BN36: 21.2037 | BO36: 25.25265 | BP36: 25.74735 | BQ36: 22.7769 | BR36: 23.2231 | BS36: 19.806 | BT36: 20.194 | BU36: 13.36905 | BV36: 13.63095 | BW36: 11.38845 | BX36: 11.61155 | BY36: 12 | BZ36: 1 | CA36: 401 | CB36: 39 | CC36: 18 | CD36: 139 | CE36: 15 | CG36: 12 | CH36: 51 | CI36: 167 | CJ36: 179 | CK36: 75 | CL36: 112 | CM36: 290 | CN36: 187 | CP36: 72 | CQ36: 125 | CR36: 384
B37: 05 | C37: 30 | D37: 5651 | E37: PUESTO SALUD LACSANGA | F37: 459 | H37: 227.27385 | I37: 231.72615 | K37: 3.46605 | L37: 3.53395 | M37: 3.46605 | N37: 3.53395 | O37: 3.46605 | P37: 3.53395 | Q37: 3.46605 | R37: 3.53395 | S37: 3.46605 | T37: 3.53395 | U37: 3.9612 | V37: 4.0388 | W37: 3.9612 | X37: 4.0388 | Y37: 3.9612 | Z37: 4.0388 | AA37: 3.9612 | AB37: 4.0388 | AC37: 3.9612 | AD37: 4.0388 | AE37: 3.9612 | AF37: 4.0388 | AG37: 4.45635 | AH37: 4.54365 | AI37: 3.9612 | AJ37: 4.0388 | AK37: 3.9612 | AL37: 4.0388 | AM37: 3.46605 | AN37: 3.53395 | AO37: 2.9709 | AP37: 3.0291 | AQ37: 2.9709 | AR37: 3.0291 | AS37: 2.47575 | AT37: 2.52425 | AU37: 2.47575 | AV37: 2.52425 | AW37: 2.47575 | AX37: 2.52425 | AY37: 12.8739 | AZ37: 13.1261 | BA37: 12.8739 | BB37: 13.1261 | BC37: 14.35935 | BD37: 14.64065 | BE37: 14.35935 | BF37: 14.64065 | BG37: 14.8545 | BH37: 15.1455 | BI37: 12.8739 | BJ37: 13.1261 | BK37: 11.8836 | BL37: 12.1164 | BM37: 11.38845 | BN37: 11.61155 | BO37: 13.8642 | BP37: 14.1358 | BQ37: 12.8739 | BR37: 13.1261 | BS37: 10.8933 | BT37: 11.1067 | BU37: 7.42725 | BV37: 7.57275 | BW37: 6.43695 | BX37: 6.56305 | BY37: 7 | BZ37: 0 | CA37: 222 | CB37: 21 | CC37: 10 | CD37: 77 | CE37: 8 | CG37: 7 | CH37: 28 | CI37: 92 | CJ37: 97 | CK37: 40 | CL37: 62 | CM37: 161 | CN37: 104 | CP37: 40 | CQ37: 67 | CR37: 213
B38: 05 | C38: 31 | D38: 5653 | E38: PUESTO SALUD AYARANGA | F38: 415 | H38: 205.48725 | I38: 209.51275 | K38: 2.9709 | L38: 3.0291 | M38: 2.9709 | N38: 3.0291 | O38: 2.9709 | P38: 3.0291 | Q38: 2.9709 | R38: 3.0291 | S38: 2.9709 | T38: 3.0291 | U38: 3.46605 | V38: 3.53395 | W38: 3.46605 | X38: 3.53395 | Y38: 3.46605 | Z38: 3.53395 | AA38: 3.46605 | AB38: 3.53395 | AC38: 3.9612 | AD38: 4.0388 | AE38: 3.9612 | AF38: 4.0388 | AG38: 3.9612 | AH38: 4.0388 | AI38: 3.9612 | AJ38: 4.0388 | AK38: 3.46605 | AL38: 3.53395 | AM38: 3.46605 | AN38: 3.53395 | AO38: 2.9709 | AP38: 3.0291 | AQ38: 2.47575 | AR38: 2.52425 | AS38: 2.47575 | AT38: 2.52425 | AU38: 1.9806 | AV38: 2.0194 | AW38: 2.47575 | AX38: 2.52425 | AY38: 11.8836 | AZ38: 12.1164 | BA38: 11.38845 | BB38: 11.61155 | BC38: 12.8739 | BD38: 13.1261 | BE38: 12.8739 | BF38: 13.1261 | BG38: 13.36905 | BH38: 13.63095 | BI38: 11.8836 | BJ38: 12.1164 | BK38: 10.39815 | BL38: 10.60185 | BM38: 10.8933 | BN38: 11.1067 | BO38: 12.37875 | BP38: 12.62125 | BQ38: 11.38845 | BR38: 11.61155 | BS38: 9.903 | BT38: 10.097 | BU38: 6.43695 | BV38: 6.56305 | BW38: 5.9418 | BX38: 6.0582 | BY38: 6 | BZ38: 0 | CA38: 200 | CB38: 19 | CC38: 9 | CD38: 69 | CE38: 8 | CG38: 6 | CH38: 24 | CI38: 82 | CJ38: 90 | CK38: 38 | CL38: 56 | CM38: 146 | CN38: 93 | CP38: 36 | CQ38: 63 | CR38: 193
B39: 05 | C39: 32 | D39: 5652 | E39: PUESTO SALD MUZGA | F39: 481 | H39: 238.16715 | I39: 242.83285 | K39: 3.46605 | L39: 3.53395 | M39: 3.46605 | N39: 3.53395 | O39: 3.46605 | P39: 3.53395 | Q39: 3.9612 | R39: 4.0388 | S39: 3.9612 | T39: 4.0388 | U39: 3.9612 | V39: 4.0388 | W39: 3.9612 | X39: 4.0388 | Y39: 4.45635 | Z39: 4.54365 | AA39: 4.45635 | AB39: 4.54365 | AC39: 4.45635 | AD39: 4.54365 | AE39: 4.45635 | AF39: 4.54365 | AG39: 4.45635 | AH39: 4.54365 | AI39: 4.45635 | AJ39: 4.54365 | AK39: 4.45635 | AL39: 4.54365 | AM39: 3.46605 | AN39: 3.53395 | AO39: 3.46605 | AP39: 3.53395 | AQ39: 2.9709 | AR39: 3.0291 | AS39: 2.47575 | AT39: 2.52425 | AU39: 2.47575 | AV39: 2.52425 | AW39: 2.47575 | AX39: 2.52425 | AY39: 13.8642 | AZ39: 14.1358 | BA39: 13.36905 | BB39: 13.63095 | BC39: 15.34965 | BD39: 15.65035 | BE39: 14.8545 | BF39: 15.1455 | BG39: 15.34965 | BH39: 15.65035 | BI39: 13.36905 | BJ39: 13.63095 | BK39: 12.37875 | BL39: 12.62125 | BM39: 11.8836 | BN39: 12.1164 | BO39: 14.35935 | BP39: 14.64065 | BQ39: 13.36905 | BR39: 13.63095 | BS39: 11.38845 | BT39: 11.61155 | BU39: 7.42725 | BV39: 7.57275 | BW39: 6.43695 | BX39: 6.56305 | BY39: 7 | BZ39: 1 | CA39: 232 | CB39: 22 | CC39: 10 | CD39: 80 | CE39: 9 | CG39: 7 | CH39: 30 | CI39: 98 | CJ39: 104 | CK39: 43 | CL39: 65 | CM39: 168 | CN39: 107 | CP39: 43 | CQ39: 71 | CR39: 223
A40: 150809 | C40: 33 | D40: 150809 | E40: DISTRITO SANTA LEONOR | F40: 1501 | H40: 743.22015 | I40: 757.77985 | K40: 11.38845 | L40: 11.61155 | M40: 10.8933 | N40: 11.1067 | O40: 10.8933 | P40: 11.1067 | Q40: 10.8933 | R40: 11.1067 | S40: 11.8836 | T40: 12.1164 | U40: 12.37875 | V40: 12.62125 | W40: 13.36905 | X40: 13.63095 | Y40: 14.8545 | Z40: 15.1455 | AA40: 15.8448 | AB40: 16.1552 | AC40: 16.8351 | AD40: 17.1649 | AE40: 17.8254 | AF40: 18.1746 | AG40: 19.31085 | AH40: 19.68915 | AI40: 19.31085 | AJ40: 19.68915 | AK40: 18.32055 | AL40: 18.67945 | AM40: 16.33995 | AN40: 16.66005 | AO40: 14.35935 | AP40: 14.64065 | AQ40: 12.37875 | AR40: 12.62125 | AS40: 10.8933 | AT40: 11.1067 | AU40: 10.39815 | AV40: 10.60185 | AW40: 9.903 | AX40: 10.097 | AY40: 45.05865 | AZ40: 45.94135 | BA40: 35.6508 | BB40: 36.3492 | BC40: 38.12655 | BD40: 38.87345 | BE40: 44.5635 | BF40: 45.4365 | BG40: 44.5635 | BH40: 45.4365 | BI40: 46.04895 | BJ40: 46.95105 | BK40: 48.02955 | BL40: 48.97045 | BM40: 33.6702 | BN40: 34.3298 | BO40: 37.13625 | BP40: 37.86375 | BQ40: 27.23325 | BR40: 27.76675 | BS40: 27.23325 | BT40: 27.76675 | BU40: 21.7866 | BV40: 22.2134 | BW40: 15.8448 | BX40: 16.1552 | BY40: 23 | BZ40: 2 | CA40: 706 | CB40: 78 | CC40: 60 | CD40: 248 | CE40: 28 | CG40: =SUM(K40:L40) -> 23 | CH40: =SUM(M40:T40) -> 90 | CI40: =SUM(K40:AH40) -> 336 | CJ40: =SUM(U40:AT40) -> 408 | CK40: =SUM(AI40:AT40) -> 185 | CL40: =SUM(AU40:BB40) -> 204 | CM40: =SUM(BC40:BN40) -> 515 | CN40: =SUM(BO40:BX40) -> 261 | CP40: =SUM(U40:AD40) -> 148 | CQ40: =SUM(AE40:AX40) -> 301 | CR40: =SUM(AY40:BN40) -> 678
B41: 05 | C41: 34 | D41: 5645 | E41: CENTRO SALUD CHIUCHIN | F41: 916 | H41: 453.5574 | I41: 462.4426 | K41: 6.9321 | L41: 7.0679 | M41: 6.9321 | N41: 7.0679 | O41: 6.43695 | P41: 6.56305 | Q41: 6.9321 | R41: 7.0679 | S41: 6.9321 | T41: 7.0679 | U41: 7.42725 | V41: 7.57275 | W41: 7.9224 | X41: 8.0776 | Y41: 9.40785 | Z41: 9.59215 | AA41: 9.903 | AB41: 10.097 | AC41: 9.903 | AD41: 10.097 | AE41: 10.8933 | AF41: 11.1067 | AG41: 11.8836 | AH41: 12.1164 | AI41: 11.8836 | AJ41: 12.1164 | AK41: 11.38845 | AL41: 11.61155 | AM41: 9.903 | AN41: 10.097 | AO41: 8.9127 | AP41: 9.0873 | AQ41: 7.42725 | AR41: 7.57275 | AS41: 6.43695 | AT41: 6.56305 | AU41: 6.43695 | AV41: 6.56305 | AW41: 5.9418 | AX41: 6.0582 | AY41: 27.23325 | AZ41: 27.76675 | BA41: 21.7866 | BB41: 22.2134 | BC41: 23.27205 | BD41: 23.72795 | BE41: 27.23325 | BF41: 27.76675 | BG41: 27.23325 | BH41: 27.76675 | BI41: 28.22355 | BJ41: 28.77645 | BK41: 29.21385 | BL41: 29.78615 | BM41: 19.806 | BN41: 20.194 | BO41: 22.7769 | BP41: 23.2231 | BQ41: 16.8351 | BR41: 17.1649 | BS41: 16.8351 | BT41: 17.1649 | BU41: 13.36905 | BV41: 13.63095 | BW41: 9.903 | BX41: 10.097 | BY41: 14 | BZ41: 1 | CA41: 431 | CB41: 48 | CC41: 37 | CD41: 151 | CE41: 17 | CG41: 14 | CH41: 55 | CI41: 205 | CJ41: 249 | CK41: 113 | CL41: 124 | CM41: 313 | CN41: 161 | CP41: 90 | CQ41: 184 | CR41: 412
B42: 05 | C42: 35 | D42: 5646 | E42: PUESTO SALUD PARQUIN | F42: 421 | H42: 208.45815 | I42: 212.54185 | K42: 2.9709 | L42: 3.0291 | M42: 2.9709 | N42: 3.0291 | O42: 3.46605 | P42: 3.53395 | Q42: 2.9709 | R42: 3.0291 | S42: 3.46605 | T42: 3.53395 | U42: 3.46605 | V42: 3.53395 | W42: 3.9612 | X42: 4.0388 | Y42: 3.9612 | Z42: 4.0388 | AA42: 4.45635 | AB42: 4.54365 | AC42: 4.9515 | AD42: 5.0485 | AE42: 4.9515 | AF42: 5.0485 | AG42: 5.44665 | AH42: 5.55335 | AI42: 5.44665 | AJ42: 5.55335 | AK42: 4.9515 | AL42: 5.0485 | AM42: 4.45635 | AN42: 4.54365 | AO42: 3.9612 | AP42: 4.0388 | AQ42: 3.46605 | AR42: 3.53395 | AS42: 2.9709 | AT42: 3.0291 | AU42: 2.9709 | AV42: 3.0291 | AW42: 2.9709 | AX42: 3.0291 | AY42: 12.8739 | AZ42: 13.1261 | BA42: 9.903 | BB42: 10.097 | BC42: 10.8933 | BD42: 11.1067 | BE42: 12.37875 | BF42: 12.62125 | BG42: 12.37875 | BH42: 12.62125 | BI42: 12.8739 | BJ42: 13.1261 | BK42: 13.36905 | BL42: 13.63095 | BM42: 9.903 | BN42: 10.097 | BO42: 10.39815 | BP42: 10.60185 | BQ42: 7.42725 | BR42: 7.57275 | BS42: 7.42725 | BT42: 7.57275 | BU42: 5.9418 | BV42: 6.0582 | BW42: 4.45635 | BX42: 4.54365 | BY42: 6 | BZ42: 1 | CA42: 198 | CB42: 22 | CC42: 17 | CD42: 70 | CE42: 8 | CG42: 6 | CH42: 26 | CI42: 95 | CJ42: 114 | CK42: 51 | CL42: 58 | CM42: 145 | CN42: 72 | CP42: 42 | CQ42: 84 | CR42: 191
B43: 05 | C43: 36 | D43: 5647 | E43: PUESTO SALUD JUCUL | F43: 164 | H43: 81.2046 | I43: 82.7954 | K43: 1.48545 | L43: 1.51455 | M43: 0.9903 | N43: 1.0097 | O43: 0.9903 | P43: 1.0097 | Q43: 0.9903 | R43: 1.0097 | S43: 1.48545 | T43: 1.51455 | U43: 1.48545 | V43: 1.51455 | W43: 1.48545 | X43: 1.51455 | Y43: 1.48545 | Z43: 1.51455 | AA43: 1.48545 | AB43: 1.51455 | AC43: 1.9806 | AD43: 2.0194 | AE43: 1.9806 | AF43: 2.0194 | AG43: 1.9806 | AH43: 2.0194 | AI43: 1.9806 | AJ43: 2.0194 | AK43: 1.9806 | AL43: 2.0194 | AM43: 1.9806 | AN43: 2.0194 | AO43: 1.48545 | AP43: 1.51455 | AQ43: 1.48545 | AR43: 1.51455 | AS43: 1.48545 | AT43: 1.51455 | AU43: 0.9903 | AV43: 1.0097 | AW43: 0.9903 | AX43: 1.0097 | AY43: 4.9515 | AZ43: 5.0485 | BA43: 3.9612 | BB43: 4.0388 | BC43: 3.9612 | BD43: 4.0388 | BE43: 4.9515 | BF43: 5.0485 | BG43: 4.9515 | BH43: 5.0485 | BI43: 4.9515 | BJ43: 5.0485 | BK43: 5.44665 | BL43: 5.55335 | BM43: 3.9612 | BN43: 4.0388 | BO43: 3.9612 | BP43: 4.0388 | BQ43: 2.9709 | BR43: 3.0291 | BS43: 2.9709 | BT43: 3.0291 | BU43: 2.47575 | BV43: 2.52425 | BW43: 1.48545 | BX43: 1.51455 | BY43: 3 | BZ43: 0 | CA43: 77 | CB43: 8 | CC43: 6 | CD43: 27 | CE43: 3 | CG43: 3 | CH43: 9 | CI43: 36 | CJ43: 45 | CK43: 21 | CL43: 22 | CM43: 57 | CN43: 28 | CP43: 16 | CQ43: 33 | CR43: 75
A44: 150810 | C44: 37 | D44: 150810 | E44: DISTRITO SANTA MARIA | F44: 31528 | H44: 15611.0892 | I44: 15916.9108 | K44: 282.2355 | L44: 287.7645 | M44: 272.3325 | N44: 277.6675 | O44: 265.89555 | P44: 271.10445 | Q44: 263.4198 | R44: 268.5802 | S44: 264.4101 | T44: 269.5899 | U44: 267.381 | V44: 272.619 | W44: 272.82765 | X44: 278.17235 | Y44: 279.75975 | Z44: 285.24025 | AA44: 287.68215 | AB44: 293.31785 | AC44: 295.60455 | AD44: 301.39545 | AE44: 304.51725 | AF44: 310.48275 | AG44: 313.42995 | AH44: 319.57005 | AI44: 319.37175 | AJ44: 325.62825 | AK44: 320.36205 | AL44: 326.63795 | AM44: 317.8863 | AN44: 324.1137 | AO44: 314.9154 | AP44: 321.0846 | AQ44: 312.43965 | AR44: 318.56035 | AS44: 306.993 | AT44: 313.007 | AU44: 298.57545 | AV44: 304.42455 | AW44: 287.68215 | AX44: 293.31785 | AY44: 1296.3027 | AZ44: 1321.6973 | BA44: 1180.4376 | BB44: 1203.5624 | BC44: 1180.93275 | BD44: 1204.06725 | BE44: 1107.1554 | BF44: 1128.8446 | BG44: 935.8335 | BH44: 954.1665 | BI44: 834.8229 | BJ44: 851.1771 | BK44: 679.84095 | BL44: 693.15905 | BM44: 649.6368 | BN44: 662.3632 | BO44: 549.6165 | BP44: 560.3835 | BQ44: 413.9454 | BR44: 422.0546 | BS44: 371.3625 | BT44: 378.6375 | BU44: 261.93435 | BV44: 267.06565 | BW44: 301.54635 | BX44: 307.45365 | BY44: 574 | BZ44: 44 | CA44: 15674 | CB44: 1541 | CC44: 1465 | CD44: 6700 | CE44: 711 | CG44: 570 | CH44: 2153 | CI44: 6805 | CJ44: 7903 | CK44: 3821 | CL44: 6186 | CM44: 10882 | CN44: 3834 | CP44: 2834 | CQ44: 6253 | CR44: 15884
B45: 02 | C45: 38 | D45: 5668 | E45: CENTRO SALUD SANTA MARIA | F45: 8813 | H45: 4363.75695 | I45: 4449.24305 | K45: 79.224 | L45: 80.776 | M45: 76.2531 | N45: 77.7469 | O45: 74.2725 | P45: 75.7275 | Q45: 73.77735 | R45: 75.22265 | S45: 73.77735 | T45: 75.22265 | U45: 74.76765 | V45: 76.23235 | W45: 76.2531 | X45: 77.7469 | Y45: 78.2337 | Z45: 79.7663 | AA45: 80.2143 | AB45: 81.7857 | AC45: 82.69005 | AD45: 84.30995 | AE45: 85.1658 | AF45: 86.8342 | AG45: 87.64155 | AH45: 89.35845 | AI45: 89.127 | AJ45: 90.873 | AK45: 89.62215 | AL45: 91.37785 | AM45: 88.63185 | AN45: 90.36815 | AO45: 88.1367 | AP45: 89.8633 | AQ45: 87.1464 | AR45: 88.8536 | AS45: 85.66095 | AT45: 87.33905 | AU45: 83.68035 | AV45: 85.31965 | AW45: 80.2143 | AX45: 81.7857 | AY45: 362.4498 | AZ45: 369.5502 | BA45: 329.7699 | BB45: 336.2301 | BC45: 330.26505 | BD45: 336.73495 | BE45: 309.46875 | BF45: 315.53125 | BG45: 261.4392 | BH45: 266.5608 | BI45: 233.21565 | BJ45: 237.78435 | BK45: 190.1376 | BL45: 193.8624 | BM45: 181.72005 | BN45: 185.27995 | BO45: 153.4965 | BP45: 156.5035 | BQ45: 115.8651 | BR45: 118.1349 | BS45: 103.9815 | BT45: 106.0185 | BU45: 73.2822 | BV45: 74.7178 | BW45: 84.1755 | BX45: 85.8245 | BY45: 161 | BZ45: 12 | CA45: 4389 | CB45: 431 | CC45: 410 | CD45: 1876 | CE45: 198 | CG45: 160 | CH45: 602 | CI45: 1903 | CJ45: 2208 | CK45: 1067 | CL45: 1729 | CM45: 3042 | CN45: 1072 | CP45: 792 | CQ45: 1747 | CR45: 4440
B46: 02 | C46: 39 | D46: 5669 | E46: PUESTO SALUD CHONTA | F46: 4733 | H46: 2343.54495 | I46: 2389.45505 | K46: 42.5829 | L46: 43.4171 | M46: 41.09745 | N46: 41.90255 | O46: 40.10715 | P46: 40.89285 | Q46: 39.612 | R46: 40.388 | S46: 39.612 | T46: 40.388 | U46: 40.10715 | V46: 40.89285 | W46: 41.09745 | X46: 41.90255 | Y46: 42.08775 | Z46: 42.91225 | AA46: 43.07805 | AB46: 43.92195 | AC46: 44.5635 | AD46: 45.4365 | AE46: 45.5538 | AF46: 46.4462 | AG46: 46.5441 | AH46: 47.4559 | AI46: 47.5344 | AJ46: 48.4656 | AK46: 48.02955 | AL46: 48.97045 | AM46: 47.5344 | AN46: 48.4656 | AO46: 47.03925 | AP46: 47.96075 | AQ46: 47.03925 | AR46: 47.96075 | AS46: 46.04895 | AT46: 46.95105 | AU46: 44.5635 | AV46: 45.4365 | AW46: 43.07805 | AX46: 43.92195 | AY46: 194.59395 | AZ46: 198.40605 | BA46: 177.2637 | BB46: 180.7363 | BC46: 177.2637 | BD46: 180.7363 | BE46: 166.3704 | BF46: 169.6296 | BG46: 140.6226 | BH46: 143.3774 | BI46: 125.7681 | BJ46: 128.2319 | BK46: 102.0009 | BL46: 103.9991 | BM46: 97.54455 | BN46: 99.45545 | BO46: 82.69005 | BP46: 84.30995 | BQ46: 62.3889 | BR46: 63.6111 | BS46: 55.95195 | BT46: 57.04805 | BU46: 39.11685 | BV46: 39.88315 | BW46: 45.05865 | BX46: 45.94135 | BY46: 86 | BZ46: 7 | CA46: 2351 | CB46: 231 | CC46: 220 | CD46: 1005 | CE46: 106 | CG46: 86 | CH46: 324 | CI46: 1022 | CJ46: 1184 | CK46: 572 | CL46: 928 | CM46: 1635 | CN46: 576 | CP46: 426 | CQ46: 935 | CR46: 2386
B47: 02 | C47: 40 | D47: 5671 | E47: PUESTO SALUD ZAPATA | F47: 2528 | H47: 1251.7392 | I47: 1276.2608 | K47: 22.7769 | L47: 23.2231 | M47: 21.7866 | N47: 22.2134 | O47: 21.29145 | P47: 21.70855 | Q47: 21.29145 | R47: 21.70855 | S47: 21.29145 | T47: 21.70855 | U47: 21.7866 | V47: 22.2134 | W47: 21.7866 | X47: 22.2134 | Y47: 22.28175 | Z47: 22.71825 | AA47: 23.27205 | AB47: 23.72795 | AC47: 23.7672 | AD47: 24.2328 | AE47: 24.26235 | AF47: 24.73765 | AG47: 25.25265 | AH47: 25.74735 | AI47: 25.7478 | AJ47: 26.2522 | AK47: 25.7478 | AL47: 26.2522 | AM47: 25.25265 | AN47: 25.74735 | AO47: 25.25265 | AP47: 25.74735 | AQ47: 25.25265 | AR47: 25.74735 | AS47: 24.7575 | AT47: 25.2425 | AU47: 23.7672 | AV47: 24.2328 | AW47: 23.27205 | AX47: 23.72795 | AY47: 103.9815 | AZ47: 106.0185 | BA47: 94.57365 | BB47: 96.42635 | BC47: 94.57365 | BD47: 96.42635 | BE47: 88.63185 | BF47: 90.36815 | BG47: 75.2628 | BH47: 76.7372 | BI47: 66.84525 | BJ47: 68.15475 | BK47: 54.4665 | BL47: 55.5335 | BM47: 51.99075 | BN47: 53.00925 | BO47: 44.06835 | BP47: 44.93165 | BQ47: 32.6799 | BR47: 33.3201 | BS47: 29.709 | BT47: 30.291 | BU47: 20.7963 | BV47: 21.2037 | BW47: 24.26235 | BX47: 24.73765 | BY47: 46 | BZ47: 4 | CA47: 1254 | CB47: 124 | CC47: 117 | CD47: 536 | CE47: 57 | CG47: 46 | CH47: 173 | CI47: 547 | CJ47: 635 | CK47: 307 | CL47: 496 | CM47: 872 | CN47: 306 | CP47: 228 | CQ47: 502 | CR47: 1273
B48: 02 | C48: 41 | D48: 5670 | E48: PUESTO SALUD AMADO VELASQUEZ | F48: 8194 | H48: 4057.2591 | I48: 4136.7409 | K48: 72.78705 | L48: 74.21295 | M48: 70.3113 | N48: 71.6887 | O48: 69.321 | P48: 70.679 | Q48: 68.3307 | R48: 69.6693 | S48: 68.82585 | T48: 70.17415 | U48: 69.321 | V48: 70.679 | W48: 70.80645 | X48: 72.19355 | Y48: 72.78705 | Z48: 74.21295 | AA48: 74.76765 | AB48: 76.23235 | AC48: 76.74825 | AD48: 78.25175 | AE48: 79.224 | AF48: 80.776 | AG48: 81.69975 | AH48: 83.30025 | AI48: 83.1852 | AJ48: 84.8148 | AK48: 83.1852 | AL48: 84.8148 | AM48: 83.1852 | AN48: 84.8148 | AO48: 82.1949 | AP48: 83.8051 | AQ48: 81.2046 | AR48: 82.7954 | AS48: 79.71915 | AT48: 81.28085 | AU48: 77.73855 | AV48: 79.26145 | AW48: 74.76765 | AX48: 76.23235 | AY48: 336.702 | AZ48: 343.298 | BA48: 306.993 | BB48: 313.007 | BC48: 306.993 | BD48: 313.007 | BE48: 287.68215 | BF48: 293.31785 | BG48: 243.11865 | BH48: 247.88135 | BI48: 216.8757 | BJ48: 221.1243 | BK48: 176.76855 | BL48: 180.23145 | BM48: 168.84615 | BN48: 172.15385 | BO48: 142.6032 | BP48: 145.3968 | BQ48: 107.44755 | BR48: 109.55245 | BS48: 96.0591 | BT48: 97.9409 | BU48: 68.3307 | BV48: 69.6693 | BW48: 78.72885 | BX48: 80.27115 | BY48: 149 | BZ48: 11 | CA48: 4075 | CB48: 401 | CC48: 381 | CD48: 1742 | CE48: 187 | CG48: 147 | CH48: 559 | CI48: 1767 | CJ48: 2056 | CK48: 995 | CL48: 1608 | CM48: 2828 | CN48: 996 | CP48: 736 | CQ48: 1628 | CR48: 4128
B49: 02 | C49: 42 | D49: 5672 | E49: PUESTO SALUD SAN BARTOLOME | F49: 7260 | H49: 3594.789 | I49: 3665.211 | K49: 64.86465 | L49: 66.13535 | M49: 62.88405 | N49: 64.11595 | O49: 60.90345 | P49: 62.09655 | Q49: 60.4083 | R49: 61.5917 | S49: 60.90345 | T49: 62.09655 | U49: 61.3986 | V49: 62.6014 | W49: 62.88405 | X49: 64.11595 | Y49: 64.3695 | Z49: 65.6305 | AA49: 66.3501 | AB49: 67.6499 | AC49: 67.83555 | AD49: 69.16445 | AE49: 70.3113 | AF49: 71.6887 | AG49: 72.2919 | AH49: 73.7081 | AI49: 73.77735 | AJ49: 75.22265 | AK49: 73.77735 | AL49: 75.22265 | AM49: 73.2822 | AN49: 74.7178 | AO49: 72.2919 | AP49: 73.7081 | AQ49: 71.79675 | AR49: 73.20325 | AS49: 70.80645 | AT49: 72.19355 | AU49: 68.82585 | AV49: 70.17415 | AW49: 66.3501 | AX49: 67.6499 | AY49: 298.57545 | AZ49: 304.42455 | BA49: 271.83735 | BB49: 277.16265 | BC49: 271.83735 | BD49: 277.16265 | BE49: 255.00225 | BF49: 259.99775 | BG49: 215.39025 | BH49: 219.60975 | BI49: 192.1182 | BJ49: 195.8818 | BK49: 156.4674 | BL49: 159.5326 | BM49: 149.5353 | BN49: 152.4647 | BO49: 126.7584 | BP49: 129.2416 | BQ49: 95.56395 | BR49: 97.43605 | BS49: 85.66095 | BT49: 87.33905 | BU49: 60.4083 | BV49: 61.5917 | BW49: 69.321 | BX49: 70.679 | BY49: 132 | BZ49: 10 | CA49: 3605 | CB49: 354 | CC49: 337 | CD49: 1541 | CE49: 163 | CG49: 131 | CH49: 495 | CI49: 1566 | CJ49: 1820 | CK49: 880 | CL49: 1425 | CM49: 2505 | CN49: 884 | CP49: 652 | CQ49: 1441 | CR49: 3657
A50: 150811 | C50: 43 | D50: 150811 | E50: DISTRITO SAYAN | F50: 23561 | H50: 11666.22915 | I50: 11894.77085 | K50: 222.8175 | L50: 227.1825 | M50: 220.8369 | N50: 225.1631 | O50: 219.8466 | P50: 224.1534 | Q50: 219.8466 | R50: 224.1534 | S50: 220.34175 | T50: 224.65825 | U50: 222.32235 | V50: 226.67765 | W50: 224.30295 | X50: 228.69705 | Y50: 226.7787 | Z50: 231.2213 | AA50: 229.7496 | AB50: 234.2504 | AC50: 232.7205 | AD50: 237.2795 | AE50: 235.6914 | AF50: 240.3086 | AG50: 238.16715 | AH50: 242.83285 | AI50: 240.6429 | AJ50: 245.3571 | AK50: 241.6332 | AL50: 246.3668 | AM50: 241.6332 | AN50: 246.3668 | AO50: 241.6332 | AP50: 246.3668 | AQ50: 241.6332 | AR50: 246.3668 | AS50: 240.14775 | AT50: 244.85225 | AU50: 235.6914 | AV50: 240.3086 | AW50: 230.7399 | AX50: 235.2601 | AY50: 1071.5046 | AZ50: 1092.4954 | BA50: 985.84365 | BB50: 1005.15635 | BC50: 923.9499 | BD50: 942.0501 | BE50: 800.65755 | BF50: 816.34245 | BG50: 664.4913 | BH50: 677.5087 | BI50: 644.19015 | BJ50: 656.80985 | BK50: 471.87795 | BL50: 481.12205 | BM50: 405.52785 | BN50: 413.47215 | BO50: 334.7214 | BP50: 341.2786 | BQ50: 256.4877 | BR50: 261.5123 | BS50: 219.8466 | BT50: 224.1534 | BU50: 141.6129 | BV50: 144.3871 | BW50: 118.34085 | BX50: 120.65915 | BY50: 453 | BZ50: 35 | CA50: 11269 | CB50: 1174 | CC50: 1201 | CD50: 4811 | CE50: 562 | CG50: 450 | CH50: 1779 | CI50: 5480 | CJ50: 6174 | CK50: 2923 | CL50: 5097 | CM50: 7898 | CN50: 2163 | CP50: 2294 | CQ50: 4822 | CR50: 12053
B51: 03 | C51: 44 | D51: 5780 | E51: CENTRO SALUD SAYAN | F51: 9896 | H51: 4900.0044 | I51: 4995.9956 | K51: 93.0882 | L51: 94.9118 | M51: 92.59305 | N51: 94.40695 | O51: 92.59305 | P51: 94.40695 | Q51: 92.59305 | R51: 94.40695 | S51: 92.59305 | T51: 94.40695 | U51: 93.58335 | V51: 95.41665 | W51: 94.0785 | X51: 95.9215 | Y51: 95.0688 | Z51: 96.9312 | AA51: 96.55425 | AB51: 98.44575 | AC51: 97.54455 | AD51: 99.45545 | AE51: 99.03 | AF51: 100.97 | AG51: 100.51545 | AH51: 102.48455 | AI51: 101.0106 | AJ51: 102.9894 | AK51: 101.50575 | AL51: 103.49425 | AM51: 101.50575 | AN51: 103.49425 | AO51: 101.50575 | AP51: 103.49425 | AQ51: 101.50575 | AR51: 103.49425 | AS51: 101.0106 | AT51: 102.9894 | AU51: 99.03 | AV51: 100.97 | AW51: 97.0494 | AX51: 98.9506 | AY51: 450.09135 | AZ51: 458.90865 | BA51: 413.9454 | BB51: 422.0546 | BC51: 388.1976 | BD51: 395.8024 | BE51: 336.20685 | BF51: 342.79315 | BG51: 279.2646 | BH51: 284.7354 | BI51: 270.3519 | BJ51: 275.6481 | BK51: 198.06 | BL51: 201.94 | BM51: 170.3316 | BN51: 173.6684 | BO51: 140.6226 | BP51: 143.3774 | BQ51: 107.9427 | BR51: 110.0573 | BS51: 92.0979 | BT51: 93.9021 | BU51: 59.418 | BV51: 60.582 | BW51: 49.515 | BX51: 50.485 | BY51: 190 | BZ51: 14 | CA51: 4733 | CB51: 493 | CC51: 505 | CD51: 2021 | CE51: 237 | CG51: 188 | CH51: 748 | CI51: 2302 | CJ51: 2594 | CK51: 1228 | CL51: 2141 | CM51: 3317 | CN51: 908 | CP51: 963 | CQ51: 2027 | CR51: 5062
B52: 03 | C52: 45 | D52: 5774 | E52: CENTRO SALUD 9 DE OCTUBRE | F52: 4712 | H52: 2333.1468 | I52: 2378.8532 | K52: 44.5635 | L52: 45.4365 | M52: 44.06835 | N52: 44.93165 | O52: 44.06835 | P52: 44.93165 | Q52: 44.06835 | R52: 44.93165 | S52: 44.06835 | T52: 44.93165 | U52: 44.5635 | V52: 45.4365 | W52: 45.05865 | X52: 45.94135 | Y52: 45.5538 | Z52: 46.4462 | AA52: 46.04895 | AB52: 46.95105 | AC52: 46.5441 | AD52: 47.4559 | AE52: 47.03925 | AF52: 47.96075 | AG52: 47.5344 | AH52: 48.4656 | AI52: 48.02955 | AJ52: 48.97045 | AK52: 48.5247 | AL52: 49.4753 | AM52: 48.5247 | AN52: 49.4753 | AO52: 48.5247 | AP52: 49.4753 | AQ52: 48.5247 | AR52: 49.4753 | AS52: 48.02955 | AT52: 48.97045 | AU52: 47.03925 | AV52: 47.96075 | AW52: 46.04895 | AX52: 46.95105 | AY52: 214.39995 | AZ52: 218.60005 | BA52: 197.0697 | BB52: 200.9303 | BC52: 184.69095 | BD52: 188.30905 | BE52: 159.93345 | BF52: 163.06655 | BG52: 132.7002 | BH52: 135.2998 | BI52: 128.739 | BJ52: 131.261 | BK52: 94.57365 | BL52: 96.42635 | BM52: 81.2046 | BN52: 82.7954 | BO52: 66.84525 | BP52: 68.15475 | BQ52: 50.5053 | BR52: 51.4947 | BS52: 44.06835 | BT52: 44.93165 | BU52: 28.22355 | BV52: 28.77645 | BW52: 23.7672 | BX52: 24.2328 | BY52: 91 | BZ52: 7 | CA52: 2254 | CB52: 235 | CC52: 240 | CD52: 962 | CE52: 112 | CG52: 90 | CH52: 356 | CI52: 1097 | CJ52: 1237 | CK52: 586 | CL52: 1019 | CM52: 1579 | CN52: 431 | CP52: 460 | CQ52: 965 | CR52: 2410
B53: 03 | C53: 46 | D53: 5781 | E53: PUESTO SALUD CHAMBARA | F53: 1178 | H53: 583.2867 | I53: 594.7133 | K53: 11.38845 | L53: 11.61155 | M53: 10.8933 | N53: 11.1067 | O53: 10.8933 | P53: 11.1067 | Q53: 10.8933 | R53: 11.1067 | S53: 10.8933 | T53: 11.1067 | U53: 10.8933 | V53: 11.1067 | W53: 11.38845 | X53: 11.61155 | Y53: 11.38845 | Z53: 11.61155 | AA53: 11.38845 | AB53: 11.61155 | AC53: 11.8836 | AD53: 12.1164 | AE53: 11.8836 | AF53: 12.1164 | AG53: 11.8836 | AH53: 12.1164 | AI53: 11.8836 | AJ53: 12.1164 | AK53: 11.8836 | AL53: 12.1164 | AM53: 11.8836 | AN53: 12.1164 | AO53: 11.8836 | AP53: 12.1164 | AQ53: 11.8836 | AR53: 12.1164 | AS53: 11.8836 | AT53: 12.1164 | AU53: 11.8836 | AV53: 12.1164 | AW53: 11.38845 | AX53: 11.61155 | AY53: 53.4762 | AZ53: 54.5238 | BA53: 49.515 | BB53: 50.485 | BC53: 46.04895 | BD53: 46.95105 | BE53: 40.10715 | BF53: 40.89285 | BG53: 33.17505 | BH53: 33.82495 | BI53: 32.6799 | BJ53: 33.3201 | BK53: 23.7672 | BL53: 24.2328 | BM53: 20.30115 | BN53: 20.69885 | BO53: 16.8351 | BP53: 17.1649 | BQ53: 12.8739 | BR53: 13.1261 | BS53: 11.38845 | BT53: 11.61155 | BU53: 6.9321 | BV53: 7.0679 | BW53: 5.9418 | BX53: 6.0582 | BY53: 23 | BZ53: 2 | CA53: 563 | CB53: 59 | CC53: 60 | CD53: 241 | CE53: 28 | CG53: 23 | CH53: 88 | CI53: 274 | CJ53: 307 | CK53: 144 | CL53: 255 | CM53: 396 | CN53: 109 | CP53: 115 | CQ53: 239 | CR53: 604
B54: 03 | C54: 47 | D54: 5775 | E54: PUESTO SALUD LA MERCED | F54: 2356 | H54: 1166.5734 | I54: 1189.4266 | K54: 22.28175 | L54: 22.71825 | M54: 22.28175 | N54: 22.71825 | O54: 21.7866 | P54: 22.2134 | Q54: 21.7866 | R54: 22.2134 | S54: 22.28175 | T54: 22.71825 | U54: 22.28175 | V54: 22.71825 | W54: 22.28175 | X54: 22.71825 | Y54: 22.7769 | Z54: 23.2231 | AA54: 22.7769 | AB54: 23.2231 | AC54: 23.27205 | AD54: 23.72795 | AE54: 23.7672 | AF54: 24.2328 | AG54: 23.7672 | AH54: 24.2328 | AI54: 24.26235 | AJ54: 24.73765 | AK54: 24.26235 | AL54: 24.73765 | AM54: 24.26235 | AN54: 24.73765 | AO54: 24.26235 | AP54: 24.73765 | AQ54: 24.26235 | AR54: 24.73765 | AS54: 24.26235 | AT54: 24.73765 | AU54: 23.7672 | AV54: 24.2328 | AW54: 23.27205 | AX54: 23.72795 | AY54: 106.9524 | AZ54: 109.0476 | BA54: 98.53485 | BB54: 100.46515 | BC54: 92.0979 | BD54: 93.9021 | BE54: 79.71915 | BF54: 81.28085 | BG54: 66.3501 | BH54: 67.6499 | BI54: 64.3695 | BJ54: 65.6305 | BK54: 47.03925 | BL54: 47.96075 | BM54: 40.10715 | BN54: 40.89285 | BO54: 33.6702 | BP54: 34.3298 | BQ54: 25.7478 | BR54: 26.2522 | BS54: 21.7866 | BT54: 22.2134 | BU54: 14.35935 | BV54: 14.64065 | BW54: 11.8836 | BX54: 12.1164 | BY54: 45 | BZ54: 4 | CA54: 1127 | CB54: 117 | CC54: 120 | CD54: 481 | CE54: 56 | CG54: 45 | CH54: 178 | CI54: 548 | CJ54: 619 | CK54: 294 | CL54: 510 | CM54: 787 | CN54: 217 | CP54: 229 | CQ54: 485 | CR54: 1202
B55: 03 | C55: 48 | D55: 5776 | E55: PUESTO SALUD LA VILLA | F55: 3770 | H55: 1866.7155 | I55: 1903.2845 | K55: 35.6508 | L55: 36.3492 | M55: 35.6508 | N55: 36.3492 | O55: 35.15565 | P55: 35.84435 | Q55: 35.15565 | R55: 35.84435 | S55: 35.15565 | T55: 35.84435 | U55: 35.6508 | V55: 36.3492 | W55: 35.6508 | X55: 36.3492 | Y55: 36.14595 | Z55: 36.85405 | AA55: 36.6411 | AB55: 37.3589 | AC55: 37.13625 | AD55: 37.86375 | AE55: 37.6314 | AF55: 38.3686 | AG55: 38.12655 | AH55: 38.87345 | AI55: 38.6217 | AJ55: 39.3783 | AK55: 38.6217 | AL55: 39.3783 | AM55: 38.6217 | AN55: 39.3783 | AO55: 38.6217 | AP55: 39.3783 | AQ55: 38.6217 | AR55: 39.3783 | AS55: 38.6217 | AT55: 39.3783 | AU55: 37.6314 | AV55: 38.3686 | AW55: 37.13625 | AX55: 37.86375 | AY55: 171.3219 | AZ55: 174.6781 | BA55: 157.95285 | BB55: 161.04715 | BC55: 148.04985 | BD55: 150.95015 | BE55: 128.24385 | BF55: 130.75615 | BG55: 106.45725 | BH55: 108.54275 | BI55: 102.9912 | BJ55: 105.0088 | BK55: 75.2628 | BL55: 76.7372 | BM55: 64.86465 | BN55: 66.13535 | BO55: 53.4762 | BP55: 54.5238 | BQ55: 41.09745 | BR55: 41.90255 | BS55: 35.15565 | BT55: 35.84435 | BU55: 22.7769 | BV55: 23.2231 | BW55: 18.8157 | BX55: 19.1843 | BY55: 72 | BZ55: 6 | CA55: 1803 | CB55: 188 | CC55: 192 | CD55: 770 | CE55: 90 | CG55: 72 | CH55: 285 | CI55: 876 | CJ55: 987 | CK55: 468 | CL55: 816 | CM55: 1264 | CN55: 346 | CP55: 366 | CQ55: 772 | CR55: 1929
B56: 03 | C56: 49 | D56: 5777 | E56: PUESTO SALUD EL AHOARCADO | F56: 942 | H56: 466.4313 | I56: 475.5687 | K56: 8.9127 | L56: 9.0873 | M56: 8.9127 | N56: 9.0873 | O56: 8.9127 | P56: 9.0873 | Q56: 8.9127 | R56: 9.0873 | S56: 8.9127 | T56: 9.0873 | U56: 8.9127 | V56: 9.0873 | W56: 8.9127 | X56: 9.0873 | Y56: 8.9127 | Z56: 9.0873 | AA56: 9.40785 | AB56: 9.59215 | AC56: 9.40785 | AD56: 9.59215 | AE56: 9.40785 | AF56: 9.59215 | AG56: 9.40785 | AH56: 9.59215 | AI56: 9.40785 | AJ56: 9.59215 | AK56: 9.40785 | AL56: 9.59215 | AM56: 9.40785 | AN56: 9.59215 | AO56: 9.40785 | AP56: 9.59215 | AQ56: 9.40785 | AR56: 9.59215 | AS56: 9.40785 | AT56: 9.59215 | AU56: 9.40785 | AV56: 9.59215 | AW56: 9.40785 | AX56: 9.59215 | AY56: 43.07805 | AZ56: 43.92195 | BA56: 39.11685 | BB56: 39.88315 | BC56: 37.13625 | BD56: 37.86375 | BE56: 32.18475 | BF56: 32.81525 | BG56: 26.7381 | BH56: 27.2619 | BI56: 25.7478 | BJ56: 26.2522 | BK56: 18.8157 | BL56: 19.1843 | BM56: 16.33995 | BN56: 16.66005 | BO56: 13.36905 | BP56: 13.63095 | BQ56: 10.39815 | BR56: 10.60185 | BS56: 8.9127 | BT56: 9.0873 | BU56: 5.44665 | BV56: 5.55335 | BW56: 4.9515 | BX56: 5.0485 | BY56: 18 | BZ56: 1 | CA56: 451 | CB56: 47 | CC56: 48 | CD56: 192 | CE56: 22 | CG56: 18 | CH56: 72 | CI56: 220 | CJ56: 244 | CK56: 114 | CL56: 204 | CM56: 317 | CN56: 87 | CP56: 92 | CQ56: 190 | CR56: 483
B57: 03 | C57: 50 | D57: 6726 | E57: PUESTO SALUD LA UNION | F57: 707 | H57: 350.07105 | I57: 356.92895 | K57: 6.9321 | L57: 7.0679 | M57: 6.43695 | N57: 6.56305 | O57: 6.43695 | P57: 6.56305 | Q57: 6.43695 | R57: 6.56305 | S57: 6.43695 | T57: 6.56305 | U57: 6.43695 | V57: 6.56305 | W57: 6.9321 | X57: 7.0679 | Y57: 6.9321 | Z57: 7.0679 | AA57: 6.9321 | AB57: 7.0679 | AC57: 6.9321 | AD57: 7.0679 | AE57: 6.9321 | AF57: 7.0679 | AG57: 6.9321 | AH57: 7.0679 | AI57: 7.42725 | AJ57: 7.57275 | AK57: 7.42725 | AL57: 7.57275 | AM57: 7.42725 | AN57: 7.57275 | AO57: 7.42725 | AP57: 7.57275 | AQ57: 7.42725 | AR57: 7.57275 | AS57: 6.9321 | AT57: 7.0679 | AU57: 6.9321 | AV57: 7.0679 | AW57: 6.43695 | AX57: 6.56305 | AY57: 32.18475 | AZ57: 32.81525 | BA57: 29.709 | BB57: 30.291 | BC57: 27.7284 | BD57: 28.2716 | BE57: 24.26235 | BF57: 24.73765 | BG57: 19.806 | BH57: 20.194 | BI57: 19.31085 | BJ57: 19.68915 | BK57: 14.35935 | BL57: 14.64065 | BM57: 12.37875 | BN57: 12.62125 | BO57: 9.903 | BP57: 10.097 | BQ57: 7.9224 | BR57: 8.0776 | BS57: 6.43695 | BT57: 6.56305 | BU57: 4.45635 | BV57: 4.54365 | BW57: 3.46605 | BX57: 3.53395 | BY57: 14 | BZ57: 1 | CA57: 338 | CB57: 35 | CC57: 36 | CD57: 144 | CE57: 17 | CG57: 14 | CH57: 52 | CI57: 163 | CJ57: 186 | CK57: 89 | CL57: 152 | CM57: 238 | CN57: 65 | CP57: 69 | CQ57: 144 | CR57: 363
A58: 150812 | C58: 51 | D58: 150812 | E58: DISTRITO VEGUETA | F58: 20763 | H58: 10280.79945 | I58: 10482.20055 | K58: 226.28355 | L58: 230.71645 | M58: 207.46785 | N58: 211.53215 | O58: 194.0988 | P58: 197.9012 | Q58: 184.69095 | R58: 188.30905 | S58: 178.74915 | T58: 182.25085 | U58: 176.76855 | V58: 180.23145 | W58: 177.2637 | X58: 180.7363 | Y58: 179.73945 | Z58: 183.26055 | AA58: 184.1958 | AB58: 187.8042 | AC58: 190.1376 | AD58: 193.8624 | AE58: 197.0697 | AF58: 200.9303 | AG58: 204.9921 | AH58: 209.0079 | AI58: 211.42905 | AJ58: 215.57095 | AK58: 214.8951 | AL58: 219.1049 | AM58: 215.39025 | AN58: 219.60975 | AO58: 217.37085 | AP58: 221.62915 | AQ58: 218.8563 | AR58: 223.1437 | AS58: 218.36115 | AT58: 222.63885 | AU58: 213.9048 | AV58: 218.0952 | AW58: 207.963 | AX58: 212.037 | AY58: 939.29955 | AZ58: 957.70045 | BA58: 802.63815 | BB58: 818.36185 | BC58: 736.28805 | BD58: 750.71195 | BE58: 648.6465 | BF58: 661.3535 | BG58: 597.64605 | BH58: 609.35395 | BI58: 568.92735 | BJ58: 580.07265 | BK58: 447.12045 | BL58: 455.87955 | BM58: 389.1879 | BN58: 396.8121 | BO58: 321.35235 | BP58: 327.64765 | BQ58: 257.478 | BR58: 262.522 | BS58: 224.7981 | BT58: 229.2019 | BU58: 163.89465 | BV58: 167.10535 | BW58: 163.89465 | BX58: 167.10535 | BY58: 460 | BZ58: 35 | CA58: 10130 | CB58: 1000 | CC58: 1073 | CD58: 4288 | CE58: 571 | CG58: 457 | CH58: 1545 | CI58: 4648 | CJ58: 5264 | CK58: 2618 | CL58: 4370 | CM58: 6842 | CN58: 2285 | CP58: 1834 | CQ58: 4282 | CR58: 10360
B59: 04 | C59: 52 | D59: 5673 | E59: CENTRO SALUD VEGUETA | F59: 6229 | H59: 3084.28935 | I59: 3144.71065 | K59: 67.83555 | L59: 69.16445 | M59: 61.89375 | N59: 63.10625 | O59: 58.4277 | P59: 59.5723 | Q59: 55.4568 | R59: 56.5432 | S59: 53.4762 | T59: 54.5238 | U59: 52.98105 | V59: 54.01895 | W59: 52.98105 | X59: 54.01895 | Y59: 53.97135 | Z59: 55.02865 | AA59: 55.4568 | AB59: 56.5432 | AC59: 57.4374 | AD59: 58.5626 | AE59: 58.92285 | AF59: 60.07715 | AG59: 60.90345 | AH59: 62.09655 | AI59: 63.3792 | AJ59: 64.6208 | AK59: 64.3695 | AL59: 65.6305 | AM59: 64.86465 | AN59: 66.13535 | AO59: 65.3598 | AP59: 66.6402 | AQ59: 65.85495 | AR59: 67.14505 | AS59: 65.3598 | AT59: 66.6402 | AU59: 64.3695 | AV59: 65.6305 | AW59: 62.3889 | AX59: 63.6111 | AY59: 281.74035 | AZ59: 287.25965 | BA59: 240.6429 | BB59: 245.3571 | BC59: 220.8369 | BD59: 225.1631 | BE59: 194.59395 | BF59: 198.40605 | BG59: 179.2443 | BH59: 182.7557 | BI59: 170.82675 | BJ59: 174.17325 | BK59: 134.18565 | BL59: 136.81435 | BM59: 116.8554 | BN59: 119.1446 | BO59: 96.55425 | BP59: 98.44575 | BQ59: 77.2434 | BR59: 78.7566 | BS59: 67.83555 | BT59: 69.16445 | BU59: 49.01985 | BV59: 49.98015 | BW59: 49.01985 | BX59: 49.98015 | BY59: 138 | BZ59: 10 | CA59: 3039 | CB59: 300 | CC59: 322 | CD59: 1286 | CE59: 173 | CG59: 137 | CH59: 463 | CI59: 1393 | CJ59: 1579 | CK59: 786 | CL59: 1311 | CM59: 2053 | CN59: 686 | CP59: 551 | CQ59: 1284 | CR59: 3108
B60: 04 | C60: 53 | D60: 5674 | E60: PUESTO SALUD MAZO | F60: 2076 | H60: 1027.9314 | I60: 1048.0686 | K60: 22.7769 | L60: 23.2231 | M60: 20.7963 | N60: 21.2037 | O60: 19.31085 | P60: 19.68915 | Q60: 18.32055 | R60: 18.67945 | S60: 17.8254 | T60: 18.1746 | U60: 17.8254 | V60: 18.1746 | W60: 17.8254 | X60: 18.1746 | Y60: 17.8254 | Z60: 18.1746 | AA60: 18.32055 | AB60: 18.67945 | AC60: 18.8157 | AD60: 19.1843 | AE60: 19.806 | AF60: 20.194 | AG60: 20.30115 | AH60: 20.69885 | AI60: 21.29145 | AJ60: 21.70855 | AK60: 21.29145 | AL60: 21.70855 | AM60: 21.7866 | AN60: 22.2134 | AO60: 21.7866 | AP60: 22.2134 | AQ60: 21.7866 | AR60: 22.2134 | AS60: 21.7866 | AT60: 22.2134 | AU60: 21.29145 | AV60: 21.70855 | AW60: 20.7963 | AX60: 21.2037 | AY60: 94.0785 | AZ60: 95.9215 | BA60: 80.2143 | BB60: 81.7857 | BC60: 73.77735 | BD60: 75.22265 | BE60: 64.86465 | BF60: 66.13535 | BG60: 59.91315 | BH60: 61.08685 | BI60: 56.94225 | BJ60: 58.05775 | BK60: 44.5635 | BL60: 45.4365 | BM60: 39.11685 | BN60: 39.88315 | BO60: 32.18475 | BP60: 32.81525 | BQ60: 25.7478 | BR60: 26.2522 | BS60: 22.28175 | BT60: 22.71825 | BU60: 16.33995 | BV60: 16.66005 | BW60: 16.33995 | BX60: 16.66005 | BY60: 46 | BZ60: 4 | CA60: 1013 | CB60: 100 | CC60: 107 | CD60: 429 | CE60: 60 | CG60: 46 | CH60: 154 | CI60: 464 | CJ60: 526 | CK60: 262 | CL60: 437 | CM60: 685 | CN60: 228 | CP60: 183 | CQ60: 428 | CR60: 1037
B61: 04 | C61: 54 | D61: 5675 | E61: PUESTO SALUD PRIMAVERA | F61: 2284 | H61: 1130.9226 | I61: 1153.0774 | K61: 29.21385 | L61: 29.78615 | M61: 22.7769 | N61: 23.2231 | O61: 21.29145 | P61: 21.70855 | Q61: 20.30115 | R61: 20.69885 | S61: 19.806 | T61: 20.194 | U61: 19.31085 | V61: 19.68915 | W61: 19.806 | X61: 20.194 | Y61: 19.806 | Z61: 20.194 | AA61: 20.30115 | AB61: 20.69885 | AC61: 20.7963 | AD61: 21.2037 | AE61: 21.29145 | AF61: 21.70855 | AG61: 22.7769 | AH61: 23.2231 | AI61: 23.27205 | AJ61: 23.72795 | AK61: 24.26235 | AL61: 24.73765 | AM61: 23.7672 | AN61: 24.2328 | AO61: 23.7672 | AP61: 24.2328 | AQ61: 24.26235 | AR61: 24.73765 | AS61: 24.26235 | AT61: 24.73765 | AU61: 23.7672 | AV61: 24.2328 | AW61: 22.7769 | AX61: 23.2231 | AY61: 103.48635 | AZ61: 105.51365 | BA61: 88.1367 | BB61: 89.8633 | BC61: 81.2046 | BD61: 82.7954 | BE61: 71.3016 | BF61: 72.6984 | BG61: 65.85495 | BH61: 67.14505 | BI61: 62.3889 | BJ61: 63.6111 | BK61: 49.01985 | BL61: 49.98015 | BM61: 39.612 | BN61: 40.388 | BO61: 35.15565 | BP61: 35.84435 | BQ61: 26.7381 | BR61: 27.2619 | BS61: 24.7575 | BT61: 25.2425 | BU61: 17.8254 | BV61: 18.1746 | BW61: 17.8254 | BX61: 18.1746 | BY61: 60 | BZ61: 5 | CA61: 1114 | CB61: 110 | CC61: 118 | CD61: 472 | CE61: 65 | CG61: 59 | CH61: 170 | CI61: 520 | CJ61: 581 | CK61: 290 | CL61: 481 | CM61: 746 | CN61: 247 | CP61: 202 | CQ61: 473 | CR61: 1133
B62: 04 | C62: 55 | D62: 5676 | E62: PUESTO SALUD JOSE C. MARIATEGUI | F62: 4983 | H62: 2467.33245 | I62: 2515.66755 | K62: 54.4665 | L62: 55.5335 | M62: 50.01015 | N62: 50.98985 | O62: 46.5441 | P62: 47.4559 | Q62: 44.5635 | R62: 45.4365 | S62: 43.07805 | T62: 43.92195 | U62: 42.5829 | V62: 43.4171 | W62: 42.5829 | X62: 43.4171 | Y62: 43.07805 | Z62: 43.92195 | AA62: 44.06835 | AB62: 44.93165 | AC62: 45.5538 | AD62: 46.4462 | AE62: 47.5344 | AF62: 48.4656 | AG62: 49.515 | AH62: 50.485 | AI62: 50.5053 | AJ62: 51.4947 | AK62: 51.4956 | AL62: 52.5044 | AM62: 51.4956 | AN62: 52.5044 | AO62: 51.99075 | AP62: 53.00925 | AQ62: 51.99075 | AR62: 53.00925 | AS62: 51.99075 | AT62: 53.00925 | AU62: 51.4956 | AV62: 52.5044 | AW62: 50.01015 | AX62: 50.98985 | AY62: 225.29325 | AZ62: 229.70675 | BA62: 192.61335 | BB62: 196.38665 | BC62: 176.76855 | BD62: 180.23145 | BE62: 155.97225 | BF62: 159.02775 | BG62: 143.09835 | BH62: 145.90165 | BI62: 136.6614 | BJ62: 139.3386 | BK62: 107.44755 | BL62: 109.55245 | BM62: 93.58335 | BN62: 95.41665 | BO62: 77.2434 | BP62: 78.7566 | BQ62: 61.89375 | BR62: 63.10625 | BS62: 53.97135 | BT62: 55.02865 | BU62: 39.11685 | BV62: 39.88315 | BW62: 39.11685 | BX62: 39.88315 | BY62: 110 | BZ62: 8 | CA62: 2431 | CB62: 240 | CC62: 258 | CD62: 1029 | CE62: 140 | CG62: 110 | CH62: 372 | CI62: 1118 | CJ62: 1261 | CK62: 625 | CL62: 1049 | CM62: 1643 | CN62: 548 | CP62: 440 | CQ62: 1026 | CR62: 2487
B63: 04 | C63: 56 | D63: 5677 | E63: PUESTO SALUD MEDIO MUNDO | F63: 4360 | H63: 2158.854 | I63: 2201.146 | K63: 47.5344 | L63: 48.4656 | M63: 43.5732 | N63: 44.4268 | O63: 40.6023 | P63: 41.3977 | Q63: 38.6217 | R63: 39.3783 | S63: 37.6314 | T63: 38.3686 | U63: 37.13625 | V63: 37.86375 | W63: 37.13625 | X63: 37.86375 | Y63: 37.6314 | Z63: 38.3686 | AA63: 38.6217 | AB63: 39.3783 | AC63: 40.10715 | AD63: 40.89285 | AE63: 41.5926 | AF63: 42.4074 | AG63: 43.07805 | AH63: 43.92195 | AI63: 44.5635 | AJ63: 45.4365 | AK63: 45.05865 | AL63: 45.94135 | AM63: 45.05865 | AN63: 45.94135 | AO63: 45.5538 | AP63: 46.4462 | AQ63: 46.04895 | AR63: 46.95105 | AS63: 46.04895 | AT63: 46.95105 | AU63: 44.5635 | AV63: 45.4365 | AW63: 43.5732 | AX63: 44.4268 | AY63: 197.0697 | AZ63: 200.9303 | BA63: 168.84615 | BB63: 172.15385 | BC63: 154.4868 | BD63: 157.5132 | BE63: 136.16625 | BF63: 138.83375 | BG63: 125.7681 | BH63: 128.2319 | BI63: 119.33115 | BJ63: 121.66885 | BK63: 94.0785 | BL63: 95.9215 | BM63: 81.69975 | BN63: 83.30025 | BO63: 67.3404 | BP63: 68.6596 | BQ63: 53.97135 | BR63: 55.02865 | BS63: 47.03925 | BT63: 47.96075 | BU63: 34.6605 | BV63: 35.3395 | BW63: 34.6605 | BX63: 35.3395 | BY63: 97 | BZ63: 7 | CA63: 2128 | CB63: 210 | CC63: 225 | CD63: 900 | CE63: 122 | CG63: 96 | CH63: 324 | CI63: 976 | CJ63: 1106 | CK63: 550 | CL63: 917 | CM63: 1437 | CN63: 480 | CP63: 385 | CQ63: 899 | CR63: 2176
B64: 04 | C64: 57 | D64: 5678 | E64: PUESTO SALUD TIROLER | F64: 831 | H64: 411.46965 | I64: 419.53035 | K64: 4.45635 | L64: 4.54365 | M64: 8.41755 | N64: 8.58245 | O64: 7.9224 | P64: 8.0776 | Q64: 7.42725 | R64: 7.57275 | S64: 6.9321 | T64: 7.0679 | U64: 6.9321 | V64: 7.0679 | W64: 6.9321 | X64: 7.0679 | Y64: 7.42725 | Z64: 7.57275 | AA64: 7.42725 | AB64: 7.57275 | AC64: 7.42725 | AD64: 7.57275 | AE64: 7.9224 | AF64: 8.0776 | AG64: 8.41755 | AH64: 8.58245 | AI64: 8.41755 | AJ64: 8.58245 | AK64: 8.41755 | AL64: 8.58245 | AM64: 8.41755 | AN64: 8.58245 | AO64: 8.9127 | AP64: 9.0873 | AQ64: 8.9127 | AR64: 9.0873 | AS64: 8.9127 | AT64: 9.0873 | AU64: 8.41755 | AV64: 8.58245 | AW64: 8.41755 | AX64: 8.58245 | AY64: 37.6314 | AZ64: 38.3686 | BA64: 32.18475 | BB64: 32.81525 | BC64: 29.21385 | BD64: 29.78615 | BE64: 25.7478 | BF64: 26.2522 | BG64: 23.7672 | BH64: 24.2328 | BI64: 22.7769 | BJ64: 23.2231 | BK64: 17.8254 | BL64: 18.1746 | BM64: 18.32055 | BN64: 18.67945 | BO64: 12.8739 | BP64: 13.1261 | BQ64: 11.8836 | BR64: 12.1164 | BS64: 8.9127 | BT64: 9.0873 | BU64: 6.9321 | BV64: 7.0679 | BW64: 6.9321 | BX64: 7.0679 | BY64: 9 | BZ64: 1 | CA64: 405 | CB64: 40 | CC64: 43 | CD64: 172 | CE64: 11 | CG64: 9 | CH64: 62 | CI64: 177 | CJ64: 211 | CK64: 105 | CL64: 175 | CM64: 278 | CN64: 96 | CP64: 73 | CQ64: 172 | CR64: 419
A65: 150900 | C65: 58 | D65: 150900 | E65: PROVINCIA OYÓN | F65: 22217 | H65: 11000.74755 | I65: 11216.25245 | K65: 248.5653 | L65: 253.4347 | M65: 239.15745 | N65: 243.84255 | O65: 231.7302 | P65: 236.2698 | Q65: 228.7593 | R65: 233.2407 | S65: 226.28355 | T65: 230.71645 | U65: 228.26415 | V65: 232.73585 | W65: 230.7399 | X65: 235.2601 | Y65: 234.7011 | Z65: 239.2989 | AA65: 237.672 | AB65: 242.328 | AC65: 240.6429 | AD65: 245.3571 | AE65: 245.5944 | AF65: 250.4056 | AG65: 250.5459 | AH65: 255.4541 | AI65: 249.5556 | AJ65: 254.4444 | AK65: 241.13805 | AL65: 245.86195 | AM65: 226.28355 | AN65: 230.71645 | AO65: 211.42905 | AP65: 215.57095 | AQ65: 197.56485 | AR65: 201.43515 | AS65: 185.1861 | AT65: 188.8139 | AU65: 177.75885 | AV65: 181.24115 | AW65: 171.81705 | AX65: 175.18295 | AY65: 806.59935 | AZ65: 822.40065 | BA65: 858.09495 | BB65: 874.90505 | BC65: 836.30835 | BD65: 852.69165 | BE65: 821.949 | BF65: 838.051 | BG65: 618.9375 | BH65: 631.0625 | BI65: 584.277 | BJ65: 595.723 | BK65: 439.6932 | BL65: 448.3068 | BM65: 371.85765 | BN65: 379.14235 | BO65: 292.63365 | BP65: 298.36635 | BQ65: 289.1676 | BR65: 294.8324 | BS65: 243.11865 | BT65: 247.88135 | BU65: 192.1182 | BV65: 195.8818 | BW65: 142.6032 | BX65: 145.3968 | BY65: 510 | BZ65: 38 | CA65: 10387 | CB65: 1173 | CC65: 925 | CD65: 3979 | CE65: 632 | CG65: 502 | CH65: 1870 | CI65: 5741 | CJ65: 6017 | CK65: 2648 | CL65: 4068 | CM65: 7418 | CN65: 2342 | CP65: 2367 | CQ65: 4356 | CR65: 10780
A66: 150901 | C66: 59 | D66: 150901 | E66: DISTRITO OYÓN | F66: 13974 | H66: 6919.2261 | I66: 7054.7739 | K66: 166.3704 | L66: 169.6296 | M66: 159.93345 | N66: 163.06655 | O66: 155.4771 | P66: 158.5229 | Q66: 153.00135 | R66: 155.99865 | S66: 152.01105 | T66: 154.98895 | U66: 153.00135 | V66: 155.99865 | W66: 154.4868 | X66: 157.5132 | Y66: 156.4674 | Z66: 159.5326 | AA66: 158.448 | AB66: 161.552 | AC66: 160.4286 | AD66: 163.5714 | AE66: 162.90435 | AF66: 166.09565 | AG66: 166.3704 | AH66: 169.6296 | AI66: 165.3801 | AJ66: 168.6199 | AK66: 158.94315 | AL66: 162.05685 | AM66: 148.545 | AN66: 151.455 | AO66: 138.642 | AP66: 141.358 | AQ66: 128.739 | AR66: 131.261 | AS66: 120.32145 | AT66: 122.67855 | AU66: 114.8748 | AV66: 117.1252 | AW66: 111.9039 | AX66: 114.0961 | AY66: 529.31535 | AZ66: 539.68465 | BA66: 593.68485 | BB66: 605.31515 | BC66: 573.3837 | BD66: 584.6163 | BE66: 550.11165 | BF66: 560.88835 | BG66: 386.71215 | BH66: 394.28785 | BI66: 350.07105 | BJ66: 356.92895 | BK66: 260.94405 | BL66: 266.05595 | BM66: 191.62305 | BN66: 195.37695 | BO66: 128.739 | BP66: 131.261 | BQ66: 130.22445 | BR66: 132.77555 | BS66: 97.54455 | BT66: 99.45545 | BU66: 79.224 | BV66: 80.776 | BW66: 61.3986 | BX66: 62.6014 | BY66: 341 | BZ66: 26 | CA66: 6434 | CB66: 784 | CC66: 638 | CD66: 2527 | CE66: 423 | CG66: 336 | CH66: 1253 | CI66: 3835 | CJ66: 3984 | CK66: 1738 | CL66: 2726 | CM66: 4671 | CN66: 1004 | CP66: 1581 | CQ66: 2861 | CR66: 6939
B67: 05 | C67: 60 | D67: 5659 | E67: CENTRO SALUD OYON | F67: 11598 | H67: 5742.7497 | I67: 5855.2503 | K67: 138.14685 | L67: 140.85315 | M67: 132.7002 | N67: 135.2998 | O67: 129.23415 | P67: 131.76585 | Q67: 127.25355 | R67: 129.74645 | S67: 126.26325 | T67: 128.73675 | U67: 126.7584 | V67: 129.2416 | W67: 128.24385 | X67: 130.75615 | Y67: 129.7293 | Z67: 132.2707 | AA67: 131.21475 | AB67: 133.78525 | AC67: 133.19535 | AD67: 135.80465 | AE67: 135.17595 | AF67: 137.82405 | AG67: 138.14685 | AH67: 140.85315 | AI67: 137.15655 | AJ67: 139.84345 | AK67: 131.7099 | AL67: 134.2901 | AM67: 123.29235 | AN67: 125.70765 | AO67: 115.36995 | AP67: 117.63005 | AQ67: 106.9524 | AR67: 109.0476 | AS67: 100.0203 | AT67: 101.9797 | AU67: 95.0688 | AV67: 96.9312 | AW67: 93.0882 | AX67: 94.9118 | AY67: 439.19805 | AZ67: 447.80195 | BA67: 492.67425 | BB67: 502.32575 | BC67: 475.83915 | BD67: 485.16085 | BE67: 456.5283 | BF67: 465.4717 | BG67: 320.8572 | BH67: 327.1428 | BI67: 290.65305 | BJ67: 296.34695 | BK67: 216.38055 | BL67: 220.61945 | BM67: 158.94315 | BN67: 162.05685 | BO67: 106.9524 | BP67: 109.0476 | BQ67: 107.9427 | BR67: 110.0573 | BS67: 81.2046 | BT67: 82.7954 | BU67: 65.85495 | BV67: 67.14505 | BW67: 51.00045 | BX67: 51.99955 | BY67: 284 | BZ67: 22 | CA67: 5340 | CB67: 650 | CC67: 530 | CD67: 2097 | CE67: 351 | CG67: 279 | CH67: 1041 | CI67: 3183 | CJ67: 3306 | CK67: 1443 | CL67: 2262 | CM67: 3876 | CN67: 834 | CP67: 1311 | CQ67: 2375 | CR67: 5758
B68: 05 | C68: 61 | D68: 5660 | E68: PUESTO SALUD MALLAY | F68: 700 | H68: 346.605 | I68: 353.395 | K68: 8.41755 | L68: 8.58245 | M68: 7.9224 | N68: 8.0776 | O68: 7.9224 | P68: 8.0776 | Q68: 7.42725 | R68: 7.57275 | S68: 7.42725 | T68: 7.57275 | U68: 7.9224 | V68: 8.0776 | W68: 7.9224 | X68: 8.0776 | Y68: 7.9224 | Z68: 8.0776 | AA68: 7.9224 | AB68: 8.0776 | AC68: 7.9224 | AD68: 8.0776 | AE68: 7.9224 | AF68: 8.0776 | AG68: 8.41755 | AH68: 8.58245 | AI68: 8.41755 | AJ68: 8.58245 | AK68: 7.9224 | AL68: 8.0776 | AM68: 7.42725 | AN68: 7.57275 | AO68: 6.9321 | AP68: 7.0679 | AQ68: 6.43695 | AR68: 6.56305 | AS68: 5.9418 | AT68: 6.0582 | AU68: 5.9418 | AV68: 6.0582 | AW68: 5.44665 | AX68: 5.55335 | AY68: 26.7381 | AZ68: 27.2619 | BA68: 29.709 | BB68: 30.291 | BC68: 28.7187 | BD68: 29.2813 | BE68: 27.7284 | BF68: 28.2716 | BG68: 19.806 | BH68: 20.194 | BI68: 17.33025 | BJ68: 17.66975 | BK68: 12.8739 | BL68: 13.1261 | BM68: 9.40785 | BN68: 9.59215 | BO68: 6.43695 | BP68: 6.56305 | BQ68: 6.43695 | BR68: 6.56305 | BS68: 4.9515 | BT68: 5.0485 | BU68: 3.9612 | BV68: 4.0388 | BW68: 2.9709 | BX68: 3.0291 | BY68: 17 | BZ68: 1 | CA68: 322 | CB68: 39 | CC68: 32 | CD68: 127 | CE68: 21 | CG68: 17 | CH68: 62 | CI68: 192 | CJ68: 200 | CK68: 87 | CL68: 137 | CM68: 234 | CN68: 50 | CP68: 80 | CQ68: 143 | CR68: 348
B69: 05 | C69: 62 | D69: 5661 | E69: PUESTO SALUD NAVA | F69: 139 | H69: 68.82585 | I69: 70.17415 | K69: 1.48545 | L69: 1.51455 | M69: 1.48545 | N69: 1.51455 | O69: 1.48545 | P69: 1.51455 | Q69: 1.48545 | R69: 1.51455 | S69: 1.48545 | T69: 1.51455 | U69: 1.48545 | V69: 1.51455 | W69: 1.48545 | X69: 1.51455 | Y69: 1.9806 | Z69: 2.0194 | AA69: 1.48545 | AB69: 1.51455 | AC69: 1.48545 | AD69: 1.51455 | AE69: 1.48545 | AF69: 1.51455 | AG69: 1.48545 | AH69: 1.51455 | AI69: 1.48545 | AJ69: 1.51455 | AK69: 1.48545 | AL69: 1.51455 | AM69: 1.48545 | AN69: 1.51455 | AO69: 1.48545 | AP69: 1.51455 | AQ69: 1.48545 | AR69: 1.51455 | AS69: 1.48545 | AT69: 1.51455 | AU69: 0.9903 | AV69: 1.0097 | AW69: 0.9903 | AX69: 1.0097 | AY69: 5.44665 | AZ69: 5.55335 | BA69: 5.9418 | BB69: 6.0582 | BC69: 5.9418 | BD69: 6.0582 | BE69: 5.44665 | BF69: 5.55335 | BG69: 3.9612 | BH69: 4.0388 | BI69: 3.46605 | BJ69: 3.53395 | BK69: 2.47575 | BL69: 2.52425 | BM69: 1.9806 | BN69: 2.0194 | BO69: 1.48545 | BP69: 1.51455 | BQ69: 1.48545 | BR69: 1.51455 | BS69: 0.9903 | BT69: 1.0097 | BU69: 0.49515 | BV69: 0.50485 | BW69: 0.49515 | BX69: 0.50485 | BY69: 3 | BZ69: 0 | CA69: 64 | CB69: 8 | CC69: 6 | CD69: 25 | CE69: 4 | CG69: 3 | CH69: 12 | CI69: 37 | CJ69: 40 | CK69: 18 | CL69: 27 | CM69: 47 | CN69: 10 | CP69: 16 | CQ69: 28 | CR69: 70
B70: 05 | C70: 63 | D70: 5662 | E70: PUESTO SALUD TINTA | F70: 419 | H70: 207.46785 | I70: 211.53215 | K70: 4.9515 | L70: 5.0485 | M70: 4.9515 | N70: 5.0485 | O70: 4.45635 | P70: 4.54365 | Q70: 4.45635 | R70: 4.54365 | S70: 4.45635 | T70: 4.54365 | U70: 4.45635 | V70: 4.54365 | W70: 4.45635 | X70: 4.54365 | Y70: 4.45635 | Z70: 4.54365 | AA70: 4.9515 | AB70: 5.0485 | AC70: 4.9515 | AD70: 5.0485 | AE70: 5.44665 | AF70: 5.55335 | AG70: 4.9515 | AH70: 5.0485 | AI70: 4.9515 | AJ70: 5.0485 | AK70: 4.9515 | AL70: 5.0485 | AM70: 4.45635 | AN70: 4.54365 | AO70: 3.9612 | AP70: 4.0388 | AQ70: 3.9612 | AR70: 4.0388 | AS70: 3.46605 | AT70: 3.53395 | AU70: 3.46605 | AV70: 3.53395 | AW70: 3.46605 | AX70: 3.53395 | AY70: 15.8448 | AZ70: 16.1552 | BA70: 17.8254 | BB70: 18.1746 | BC70: 16.8351 | BD70: 17.1649 | BE70: 16.33995 | BF70: 16.66005 | BG70: 11.38845 | BH70: 11.61155 | BI70: 10.39815 | BJ70: 10.60185 | BK70: 8.41755 | BL70: 8.58245 | BM70: 5.9418 | BN70: 6.0582 | BO70: 3.9612 | BP70: 4.0388 | BQ70: 3.9612 | BR70: 4.0388 | BS70: 2.47575 | BT70: 2.52425 | BU70: 2.47575 | BV70: 2.52425 | BW70: 1.9806 | BX70: 2.0194 | BY70: 10 | BZ70: 1 | CA70: 193 | CB70: 24 | CC70: 19 | CD70: 76 | CE70: 13 | CG70: 10 | CH70: 37 | CI70: 115 | CJ70: 120 | CK70: 52 | CL70: 82 | CM70: 140 | CN70: 30 | CP70: 47 | CQ70: 87 | CR70: 208
B71: 05 | C71: 64 | D71: 5648 | E71: PUESTO SALUD RAPAZ | F71: 1118 | H71: 553.5777 | I71: 564.4223 | K71: 13.36905 | L71: 13.63095 | M71: 12.8739 | N71: 13.1261 | O71: 12.37875 | P71: 12.62125 | Q71: 12.37875 | R71: 12.62125 | S71: 12.37875 | T71: 12.62125 | U71: 12.37875 | V71: 12.62125 | W71: 12.37875 | X71: 12.62125 | Y71: 12.37875 | Z71: 12.62125 | AA71: 12.8739 | AB71: 13.1261 | AC71: 12.8739 | AD71: 13.1261 | AE71: 12.8739 | AF71: 13.1261 | AG71: 13.36905 | AH71: 13.63095 | AI71: 13.36905 | AJ71: 13.63095 | AK71: 12.8739 | AL71: 13.1261 | AM71: 11.8836 | AN71: 12.1164 | AO71: 10.8933 | AP71: 11.1067 | AQ71: 9.903 | AR71: 10.097 | AS71: 9.40785 | AT71: 9.59215 | AU71: 9.40785 | AV71: 9.59215 | AW71: 8.9127 | AX71: 9.0873 | AY71: 42.08775 | AZ71: 42.91225 | BA71: 47.5344 | BB71: 48.4656 | BC71: 46.04895 | BD71: 46.95105 | BE71: 44.06835 | BF71: 44.93165 | BG71: 30.6993 | BH71: 31.3007 | BI71: 28.22355 | BJ71: 28.77645 | BK71: 20.7963 | BL71: 21.2037 | BM71: 15.34965 | BN71: 15.65035 | BO71: 9.903 | BP71: 10.097 | BQ71: 10.39815 | BR71: 10.60185 | BS71: 7.9224 | BT71: 8.0776 | BU71: 6.43695 | BV71: 6.56305 | BW71: 4.9515 | BX71: 5.0485 | BY71: 27 | BZ71: 2 | CA71: 515 | CB71: 63 | CC71: 51 | CD71: 202 | CE71: 34 | CG71: 27 | CH71: 101 | CI71: 308 | CJ71: 318 | CK71: 138 | CL71: 218 | CM71: 374 | CN71: 80 | CP71: 127 | CQ71: 228 | CR71: 555
A72: 150902 | C72: 65 | D72: 150902 | E72: DISTRITO ANDAJES | F72: 1056 | H72: 522.8784 | I72: 533.1216 | K72: 2.9709 | L72: 3.0291 | M72: 3.9612 | N72: 4.0388 | O72: 4.45635 | P72: 4.54365 | Q72: 4.9515 | R72: 5.0485 | S72: 4.9515 | T72: 5.0485 | U72: 5.44665 | V72: 5.55335 | W72: 5.9418 | X72: 6.0582 | Y72: 6.43695 | Z72: 6.56305 | AA72: 6.43695 | AB72: 6.56305 | AC72: 6.9321 | AD72: 7.0679 | AE72: 6.9321 | AF72: 7.0679 | AG72: 6.9321 | AH72: 7.0679 | AI72: 6.9321 | AJ72: 7.0679 | AK72: 6.9321 | AL72: 7.0679 | AM72: 7.42725 | AN72: 7.57275 | AO72: 6.9321 | AP72: 7.0679 | AQ72: 6.9321 | AR72: 7.0679 | AS72: 6.9321 | AT72: 7.0679 | AU72: 6.43695 | AV72: 6.56305 | AW72: 5.9418 | AX72: 6.0582 | AY72: 27.23325 | AZ72: 27.76675 | BA72: 34.6605 | BB72: 35.3395 | BC72: 25.25265 | BD72: 25.74735 | BE72: 36.14595 | BF72: 36.85405 | BG72: 29.21385 | BH72: 29.78615 | BI72: 38.6217 | BJ72: 39.3783 | BK72: 23.7672 | BL72: 24.2328 | BM72: 31.19445 | BN72: 31.80555 | BO72: 28.7187 | BP72: 29.2813 | BQ72: 43.5732 | BR72: 44.4268 | BS72: 25.25265 | BT72: 25.74735 | BU72: 36.6411 | BV72: 37.3589 | BW72: 21.7866 | BX72: 22.2134 | BY72: 6 | BZ72: 0 | CA72: 496 | CB72: 27 | CC72: 31 | CD72: 176 | CE72: 8 | CG72: =SUM(K72:L72) -> 6 | CH72: =SUM(M72:T72) -> 37 | CI72: =SUM(K72:AH72) -> 134 | CJ72: =SUM(U72:AT72) -> 176 | CK72: =SUM(AI72:AT72) -> 85 | CL72: =SUM(AU72:BB72) -> 150 | CM72: =SUM(BC72:BN72) -> 372 | CN72: =SUM(BO72:BX72) -> 315 | CP72: =SUM(U72:AD72) -> 63 | CQ72: =SUM(AE72:AX72) -> 138 | CR72: =SUM(AY72:BN72) -> 497
B73: 05 | C73: 66 | D73: 5654 | E73: PUESTO SALUD ANDAJES | F73: 1056 | H73: 522.8784 | I73: 533.1216 | K73: 2.9709 | L73: 3.0291 | M73: 3.9612 | N73: 4.0388 | O73: 4.45635 | P73: 4.54365 | Q73: 4.9515 | R73: 5.0485 | S73: 4.9515 | T73: 5.0485 | U73: 5.44665 | V73: 5.55335 | W73: 5.9418 | X73: 6.0582 | Y73: 6.43695 | Z73: 6.56305 | AA73: 6.43695 | AB73: 6.56305 | AC73: 6.9321 | AD73: 7.0679 | AE73: 6.9321 | AF73: 7.0679 | AG73: 6.9321 | AH73: 7.0679 | AI73: 6.9321 | AJ73: 7.0679 | AK73: 6.9321 | AL73: 7.0679 | AM73: 7.42725 | AN73: 7.57275 | AO73: 6.9321 | AP73: 7.0679 | AQ73: 6.9321 | AR73: 7.0679 | AS73: 6.9321 | AT73: 7.0679 | AU73: 6.43695 | AV73: 6.56305 | AW73: 5.9418 | AX73: 6.0582 | AY73: 27.23325 | AZ73: 27.76675 | BA73: 34.6605 | BB73: 35.3395 | BC73: 25.25265 | BD73: 25.74735 | BE73: 36.14595 | BF73: 36.85405 | BG73: 29.21385 | BH73: 29.78615 | BI73: 38.6217 | BJ73: 39.3783 | BK73: 23.7672 | BL73: 24.2328 | BM73: 31.19445 | BN73: 31.80555 | BO73: 28.7187 | BP73: 29.2813 | BQ73: 43.5732 | BR73: 44.4268 | BS73: 25.25265 | BT73: 25.74735 | BU73: 36.6411 | BV73: 37.3589 | BW73: 21.7866 | BX73: 22.2134 | BY73: 6 | BZ73: 0 | CA73: 496 | CB73: 27 | CC73: 31 | CD73: 176 | CE73: 8 | CG73: 6 | CH73: 37 | CI73: 134 | CJ73: 176 | CK73: 85 | CL73: 150 | CM73: 372 | CN73: 315 | CP73: 63 | CQ73: 138 | CR73: 497
A74: 150903 | C74: 67 | D74: 150903 | E74: DISTRITO CAUJUL | F74: 1001 | H74: 495.64515 | I74: 505.35485 | K74: 7.42725 | L74: 7.57275 | M74: 8.9127 | N74: 9.0873 | O74: 9.903 | P74: 10.097 | Q74: 10.8933 | R74: 11.1067 | S74: 11.8836 | T74: 12.1164 | U74: 11.38845 | V74: 11.61155 | W74: 11.38845 | X74: 11.61155 | Y74: 11.38845 | Z74: 11.61155 | AA74: 10.8933 | AB74: 11.1067 | AC74: 10.39815 | AD74: 10.60185 | AE74: 9.903 | AF74: 10.097 | AG74: 8.9127 | AH74: 9.0873 | AI74: 8.41755 | AJ74: 8.58245 | AK74: 8.41755 | AL74: 8.58245 | AM74: 8.41755 | AN74: 8.58245 | AO74: 7.9224 | AP74: 8.0776 | AQ74: 7.9224 | AR74: 8.0776 | AS74: 7.9224 | AT74: 8.0776 | AU74: 7.9224 | AV74: 8.0776 | AW74: 7.42725 | AX74: 7.57275 | AY74: 35.6508 | AZ74: 36.3492 | BA74: 31.19445 | BB74: 31.80555 | BC74: 34.6605 | BD74: 35.3395 | BE74: 32.6799 | BF74: 33.3201 | BG74: 26.24295 | BH74: 26.75705 | BI74: 32.18475 | BJ74: 32.81525 | BK74: 22.28175 | BL74: 22.71825 | BM74: 18.32055 | BN74: 18.67945 | BO74: 17.33025 | BP74: 17.66975 | BQ74: 23.27205 | BR74: 23.72795 | BS74: 12.8739 | BT74: 13.1261 | BU74: 11.38845 | BV74: 11.61155 | BW74: 9.903 | BX74: 10.097 | BY74: 15 | BZ74: 1 | CA74: 476 | CB74: 42 | CC74: 29 | CD74: 186 | CE74: 18 | CG74: 15 | CH74: 84 | CI74: 249 | CJ74: 249 | CK74: 99 | CL74: 166 | CM74: 336 | CN74: 151 | CP74: 112 | CQ74: 168 | CR74: 471
B75: 05 | C75: 68 | D75: 5655 | E75: PUESTO SALUD CAUJUL | F75: 1001 | H75: 495.64515 | I75: 505.35485 | K75: 7.42725 | L75: 7.57275 | M75: 8.9127 | N75: 9.0873 | O75: 9.903 | P75: 10.097 | Q75: 10.8933 | R75: 11.1067 | S75: 11.8836 | T75: 12.1164 | U75: 11.38845 | V75: 11.61155 | W75: 11.38845 | X75: 11.61155 | Y75: 11.38845 | Z75: 11.61155 | AA75: 10.8933 | AB75: 11.1067 | AC75: 10.39815 | AD75: 10.60185 | AE75: 9.903 | AF75: 10.097 | AG75: 8.9127 | AH75: 9.0873 | AI75: 8.41755 | AJ75: 8.58245 | AK75: 8.41755 | AL75: 8.58245 | AM75: 8.41755 | AN75: 8.58245 | AO75: 7.9224 | AP75: 8.0776 | AQ75: 7.9224 | AR75: 8.0776 | AS75: 7.9224 | AT75: 8.0776 | AU75: 7.9224 | AV75: 8.0776 | AW75: 7.42725 | AX75: 7.57275 | AY75: 35.6508 | AZ75: 36.3492 | BA75: 31.19445 | BB75: 31.80555 | BC75: 34.6605 | BD75: 35.3395 | BE75: 32.6799 | BF75: 33.3201 | BG75: 26.24295 | BH75: 26.75705 | BI75: 32.18475 | BJ75: 32.81525 | BK75: 22.28175 | BL75: 22.71825 | BM75: 18.32055 | BN75: 18.67945 | BO75: 17.33025 | BP75: 17.66975 | BQ75: 23.27205 | BR75: 23.72795 | BS75: 12.8739 | BT75: 13.1261 | BU75: 11.38845 | BV75: 11.61155 | BW75: 9.903 | BX75: 10.097 | BY75: 15 | BZ75: 1 | CA75: 476 | CB75: 42 | CC75: 29 | CD75: 186 | CE75: 18 | CG75: 15 | CH75: 84 | CI75: 249 | CJ75: 249 | CK75: 99 | CL75: 166 | CM75: 336 | CN75: 151 | CP75: 112 | CQ75: 168 | CR75: 471
A76: 150904 | C76: 69 | D76: 150904 | E76: DISTRITO COCHAMARCA | F76: 1586 | H76: 785.3079 | I76: 800.6921 | K76: 14.8545 | L76: 15.1455 | M76: 15.8448 | N76: 16.1552 | O76: 16.8351 | P76: 17.1649 | Q76: 17.8254 | R76: 18.1746 | S76: 17.8254 | T76: 18.1746 | U76: 19.31085 | V76: 19.68915 | W76: 19.806 | X76: 20.194 | Y76: 20.30115 | Z76: 20.69885 | AA76: 20.7963 | AB76: 21.2037 | AC76: 20.30115 | AD76: 20.69885 | AE76: 20.7963 | AF76: 21.2037 | AG76: 20.7963 | AH76: 21.2037 | AI76: 20.30115 | AJ76: 20.69885 | AK76: 19.806 | AL76: 20.194 | AM76: 18.32055 | AN76: 18.67945 | AO76: 17.33025 | AP76: 17.66975 | AQ76: 15.8448 | AR76: 16.1552 | AS76: 14.35935 | AT76: 14.64065 | AU76: 13.8642 | AV76: 14.1358 | AW76: 12.8739 | AX76: 13.1261 | AY76: 54.96165 | AZ76: 56.03835 | BA76: 38.6217 | BB76: 39.3783 | BC76: 54.96165 | BD76: 56.03835 | BE76: 51.99075 | BF76: 53.00925 | BG76: 46.04895 | BH76: 46.95105 | BI76: 37.13625 | BJ76: 37.86375 | BK76: 27.23325 | BL76: 27.76675 | BM76: 29.21385 | BN76: 29.78615 | BO76: 23.27205 | BP76: 23.72795 | BQ76: 17.33025 | BR76: 17.66975 | BS76: 18.32055 | BT76: 18.67945 | BU76: 15.34965 | BV76: 15.65035 | BW76: 12.8739 | BX76: 13.1261 | BY76: 31 | BZ76: 2 | CA76: 778 | CB76: 96 | CC76: 62 | CD76: 270 | CE76: 38 | CG76: 30 | CH76: 138 | CI76: 455 | CJ76: 501 | CK76: 214 | CL76: 243 | CM76: 498 | CN76: 176 | CP76: 203 | CQ76: 352 | CR76: 687
B77: 03 | C77: 70 | D77: 5783 | E77: PUESTO SALUD COCHAMARCA | F77: 571 | H77: 282.73065 | I77: 288.26935 | K77: 5.44665 | L77: 5.55335 | M77: 5.9418 | N77: 6.0582 | O77: 5.9418 | P77: 6.0582 | Q77: 6.43695 | R77: 6.56305 | S77: 6.43695 | T77: 6.56305 | U77: 6.9321 | V77: 7.0679 | W77: 6.9321 | X77: 7.0679 | Y77: 7.42725 | Z77: 7.57275 | AA77: 7.42725 | AB77: 7.57275 | AC77: 7.42725 | AD77: 7.57275 | AE77: 7.42725 | AF77: 7.57275 | AG77: 7.42725 | AH77: 7.57275 | AI77: 7.42725 | AJ77: 7.57275 | AK77: 6.9321 | AL77: 7.0679 | AM77: 6.43695 | AN77: 6.56305 | AO77: 6.43695 | AP77: 6.56305 | AQ77: 5.9418 | AR77: 6.0582 | AS77: 4.9515 | AT77: 5.0485 | AU77: 4.9515 | AV77: 5.0485 | AW77: 4.45635 | AX77: 4.54365 | AY77: 19.806 | AZ77: 20.194 | BA77: 13.8642 | BB77: 14.1358 | BC77: 19.806 | BD77: 20.194 | BE77: 18.8157 | BF77: 19.1843 | BG77: 16.33995 | BH77: 16.66005 | BI77: 13.36905 | BJ77: 13.63095 | BK77: 9.903 | BL77: 10.097 | BM77: 10.39815 | BN77: 10.60185 | BO77: 8.41755 | BP77: 8.58245 | BQ77: 6.43695 | BR77: 6.56305 | BS77: 6.43695 | BT77: 6.56305 | BU77: 5.44665 | BV77: 5.55335 | BW77: 4.9515 | BX77: 5.0485 | BY77: 11 | BZ77: 1 | CA77: 280 | CB77: 35 | CC77: 22 | CD77: 97 | CE77: 14 | CG77: 11 | CH77: 50 | CI77: 164 | CJ77: 180 | CK77: 77 | CL77: 87 | CM77: 179 | CN77: 64 | CP77: 73 | CQ77: 126 | CR77: 247
B78: 03 | C78: 71 | D78: 5784 | E78: PUESTO SALUD COLCAPAMPA | F78: 761 | H78: 376.80915 | I78: 384.19085 | K78: 6.9321 | L78: 7.0679 | M78: 7.42725 | N78: 7.57275 | O78: 8.41755 | P78: 8.58245 | Q78: 8.41755 | R78: 8.58245 | S78: 8.41755 | T78: 8.58245 | U78: 9.40785 | V78: 9.59215 | W78: 9.40785 | X78: 9.59215 | Y78: 9.903 | Z78: 10.097 | AA78: 9.903 | AB78: 10.097 | AC78: 9.903 | AD78: 10.097 | AE78: 9.903 | AF78: 10.097 | AG78: 9.903 | AH78: 10.097 | AI78: 9.903 | AJ78: 10.097 | AK78: 9.40785 | AL78: 9.59215 | AM78: 8.9127 | AN78: 9.0873 | AO78: 7.9224 | AP78: 8.0776 | AQ78: 7.42725 | AR78: 7.57275 | AS78: 6.9321 | AT78: 7.0679 | AU78: 6.9321 | AV78: 7.0679 | AW78: 6.43695 | AX78: 6.56305 | AY78: 26.24295 | AZ78: 26.75705 | BA78: 18.8157 | BB78: 19.1843 | BC78: 26.24295 | BD78: 26.75705 | BE78: 24.7575 | BF78: 25.2425 | BG78: 22.28175 | BH78: 22.71825 | BI78: 17.8254 | BJ78: 18.1746 | BK78: 12.8739 | BL78: 13.1261 | BM78: 14.35935 | BN78: 14.64065 | BO78: 11.38845 | BP78: 11.61155 | BQ78: 7.9224 | BR78: 8.0776 | BS78: 8.9127 | BT78: 9.0873 | BU78: 7.42725 | BV78: 7.57275 | BW78: 5.9418 | BX78: 6.0582 | BY78: 15 | BZ78: 1 | CA78: 374 | CB78: 46 | CC78: 30 | CD78: 130 | CE78: 18 | CG78: 14 | CH78: 66 | CI78: 218 | CJ78: 240 | CK78: 102 | CL78: 118 | CM78: 239 | CN78: 84 | CP78: 98 | CQ78: 169 | CR78: 330
B79: 03 | C79: 72 | D79: 5785 | E79: PUESTO SALUD YARUCAYA | F79: 254 | H79: 125.7681 | I79: 128.2319 | K79: 2.47575 | L79: 2.52425 | M79: 2.47575 | N79: 2.52425 | O79: 2.47575 | P79: 2.52425 | Q79: 2.9709 | R79: 3.0291 | S79: 2.9709 | T79: 3.0291 | U79: 2.9709 | V79: 3.0291 | W79: 3.46605 | X79: 3.53395 | Y79: 2.9709 | Z79: 3.0291 | AA79: 3.46605 | AB79: 3.53395 | AC79: 2.9709 | AD79: 3.0291 | AE79: 3.46605 | AF79: 3.53395 | AG79: 3.46605 | AH79: 3.53395 | AI79: 2.9709 | AJ79: 3.0291 | AK79: 3.46605 | AL79: 3.53395 | AM79: 2.9709 | AN79: 3.0291 | AO79: 2.9709 | AP79: 3.0291 | AQ79: 2.47575 | AR79: 2.52425 | AS79: 2.47575 | AT79: 2.52425 | AU79: 1.9806 | AV79: 2.0194 | AW79: 1.9806 | AX79: 2.0194 | AY79: 8.9127 | AZ79: 9.0873 | BA79: 5.9418 | BB79: 6.0582 | BC79: 8.9127 | BD79: 9.0873 | BE79: 8.41755 | BF79: 8.58245 | BG79: 7.42725 | BH79: 7.57275 | BI79: 5.9418 | BJ79: 6.0582 | BK79: 4.45635 | BL79: 4.54365 | BM79: 4.45635 | BN79: 4.54365 | BO79: 3.46605 | BP79: 3.53395 | BQ79: 2.9709 | BR79: 3.0291 | BS79: 2.9709 | BT79: 3.0291 | BU79: 2.47575 | BV79: 2.52425 | BW79: 1.9806 | BX79: 2.0194 | BY79: 5 | BZ79: 0 | CA79: 124 | CB79: 15 | CC79: 10 | CD79: 43 | CE79: 6 | CG79: 5 | CH79: 22 | CI79: 73 | CJ79: 81 | CK79: 35 | CL79: 38 | CM79: 80 | CN79: 28 | CP79: 32 | CQ79: 57 | CR79: 110
A80: 150905 | C80: 73 | D80: 150905 | E80: DISTRITO NAVAN | F80: 1160 | H80: 574.374 | I80: 585.626 | K80: 18.8157 | L80: 19.1843 | M80: 15.8448 | N80: 16.1552 | O80: 12.8739 | P80: 13.1261 | Q80: 11.38845 | R80: 11.61155 | S80: 9.903 | T80: 10.097 | U80: 9.40785 | V80: 9.59215 | W80: 8.9127 | X80: 9.0873 | Y80: 8.9127 | Z80: 9.0873 | AA80: 8.9127 | AB80: 9.0873 | AC80: 8.41755 | AD80: 8.58245 | AE80: 9.903 | AF80: 10.097 | AG80: 10.39815 | AH80: 10.60185 | AI80: 10.8933 | AJ80: 11.1067 | AK80: 9.903 | AL80: 10.097 | AM80: 8.9127 | AN80: 9.0873 | AO80: 7.42725 | AP80: 7.57275 | AQ80: 6.43695 | AR80: 6.56305 | AS80: 5.9418 | AT80: 6.0582 | AU80: 6.43695 | AV80: 6.56305 | AW80: 7.42725 | AX80: 7.57275 | AY80: 47.03925 | AZ80: 47.96075 | BA80: 42.5829 | BB80: 43.4171 | BC80: 39.11685 | BD80: 39.88315 | BE80: 39.11685 | BF80: 39.88315 | BG80: 37.6314 | BH80: 38.3686 | BI80: 33.6702 | BJ80: 34.3298 | BK80: 26.24295 | BL80: 26.75705 | BM80: 19.31085 | BN80: 19.68915 | BO80: 27.7284 | BP80: 28.2716 | BQ80: 12.37875 | BR80: 12.62125 | BS80: 28.7187 | BT80: 29.2813 | BU80: 13.36905 | BV80: 13.63095 | BW80: 10.39815 | BX80: 10.60185 | BY80: 39 | BZ80: 3 | CA80: 564 | CB80: 48 | CC80: 29 | CD80: 216 | CE80: 48 | CG80: 38 | CH80: 101 | CI80: 270 | CJ80: 231 | CK80: 100 | CL80: 209 | CM80: 394 | CN80: 187 | CP80: 90 | CQ80: 169 | CR80: 575
B81: 05 | C81: 74 | D81: 5656 | E81: PUESTO SALUD NAVAN | F81: 1160 | H81: 574.374 | I81: 585.626 | K81: 18.8157 | L81: 19.1843 | M81: 15.8448 | N81: 16.1552 | O81: 12.8739 | P81: 13.1261 | Q81: 11.38845 | R81: 11.61155 | S81: 9.903 | T81: 10.097 | U81: 9.40785 | V81: 9.59215 | W81: 8.9127 | X81: 9.0873 | Y81: 8.9127 | Z81: 9.0873 | AA81: 8.9127 | AB81: 9.0873 | AC81: 8.41755 | AD81: 8.58245 | AE81: 9.903 | AF81: 10.097 | AG81: 10.39815 | AH81: 10.60185 | AI81: 10.8933 | AJ81: 11.1067 | AK81: 9.903 | AL81: 10.097 | AM81: 8.9127 | AN81: 9.0873 | AO81: 7.42725 | AP81: 7.57275 | AQ81: 6.43695 | AR81: 6.56305 | AS81: 5.9418 | AT81: 6.0582 | AU81: 6.43695 | AV81: 6.56305 | AW81: 7.42725 | AX81: 7.57275 | AY81: 47.03925 | AZ81: 47.96075 | BA81: 42.5829 | BB81: 43.4171 | BC81: 39.11685 | BD81: 39.88315 | BE81: 39.11685 | BF81: 39.88315 | BG81: 37.6314 | BH81: 38.3686 | BI81: 33.6702 | BJ81: 34.3298 | BK81: 26.24295 | BL81: 26.75705 | BM81: 19.31085 | BN81: 19.68915 | BO81: 27.7284 | BP81: 28.2716 | BQ81: 12.37875 | BR81: 12.62125 | BS81: 28.7187 | BT81: 29.2813 | BU81: 13.36905 | BV81: 13.63095 | BW81: 10.39815 | BX81: 10.60185 | BY81: 39 | BZ81: 3 | CA81: 564 | CB81: 48 | CC81: 29 | CD81: 216 | CE81: 48 | CG81: 38 | CH81: 101 | CI81: 270 | CJ81: 231 | CK81: 100 | CL81: 209 | CM81: 394 | CN81: 187 | CP81: 90 | CQ81: 169 | CR81: 575
A82: 150906 | C82: 75 | D82: 150906 | E82: DISTRITO PACHANGARA | F82: 3440 | H82: 1703.316 | I82: 1736.684 | K82: 38.12655 | L82: 38.87345 | M82: 34.6605 | N82: 35.3395 | O82: 32.18475 | P82: 32.81525 | Q82: 30.6993 | R82: 31.3007 | S82: 29.709 | T82: 30.291 | U82: 29.709 | V82: 30.291 | W82: 30.20415 | X82: 30.79585 | Y82: 31.19445 | Z82: 31.80555 | AA82: 32.18475 | AB82: 32.81525 | AC82: 34.16535 | AD82: 34.83465 | AE82: 35.15565 | AF82: 35.84435 | AG82: 37.13625 | AH82: 37.86375 | AI82: 37.6314 | AJ82: 38.3686 | AK82: 37.13625 | AL82: 37.86375 | AM82: 34.6605 | AN82: 35.3395 | AO82: 33.17505 | AP82: 33.82495 | AQ82: 31.6896 | AR82: 32.3104 | AS82: 29.709 | AT82: 30.291 | AU82: 28.22355 | AV82: 28.77645 | AW82: 26.24295 | AX82: 26.75705 | AY82: 112.39905 | AZ82: 114.60095 | BA82: 117.35055 | BB82: 119.64945 | BC82: 108.933 | BD82: 111.067 | BE82: 111.9039 | BF82: 114.0961 | BG82: 93.0882 | BH82: 94.9118 | BI82: 92.59305 | BJ82: 94.40695 | BK82: 79.224 | BL82: 80.776 | BM82: 82.1949 | BN82: 83.8051 | BO82: 66.84525 | BP82: 68.15475 | BQ82: 62.3889 | BR82: 63.6111 | BS82: 60.4083 | BT82: 61.5917 | BU82: 36.14595 | BV82: 36.85405 | BW82: 26.24295 | BX82: 26.75705 | BY82: 78 | BZ82: 6 | CA82: 1639 | CB82: 176 | CC82: 136 | CD82: 604 | CE82: 97 | CG82: 77 | CH82: 257 | CI82: 798 | CJ82: 876 | CK82: 412 | CL82: 574 | CM82: 1147 | CN82: 509 | CP82: 318 | CQ82: 668 | CR82: 1611
B83: 05 | C83: 76 | D83: 5657 | E83: CENTRO SALUD CHURIN | F83: 2752 | H83: 1362.6528 | I83: 1389.3472 | K83: 30.6993 | L83: 31.3007 | M83: 27.7284 | N83: 28.2716 | O83: 25.7478 | P83: 26.2522 | Q83: 24.26235 | R83: 24.73765 | S83: 23.7672 | T83: 24.2328 | U83: 23.7672 | V83: 24.2328 | W83: 24.26235 | X83: 24.73765 | Y83: 24.7575 | Z83: 25.2425 | AA83: 25.7478 | AB83: 26.2522 | AC83: 27.23325 | AD83: 27.76675 | AE83: 28.22355 | AF83: 28.77645 | AG83: 29.709 | AH83: 30.291 | AI83: 30.20415 | AJ83: 30.79585 | AK83: 29.709 | AL83: 30.291 | AM83: 27.7284 | AN83: 28.2716 | AO83: 26.7381 | AP83: 27.2619 | AQ83: 25.25265 | AR83: 25.74735 | AS83: 23.7672 | AT83: 24.2328 | AU83: 22.7769 | AV83: 23.2231 | AW83: 20.7963 | AX83: 21.2037 | AY83: 90.1173 | AZ83: 91.8827 | BA83: 94.0785 | BB83: 95.9215 | BC83: 87.1464 | BD83: 88.8536 | BE83: 89.62215 | BF83: 91.37785 | BG83: 74.2725 | BH83: 75.7275 | BI83: 73.77735 | BJ83: 75.22265 | BK83: 63.3792 | BL83: 64.6208 | BM83: 65.85495 | BN83: 67.14505 | BO83: 53.4762 | BP83: 54.5238 | BQ83: 50.01015 | BR83: 50.98985 | BS83: 48.5247 | BT83: 49.4753 | BU83: 28.7187 | BV83: 29.2813 | BW83: 20.7963 | BX83: 21.2037 | BY83: 62 | BZ83: 4 | CA83: 1311 | CB83: 141 | CC83: 109 | CD83: 484 | CE83: 78 | CG83: 62 | CH83: 205 | CI83: 638 | CJ83: 701 | CK83: 330 | CL83: 460 | CM83: 917 | CN83: 407 | CP83: 254 | CQ83: 535 | CR83: 1289
B84: 05 | C84: 77 | D84: 5658 | E84: PUESTO SALUD HUANCAHUASI | F84: 308 | H84: 152.5062 | I84: 155.4938 | K84: 3.46605 | L84: 3.53395 | M84: 2.9709 | N84: 3.0291 | O84: 2.9709 | P84: 3.0291 | Q84: 2.9709 | R84: 3.0291 | S84: 2.47575 | T84: 2.52425 | U84: 2.47575 | V84: 2.52425 | W84: 2.47575 | X84: 2.52425 | Y84: 2.9709 | Z84: 3.0291 | AA84: 2.9709 | AB84: 3.0291 | AC84: 2.9709 | AD84: 3.0291 | AE84: 2.9709 | AF84: 3.0291 | AG84: 3.46605 | AH84: 3.53395 | AI84: 3.46605 | AJ84: 3.53395 | AK84: 3.46605 | AL84: 3.53395 | AM84: 2.9709 | AN84: 3.0291 | AO84: 2.9709 | AP84: 3.0291 | AQ84: 2.9709 | AR84: 3.0291 | AS84: 2.47575 | AT84: 2.52425 | AU84: 2.47575 | AV84: 2.52425 | AW84: 2.47575 | AX84: 2.52425 | AY84: 9.903 | AZ84: 10.097 | BA84: 10.39815 | BB84: 10.60185 | BC84: 9.903 | BD84: 10.097 | BE84: 9.903 | BF84: 10.097 | BG84: 8.41755 | BH84: 8.58245 | BI84: 8.41755 | BJ84: 8.58245 | BK84: 6.9321 | BL84: 7.0679 | BM84: 7.42725 | BN84: 7.57275 | BO84: 5.9418 | BP84: 6.0582 | BQ84: 5.44665 | BR84: 5.55335 | BS84: 5.44665 | BT84: 5.55335 | BU84: 3.46605 | BV84: 3.53395 | BW84: 2.47575 | BX84: 2.52425 | BY84: 7 | BZ84: 1 | CA84: 148 | CB84: 16 | CC84: 12 | CD84: 54 | CE84: 9 | CG84: 7 | CH84: 23 | CI84: 71 | CJ84: 78 | CK84: 37 | CL84: 51 | CM84: 103 | CN84: 46 | CP84: 28 | CQ84: 60 | CR84: 144
B85: 05 | C85: 78 | D85: 5649 | E85: PUESTO SALUD PACHANGARA | F85: 380 | H85: 188.157 | I85: 191.843 | K85: 3.9612 | L85: 4.0388 | M85: 3.9612 | N85: 4.0388 | O85: 3.46605 | P85: 3.53395 | Q85: 3.46605 | R85: 3.53395 | S85: 3.46605 | T85: 3.53395 | U85: 3.46605 | V85: 3.53395 | W85: 3.46605 | X85: 3.53395 | Y85: 3.46605 | Z85: 3.53395 | AA85: 3.46605 | AB85: 3.53395 | AC85: 3.9612 | AD85: 4.0388 | AE85: 3.9612 | AF85: 4.0388 | AG85: 3.9612 | AH85: 4.0388 | AI85: 3.9612 | AJ85: 4.0388 | AK85: 3.9612 | AL85: 4.0388 | AM85: 3.9612 | AN85: 4.0388 | AO85: 3.46605 | AP85: 3.53395 | AQ85: 3.46605 | AR85: 3.53395 | AS85: 3.46605 | AT85: 3.53395 | AU85: 2.9709 | AV85: 3.0291 | AW85: 2.9709 | AX85: 3.0291 | AY85: 12.37875 | AZ85: 12.62125 | BA85: 12.8739 | BB85: 13.1261 | BC85: 11.8836 | BD85: 12.1164 | BE85: 12.37875 | BF85: 12.62125 | BG85: 10.39815 | BH85: 10.60185 | BI85: 10.39815 | BJ85: 10.60185 | BK85: 8.9127 | BL85: 9.0873 | BM85: 8.9127 | BN85: 9.0873 | BO85: 7.42725 | BP85: 7.57275 | BQ85: 6.9321 | BR85: 7.0679 | BS85: 6.43695 | BT85: 6.56305 | BU85: 3.9612 | BV85: 4.0388 | BW85: 2.9709 | BX85: 3.0291 | BY85: 9 | BZ85: 1 | CA85: 180 | CB85: 19 | CC85: 15 | CD85: 66 | CE85: 10 | CG85: 8 | CH85: 29 | CI85: 89 | CJ85: 97 | CK85: 45 | CL85: 63 | CM85: 127 | CN85: 56 | CP85: 36 | CQ85: 73 | CR85: 178
C86: 79 | E86: DISTRITO HUARAL | F86: 1182 | H86: 585.2673 | I86: 596.7327 | K86: 8.9127 | L86: 9.0873 | M86: 10.8933 | N86: 11.1067 | O86: 11.8836 | P86: 12.1164 | Q86: 12.8739 | R86: 13.1261 | S86: 13.36905 | T86: 13.63095 | U86: 13.8642 | V86: 14.1358 | W86: 13.36905 | X86: 13.63095 | Y86: 13.36905 | Z86: 13.63095 | AA86: 12.37875 | AB86: 12.62125 | AC86: 11.8836 | AD86: 12.1164 | AE86: 10.8933 | AF86: 11.1067 | AG86: 10.39815 | AH86: 10.60185 | AI86: 9.40785 | AJ86: 9.59215 | AK86: 8.9127 | AL86: 9.0873 | AM86: 8.9127 | AN86: 9.0873 | AO86: 8.9127 | AP86: 9.0873 | AQ86: 8.9127 | AR86: 9.0873 | AS86: 8.41755 | AT86: 8.58245 | AU86: 8.9127 | AV86: 9.0873 | AW86: 8.9127 | AX86: 9.0873 | AY86: 46.04895 | AZ86: 46.95105 | BA86: 42.08775 | BB86: 42.91225 | BC86: 36.6411 | BD86: 37.3589 | BE86: 33.6702 | BF86: 34.3298 | BG86: 33.17505 | BH86: 33.82495 | BI86: 36.6411 | BJ86: 37.3589 | BK86: 27.7284 | BL86: 28.2716 | BM86: 21.7866 | BN86: 22.2134 | BO86: 18.32055 | BP86: 18.67945 | BQ86: 27.23325 | BR86: 27.76675 | BS86: 18.8157 | BT86: 19.1843 | BU86: 13.36905 | BV86: 13.63095 | BW86: 14.35935 | BX86: 14.64065 | BY86: 18 | BZ86: 1 | CA86: 556 | CB86: 44 | CC86: 35 | CD86: 228 | CE86: 22 | CG86: 18 | CH86: 99 | CI86: 291 | CJ86: 282 | CK86: 108 | CL86: 214 | CM86: 383 | CN86: 186 | CP86: 131 | CQ86: 187 | CR86: 561
C87: 80 | D87: 150600 | E87: PUESTO SALUD ACOTAMA IHUARI (46.8%) | F87: 1182 | H87: 585.2673 | I87: 596.7327 | K87: 8.9127 | L87: 9.0873 | M87: 10.8933 | N87: 11.1067 | O87: 11.8836 | P87: 12.1164 | Q87: 12.8739 | R87: 13.1261 | S87: 13.36905 | T87: 13.63095 | U87: 13.8642 | V87: 14.1358 | W87: 13.36905 | X87: 13.63095 | Y87: 13.36905 | Z87: 13.63095 | AA87: 12.37875 | AB87: 12.62125 | AC87: 11.8836 | AD87: 12.1164 | AE87: 10.8933 | AF87: 11.1067 | AG87: 10.39815 | AH87: 10.60185 | AI87: 9.40785 | AJ87: 9.59215 | AK87: 8.9127 | AL87: 9.0873 | AM87: 8.9127 | AN87: 9.0873 | AO87: 8.9127 | AP87: 9.0873 | AQ87: 8.9127 | AR87: 9.0873 | AS87: 8.41755 | AT87: 8.58245 | AU87: 8.9127 | AV87: 9.0873 | AW87: 8.9127 | AX87: 9.0873 | AY87: 46.04895 | AZ87: 46.95105 | BA87: 42.08775 | BB87: 42.91225 | BC87: 36.6411 | BD87: 37.3589 | BE87: 33.6702 | BF87: 34.3298 | BG87: 33.17505 | BH87: 33.82495 | BI87: 36.6411 | BJ87: 37.3589 | BK87: 27.7284 | BL87: 28.2716 | BM87: 21.7866 | BN87: 22.2134 | BO87: 18.32055 | BP87: 18.67945 | BQ87: 27.23325 | BR87: 27.76675 | BS87: 18.8157 | BT87: 19.1843 | BU87: 13.36905 | BV87: 13.63095 | BW87: 14.35935 | BX87: 14.64065 | BY87: 18 | BZ87: 1 | CA87: 556 | CB87: 44 | CC87: 35 | CD87: 228 | CE87: 22 | CG87: 18 | CH87: 99 | CI87: 291 | CJ87: 282 | CK87: 108 | CL87: 214 | CM87: 383 | CN87: 186 | CP87: 131 | CQ87: 187 | CR87: 561
A88: 150606 | B88: 03 | C88: 81
C89: 82 | E89: MICRORED HUAURA | F89: =SUM(H89:I89) -> 36965 | H89: =K89+M89+O89+Q89+S89+U89+W89+Y89+AA89+AC89+AE89+AG89+AI89+AK89+AM89+AO89+AQ89+AS89+AU89+AW89+AY89+BA89+BC89+BE89+BG89+BI89+BK89+BM89+BO89+BQ89+BS89+BU89+BW89 -> 18303.21975 | I89: =L89+N89+P89+R89+T89+V89+X89+Z89+AB89+AD89+AF89+AH89+AJ89+AL89+AN89+AP89+AR89+AT89+AV89+AX89+AZ89+BB89+BD89+BF89+BH89+BJ89+BL89+BN89+BP89+BR89+BT89+BV89+BX89 -> 18661.78025 | K89: =K13+K24 -> 336.20685 | L89: =L13+L24 -> 342.79315 | M89: 325.8087 | N89: 332.1913 | O89: 319.8669 | P89: 326.1331 | Q89: 318.38145 | R89: 324.61855 | S89: 320.8572 | T89: 327.1428 | U89: 325.31355 | V89: 331.68645 | W89: 332.7408 | X89: 339.2592 | Y89: 342.14865 | Z89: 348.85135 | AA89: 353.04195 | AB89: 359.95805 | AC89: 364.4304 | AD89: 371.5696 | AE89: 375.81885 | AF89: 383.18115 | AG89: 387.2073 | AH89: 394.7927 | AI89: 397.60545 | AJ89: 405.39455 | AK89: 405.0327 | AL89: 412.9673 | AM89: 409.48905 | AN89: 417.51095 | AO89: 413.9454 | AP89: 422.0546 | AQ89: 418.40175 | AR89: 426.59825 | AS89: 415.43085 | AT89: 423.56915 | AU89: 401.56665 | AV89: 409.43335 | AW89: 381.2655 | AX89: 388.7345 | AY89: 1640.43195 | AZ89: 1672.56805 | BA89: 1438.9059 | BB89: 1467.0941 | BC89: 1373.5461 | BD89: 1400.4539 | BE89: 1204.2048 | BF89: 1227.7952 | BG89: 1086.85425 | BH89: 1108.14575 | BI89: 998.71755 | BJ89: 1018.28245 | BK89: 791.74485 | BL89: 807.25515 | BM89: 640.22895 | BN89: 652.77105 | BO89: 514.46085 | BP89: 524.53915 | BQ89: 429.29505 | BR89: 437.70495 | BS89: 383.2461 | BT89: 390.7539 | BU89: 234.7011 | BV89: 239.2989 | BW89: 222.32235 | BX89: =BX13+BX24 -> 226.67765 | BY89: 685 | BZ89: 52 | CA89: 18235 | CB89: 1892 | CC89: 1967 | CD89: 7914 | CE89: 848 | CG89: =CG13+CG24 -> 679 | CH89: 2595 | CI89: 8284 | CJ89: 9978 | CK89: 4968 | CL89: 7800 | CM89: 12310 | CN89: 3603 | CP89: =CP13+CP24 -> 3469 | CQ89: 8090 | CR89: 18529
B90: 1 | C90: 83 | E90: MICRORED HUALMAY | F90: =SUM(H90:I90) -> 79188 | H90: =K90+M90+O90+Q90+S90+U90+W90+Y90+AA90+AC90+AE90+AG90+AI90+AK90+AM90+AO90+AQ90+AS90+AU90+AW90+AY90+BA90+BC90+BE90+BG90+BI90+BK90+BM90+BO90+BQ90+BS90+BU90+BW90 -> 39209.9382 | I90: =L90+N90+P90+R90+T90+V90+X90+Z90+AB90+AD90+AF90+AH90+AJ90+AL90+AN90+AP90+AR90+AT90+AV90+AX90+AZ90+BB90+BD90+BF90+BH90+BJ90+BL90+BN90+BP90+BR90+BT90+BV90+BX90 -> 39978.0618 | K90: =K44+K20+K16+K12 -> 706.57905 | L90: =L44+L20+L16+L12 -> 720.42095 | M90: 673.404 | N90: 686.596 | O90: 651.6174 | P90: 664.3826 | Q90: 640.22895 | R90: 652.77105 | S90: 638.24835 | T90: 650.75165 | U90: 643.695 | V90: 656.305 | W90: 655.08345 | X90: 667.91655 | Y90: 670.92825 | Z90: 684.07175 | AA90: 689.74395 | AB90: 703.25605 | AC90: 710.0451 | AD90: 723.9549 | AE90: 732.822 | AF90: 747.178 | AG90: 757.5795 | AH90: 772.4205 | AI90: 773.91945 | AJ90: 789.08055 | AK90: 777.88065 | AL90: 793.11935 | AM90: 771.4437 | AN90: 786.5563 | AO90: 765.99705 | AP90: 781.00295 | AQ90: 759.5601 | AR90: 774.4399 | AS90: 749.6571 | AT90: 764.3429 | AU90: 735.29775 | AV90: 749.70225 | AW90: 717.9675 | AX90: 732.0325 | AY90: 3331.86435 | AZ90: 3397.13565 | BA90: 3039.72585 | BB90: 3099.27415 | BC90: 2987.7351 | BD90: 3046.2649 | BE90: 2754.0243 | BF90: 2807.9757 | BG90: 2482.18695 | BH90: 2530.81305 | BI90: 2155.8831 | BJ90: 2198.1169 | BK90: 1847.40465 | BL90: 1883.59535 | BM90: 1668.16035 | BN90: 1700.83965 | BO90: 1356.711 | BP90: 1383.289 | BQ90: 1101.70875 | BR90: 1123.29125 | BS90: 908.1051 | BT90: 925.8949 | BU90: 652.11255 | BV90: 664.88745 | BW90: 702.61785 | BX90: =BX44+BX20+BX16+BX12 -> 716.38215 | BY90: 1437 | BZ90: 110 | CA90: 39647 | CB90: 3767 | CC90: 3700 | CD90: 16996 | CE90: 1781 | CG90: =CG44+CG20+CG16+CG12 -> 1427 | CH90: 5258 | CI90: 16500 | CJ90: 19102 | CK90: 9287 | CL90: 15803 | CM90: 28063 | CN90: 9535 | CP90: =CP44+CP20+CP16+CP12 -> 6805 | CQ90: 15232 | CR90: 40931
B91: 2 | C91: 84 | E91: MICRORED SAYAN | F91: 28349 | H91: 14037.00735 | I91: 14311.99265 | K91: =K50+K30+K76++K87 -> 261.93435 | L91: =L50+L30+L76++L87 -> 267.06565 | M91: 266.88585 | N91: 272.11415 | O91: 270.3519 | P91: 275.6481 | Q91: 274.3131 | R91: 279.6869 | S91: 275.79855 | T91: 281.20145 | U91: 280.2549 | V91: 285.7451 | W91: 281.74035 | X91: 287.25965 | Y91: 284.2161 | Z91: 289.7839 | AA91: 285.2064 | AB91: 290.7936 | AC91: 286.1967 | AD91: 291.8033 | AE91: 286.69185 | AF91: 292.30815 | AG91: 286.69185 | AH91: 292.30815 | AI91: 286.1967 | AJ91: 291.8033 | AK91: 285.70155 | AL91: 291.29845 | AM91: 284.71125 | AN91: 290.28875 | AO91: 283.72095 | AP91: 289.27905 | AQ91: 282.2355 | AR91: 287.7645 | AS91: 278.76945 | AT91: 284.23055 | AU91: 274.80825 | AV91: 280.19175 | AW91: 268.86645 | AX91: 274.13355 | AY91: 1255.20525 | AZ91: 1279.79475 | BA91: 1142.8062 | BB91: 1165.1938 | BC91: 1079.92215 | BD91: 1101.07785 | BE91: 946.7268 | BF91: 965.2732 | BG91: 796.69635 | BH91: 812.30365 | BI91: 777.3855 | BJ91: 792.6145 | BK91: 580.3158 | BL91: 591.6842 | BM91: 491.1888 | BN91: 500.8112 | BO91: 410.47935 | BP91: 418.52065 | BQ91: 329.7699 | BR91: 336.2301 | BS91: 284.71125 | BT91: 290.28875 | BU91: 189.64245 | BV91: 193.35755 | BW91: 166.86555 | BX91: =BX50+BX30+BX76++BX87 -> 170.13445 | BY91: 533 | BZ91: 40 | CA91: 13526 | CB91: 1400 | CC91: 1366 | CD91: 5666 | CE91: 660 | CG91: =CG50+CG30+CG76++CG87 -> 529 | CH91: 2196 | CI91: 6746 | CJ91: 7457 | CK91: 3436 | CL91: 5941 | CM91: 9436 | CN91: 2790 | CP91: =CP50+CP30+CP76++CP87 -> 2863 | CQ91: 5692 | CR91: 14279
B92: 3 | C92: 85 | E92: MICRORED VEGUETA | F92: 20763 | H92: 10280.79945 | I92: 10482.20055 | K92: =K58 -> 226.28355 | L92: =L58 -> 230.71645 | M92: 207.46785 | N92: 211.53215 | O92: 194.0988 | P92: 197.9012 | Q92: 184.69095 | R92: 188.30905 | S92: 178.74915 | T92: 182.25085 | U92: 176.76855 | V92: 180.23145 | W92: 177.2637 | X92: 180.7363 | Y92: 179.73945 | Z92: 183.26055 | AA92: 184.1958 | AB92: 187.8042 | AC92: 190.1376 | AD92: 193.8624 | AE92: 197.0697 | AF92: 200.9303 | AG92: 204.9921 | AH92: 209.0079 | AI92: 211.42905 | AJ92: 215.57095 | AK92: 214.8951 | AL92: 219.1049 | AM92: 215.39025 | AN92: 219.60975 | AO92: 217.37085 | AP92: 221.62915 | AQ92: 218.8563 | AR92: 223.1437 | AS92: 218.36115 | AT92: 222.63885 | AU92: 213.9048 | AV92: 218.0952 | AW92: 207.963 | AX92: 212.037 | AY92: 939.29955 | AZ92: 957.70045 | BA92: 802.63815 | BB92: 818.36185 | BC92: 736.28805 | BD92: 750.71195 | BE92: 648.6465 | BF92: 661.3535 | BG92: 597.64605 | BH92: 609.35395 | BI92: 568.92735 | BJ92: 580.07265 | BK92: 447.12045 | BL92: 455.87955 | BM92: 389.1879 | BN92: 396.8121 | BO92: 321.35235 | BP92: 327.64765 | BQ92: 257.478 | BR92: 262.522 | BS92: 224.7981 | BT92: 229.2019 | BU92: 163.89465 | BV92: 167.10535 | BW92: 163.89465 | BX92: =BX58 -> 167.10535 | BY92: 460 | BZ92: 35 | CA92: 10130 | CB92: 1000 | CC92: 1073 | CD92: 4288 | CE92: 571 | CG92: =CG58 -> 457 | CH92: 1545 | CI92: 4648 | CJ92: 5264 | CK92: 2618 | CL92: 4370 | CM92: 6842 | CN92: 2285 | CP92: =CP58 -> 1834 | CQ92: 4282 | CR92: 10360
B93: 4 | C93: 86 | E93: MICRORED CHURIN - OYON | F93: 24318 | H93: 12041.0577 | I93: 12276.9423 | K93: =K82+K66+K72+K74+K80+K35+K40 -> 260.94405 | L93: =L82+L66+L72+L74+L80+L35+L40 -> 266.05595 | M93: 250.05075 | N93: 254.94925 | O93: 242.12835 | P93: 246.87165 | Q93: 238.6623 | R93: 243.3377 | S93: 237.17685 | T93: 241.82315 | U93: 239.15745 | V93: 243.84255 | W93: 242.6235 | X93: 247.3765 | Y93: 248.07015 | Z93: 252.92985 | AA93: 252.03135 | AB93: 256.96865 | AC93: 257.478 | AD93: 262.522 | AE93: 262.92465 | AF93: 268.07535 | AG93: 269.85675 | AH93: 275.14325 | AI93: 268.86645 | AJ93: 274.13355 | AK93: 258.96345 | AL93: 264.03655 | AM93: 241.13805 | AN93: 245.86195 | AO93: 223.8078 | AP93: 228.1922 | AQ93: 207.46785 | AR93: 211.53215 | AS93: 193.60365 | AT93: 197.39635 | AU93: 185.68125 | AV93: 189.31875 | AW93: 180.72975 | AX93: 184.27025 | AY93: 859.08525 | AZ93: 875.91475 | BA93: 915.53235 | BB93: 933.46765 | BC93: 888.2991 | BD93: 905.7009 | BE93: 881.86215 | BF93: 899.13785 | BG93: 687.76335 | BH93: 701.23665 | BI93: 654.5883 | BJ93: 667.4117 | BK93: 516.44145 | BL93: 526.55855 | BM93: 431.27565 | BN93: 439.72435 | BO93: 372.3528 | BP93: 379.6472 | BQ93: 359.4789 | BR93: 366.5211 | BS93: 304.0221 | BT93: 309.9779 | BU93: 233.21565 | BV93: 237.78435 | BW93: 175.77825 | BX93: =BX82+BX66+BX72+BX74+BX80+BX35+BX40 -> 179.22175 | BY93: 534 | BZ93: 40 | CA93: 11370 | CB93: 1256 | CC93: 970 | CD93: 4322 | CE93: 662 | CG93: =CG82+CG66+CG72+CG74+CG80+CG35+CG40 -> 527 | CH93: 1955 | CI93: 6061 | CJ93: 6394 | CK93: 2815 | CL93: 4324 | CM93: 8200 | CN93: 2918 | CP93: =CP82+CP66+CP72+CP74+CP80+CP35+CP40 -> 2503 | CQ93: 4631 | CR93: 11784

Sheet etapas y mredes
C2: POBLACION ASIGNADA POR DISTRITO SIERRA, HOSPITAL, MICROREDES Y POR ETAPAS DE VIDA 2020
C7: DISTRITO | P7: MICROREDES
C8: 65 | D8: 67 | E8: 11 | F8: 74 | G8: 60 | H8: 28 | I8: 76 | J8: 33 | N8: 4 | P8: 82 | Q8: 83 | R8: 84 | S8: 85 | T8: 86
B9: POBLACION POR ETAPAS DE VIDA | C9: Andajes | D9: Caujul | E9: Checras | F9: Naván | G9: Oyón | H9: Paccho | I9: Pachangara | J9: Santa Leonor | K9: TOTAL | L9: PORC. (%) | N9: HOSPITAL HUACHO | P9: HUAURA | Q9: HUALMAY | R9: SAYAN | S9: VEGUETA | T9: CHURIN OYON | U9: Total Microredes
A10: 76 | B10: Neonatal (0-28dias) | C10: =VLOOKUP(C$8,Poblacion!$C$8:$CR$93,$A10) -> 0 | D10: =VLOOKUP(D$8,Poblacion!$C$8:$CR$93,$A10) -> 1 | E10: =VLOOKUP(E$8,Poblacion!$C$8:$CR$93,$A10) -> 2 | F10: =VLOOKUP(F$8,Poblacion!$C$8:$CR$93,$A10) -> 3 | G10: =VLOOKUP(G$8,Poblacion!$C$8:$CR$93,$A10) -> 22 | H10: =VLOOKUP(H$8,Poblacion!$C$8:$CR$93,$A10) -> 2 | I10: =VLOOKUP(I$8,Poblacion!$C$8:$CR$93,$A10) -> 4 | J10: =VLOOKUP(J$8,Poblacion!$C$8:$CR$93,$A10) -> 2 | K10: =SUM(C10:J10) -> 36 | L10: =IFERROR((K10/$K$20)*100,0) -> 0.1569379659 | N10: =VLOOKUP(N$8,Poblacion!$C$8:$CR$93,$A10) -> 58 | P10: =VLOOKUP(P$8,Poblacion!$C$8:$CR$93,$A10) -> 52 | Q10: =VLOOKUP(Q$8,Poblacion!$C$8:$CR$93,$A10) -> 110 | R10: =VLOOKUP(R$8,Poblacion!$C$8:$CR$93,$A10) -> 40 | S10: =VLOOKUP(S$8,Poblacion!$C$8:$CR$93,$A10) -> 35 | T10: =VLOOKUP(T$8,Poblacion!$C$8:$CR$93,$A10) -> 40 | U10: =SUM(P10:T10) -> 277
A11: 83 | B11: Infantil (Men.1año) | C11: =VLOOKUP(C$8,Poblacion!$C$8:$CR$93,$A11) -> 6 | D11: =VLOOKUP(D$8,Poblacion!$C$8:$CR$93,$A11) -> 15 | E11: =VLOOKUP(E$8,Poblacion!$C$8:$CR$93,$A11) -> 29 | F11: =VLOOKUP(F$8,Poblacion!$C$8:$CR$93,$A11) -> 38 | G11: =VLOOKUP(G$8,Poblacion!$C$8:$CR$93,$A11) -> 279 | H11: =VLOOKUP(H$8,Poblacion!$C$8:$CR$93,$A11) -> 32 | I11: =VLOOKUP(I$8,Poblacion!$C$8:$CR$93,$A11) -> 62 | J11: =VLOOKUP(J$8,Poblacion!$C$8:$CR$93,$A11) -> 23 | K11: =SUM(C11:J11) -> 484 | L11: =IFERROR((K11/$K$20)*100,0) -> 2.109943764 | N11: =VLOOKUP(N$8,Poblacion!$C$8:$CR$93,$A11) -> 754 | P11: =VLOOKUP(P$8,Poblacion!$C$8:$CR$93,$A11) -> 679 | Q11: =VLOOKUP(Q$8,Poblacion!$C$8:$CR$93,$A11) -> 1427 | R11: =VLOOKUP(R$8,Poblacion!$C$8:$CR$93,$A11) -> 529 | S11: =VLOOKUP(S$8,Poblacion!$C$8:$CR$93,$A11) -> 457 | T11: =VLOOKUP(T$8,Poblacion!$C$8:$CR$93,$A11) -> 527 | U11: =SUM(P11:T11) -> 3619
A12: 84 | B12: Pre-escolar (01-04años) | C12: =VLOOKUP(C$8,Poblacion!$C$8:$CR$93,$A12) -> 37 | D12: =VLOOKUP(D$8,Poblacion!$C$8:$CR$93,$A12) -> 84 | E12: =VLOOKUP(E$8,Poblacion!$C$8:$CR$93,$A12) -> 99 | F12: =VLOOKUP(F$8,Poblacion!$C$8:$CR$93,$A12) -> 101 | G12: =VLOOKUP(G$8,Poblacion!$C$8:$CR$93,$A12) -> 1041 | H12: =VLOOKUP(H$8,Poblacion!$C$8:$CR$93,$A12) -> 133 | I12: =VLOOKUP(I$8,Poblacion!$C$8:$CR$93,$A12) -> 205 | J12: =VLOOKUP(J$8,Poblacion!$C$8:$CR$93,$A12) -> 90 | K12: 1790 | L12: 7.803304416 | N12: =VLOOKUP(N$8,Poblacion!$C$8:$CR$93,$A12) -> 2723 | P12: =VLOOKUP(P$8,Poblacion!$C$8:$CR$93,$A12) -> 2595 | Q12: =VLOOKUP(Q$8,Poblacion!$C$8:$CR$93,$A12) -> 5258 | R12: =VLOOKUP(R$8,Poblacion!$C$8:$CR$93,$A12) -> 2196 | S12: =VLOOKUP(S$8,Poblacion!$C$8:$CR$93,$A12) -> 1545 | T12: =VLOOKUP(T$8,Poblacion!$C$8:$CR$93,$A12) -> 1955 | U12: 13549
A13: 85 | B13: Niño (0-11años) | C13: =VLOOKUP(C$8,Poblacion!$C$8:$CR$93,$A13) -> 134 | D13: =VLOOKUP(D$8,Poblacion!$C$8:$CR$93,$A13) -> 249 | E13: =VLOOKUP(E$8,Poblacion!$C$8:$CR$93,$A13) -> 330 | F13: =VLOOKUP(F$8,Poblacion!$C$8:$CR$93,$A13) -> 270 | G13: =VLOOKUP(G$8,Poblacion!$C$8:$CR$93,$A13) -> 3183 | H13: =VLOOKUP(H$8,Poblacion!$C$8:$CR$93,$A13) -> 439 | I13: =VLOOKUP(I$8,Poblacion!$C$8:$CR$93,$A13) -> 638 | J13: =VLOOKUP(J$8,Poblacion!$C$8:$CR$93,$A13) -> 336 | K13: 5579 | L13: 24.32102533 | N13: =VLOOKUP(N$8,Poblacion!$C$8:$CR$93,$A13) -> 8559 | P13: =VLOOKUP(P$8,Poblacion!$C$8:$CR$93,$A13) -> 8284 | Q13: =VLOOKUP(Q$8,Poblacion!$C$8:$CR$93,$A13) -> 16500 | R13: =VLOOKUP(R$8,Poblacion!$C$8:$CR$93,$A13) -> 6746 | S13: =VLOOKUP(S$8,Poblacion!$C$8:$CR$93,$A13) -> 4648 | T13: =VLOOKUP(T$8,Poblacion!$C$8:$CR$93,$A13) -> 6061 | U13: 42239
A14: 86 | B14: Escolar (05-17años) | C14: =VLOOKUP(C$8,Poblacion!$C$8:$CR$93,$A14) -> 176 | D14: =VLOOKUP(D$8,Poblacion!$C$8:$CR$93,$A14) -> 249 | E14: =VLOOKUP(E$8,Poblacion!$C$8:$CR$93,$A14) -> 372 | F14: =VLOOKUP(F$8,Poblacion!$C$8:$CR$93,$A14) -> 231 | G14: =VLOOKUP(G$8,Poblacion!$C$8:$CR$93,$A14) -> 3306 | H14: =VLOOKUP(H$8,Poblacion!$C$8:$CR$93,$A14) -> 470 | I14: =VLOOKUP(I$8,Poblacion!$C$8:$CR$93,$A14) -> 701 | J14: =VLOOKUP(J$8,Poblacion!$C$8:$CR$93,$A14) -> 408 | K14: 5913 | L14: 25.7770609 | N14: =VLOOKUP(N$8,Poblacion!$C$8:$CR$93,$A14) -> 10077 | P14: =VLOOKUP(P$8,Poblacion!$C$8:$CR$93,$A14) -> 9978 | Q14: =VLOOKUP(Q$8,Poblacion!$C$8:$CR$93,$A14) -> 19102 | R14: =VLOOKUP(R$8,Poblacion!$C$8:$CR$93,$A14) -> 7457 | S14: =VLOOKUP(S$8,Poblacion!$C$8:$CR$93,$A14) -> 5264 | T14: =VLOOKUP(T$8,Poblacion!$C$8:$CR$93,$A14) -> 6394 | U14: 48195
A15: 87 | B15: Adolescente (12-17años) | C15: =VLOOKUP(C$8,Poblacion!$C$8:$CR$93,$A15) -> 85 | D15: =VLOOKUP(D$8,Poblacion!$C$8:$CR$93,$A15) -> 99 | E15: =VLOOKUP(E$8,Poblacion!$C$8:$CR$93,$A15) -> 170 | F15: =VLOOKUP(F$8,Poblacion!$C$8:$CR$93,$A15) -> 100 | G15: =VLOOKUP(G$8,Poblacion!$C$8:$CR$93,$A15) -> 1443 | H15: =VLOOKUP(H$8,Poblacion!$C$8:$CR$93,$A15) -> 196 | I15: =VLOOKUP(I$8,Poblacion!$C$8:$CR$93,$A15) -> 330 | J15: =VLOOKUP(J$8,Poblacion!$C$8:$CR$93,$A15) -> 185 | K15: 2608 | L15: 11.36928375 | N15: =VLOOKUP(N$8,Poblacion!$C$8:$CR$93,$A15) -> 4995 | P15: =VLOOKUP(P$8,Poblacion!$C$8:$CR$93,$A15) -> 4968 | Q15: =VLOOKUP(Q$8,Poblacion!$C$8:$CR$93,$A15) -> 9287 | R15: =VLOOKUP(R$8,Poblacion!$C$8:$CR$93,$A15) -> 3436 | S15: =VLOOKUP(S$8,Poblacion!$C$8:$CR$93,$A15) -> 2618 | T15: =VLOOKUP(T$8,Poblacion!$C$8:$CR$93,$A15) -> 2815 | U15: 23124
A16: 88 | B16: Adulto Joven (18-29años) | C16: =VLOOKUP(C$8,Poblacion!$C$8:$CR$93,$A16) -> 150 | D16: =VLOOKUP(D$8,Poblacion!$C$8:$CR$93,$A16) -> 166 | E16: =VLOOKUP(E$8,Poblacion!$C$8:$CR$93,$A16) -> 189 | F16: =VLOOKUP(F$8,Poblacion!$C$8:$CR$93,$A16) -> 209 | G16: =VLOOKUP(G$8,Poblacion!$C$8:$CR$93,$A16) -> 2262 | H16: =VLOOKUP(H$8,Poblacion!$C$8:$CR$93,$A16) -> 295 | I16: =VLOOKUP(I$8,Poblacion!$C$8:$CR$93,$A16) -> 460 | J16: =VLOOKUP(J$8,Poblacion!$C$8:$CR$93,$A16) -> 204 | K16: 3935 | L16: 17.15419155 | N16: =VLOOKUP(N$8,Poblacion!$C$8:$CR$93,$A16) -> 8824 | P16: =VLOOKUP(P$8,Poblacion!$C$8:$CR$93,$A16) -> 7800 | Q16: =VLOOKUP(Q$8,Poblacion!$C$8:$CR$93,$A16) -> 15803 | R16: =VLOOKUP(R$8,Poblacion!$C$8:$CR$93,$A16) -> 5941 | S16: =VLOOKUP(S$8,Poblacion!$C$8:$CR$93,$A16) -> 4370 | T16: =VLOOKUP(T$8,Poblacion!$C$8:$CR$93,$A16) -> 4324 | U16: 38238
A17: 89 | B17: Adulto (30-59años) | C17: =VLOOKUP(C$8,Poblacion!$C$8:$CR$93,$A17) -> 372 | D17: =VLOOKUP(D$8,Poblacion!$C$8:$CR$93,$A17) -> 336 | E17: =VLOOKUP(E$8,Poblacion!$C$8:$CR$93,$A17) -> 616 | F17: =VLOOKUP(F$8,Poblacion!$C$8:$CR$93,$A17) -> 394 | G17: =VLOOKUP(G$8,Poblacion!$C$8:$CR$93,$A17) -> 3876 | H17: =VLOOKUP(H$8,Poblacion!$C$8:$CR$93,$A17) -> 765 | I17: =VLOOKUP(I$8,Poblacion!$C$8:$CR$93,$A17) -> 917 | J17: =VLOOKUP(J$8,Poblacion!$C$8:$CR$93,$A17) -> 515 | K17: 7791 | L17: 33.96399146 | N17: =VLOOKUP(N$8,Poblacion!$C$8:$CR$93,$A17) -> 16807 | P17: =VLOOKUP(P$8,Poblacion!$C$8:$CR$93,$A17) -> 12310 | Q17: =VLOOKUP(Q$8,Poblacion!$C$8:$CR$93,$A17) -> 28063 | R17: =VLOOKUP(R$8,Poblacion!$C$8:$CR$93,$A17) -> 9436 | S17: =VLOOKUP(S$8,Poblacion!$C$8:$CR$93,$A17) -> 6842 | T17: =VLOOKUP(T$8,Poblacion!$C$8:$CR$93,$A17) -> 8200 | U17: 64851
A18: 90 | B18: Adu.Mayor (60 a MAS) | C18: =VLOOKUP(C$8,Poblacion!$C$8:$CR$93,$A18) -> 315 | D18: =VLOOKUP(D$8,Poblacion!$C$8:$CR$93,$A18) -> 151 | E18: =VLOOKUP(E$8,Poblacion!$C$8:$CR$93,$A18) -> 380 | F18: =VLOOKUP(F$8,Poblacion!$C$8:$CR$93,$A18) -> 187 | G18: =VLOOKUP(G$8,Poblacion!$C$8:$CR$93,$A18) -> 834 | H18: =VLOOKUP(H$8,Poblacion!$C$8:$CR$93,$A18) -> 491 | I18: =VLOOKUP(I$8,Poblacion!$C$8:$CR$93,$A18) -> 407 | J18: =VLOOKUP(J$8,Poblacion!$C$8:$CR$93,$A18) -> 261 | K18: 3026 | L18: 13.19150791 | N18: =VLOOKUP(N$8,Poblacion!$C$8:$CR$93,$A18) -> 6134 | P18: =VLOOKUP(P$8,Poblacion!$C$8:$CR$93,$A18) -> 3603 | Q18: =VLOOKUP(Q$8,Poblacion!$C$8:$CR$93,$A18) -> 9535 | R18: =VLOOKUP(R$8,Poblacion!$C$8:$CR$93,$A18) -> 2790 | S18: =VLOOKUP(S$8,Poblacion!$C$8:$CR$93,$A18) -> 2285 | T18: =VLOOKUP(T$8,Poblacion!$C$8:$CR$93,$A18) -> 2918 | U18: 21131
A19: 81 | B19: Gestantes | C19: =VLOOKUP(C$8,Poblacion!$C$8:$CR$93,$A19) -> 8 | D19: =VLOOKUP(D$8,Poblacion!$C$8:$CR$93,$A19) -> 18 | E19: =VLOOKUP(E$8,Poblacion!$C$8:$CR$93,$A19) -> 36 | F19: =VLOOKUP(F$8,Poblacion!$C$8:$CR$93,$A19) -> 48 | G19: =VLOOKUP(G$8,Poblacion!$C$8:$CR$93,$A19) -> 351 | H19: =VLOOKUP(H$8,Poblacion!$C$8:$CR$93,$A19) -> 40 | I19: =VLOOKUP(I$8,Poblacion!$C$8:$CR$93,$A19) -> 78 | J19: =VLOOKUP(J$8,Poblacion!$C$8:$CR$93,$A19) -> 28 | K19: 607 | L19: 2.646148481 | N19: =VLOOKUP(N$8,Poblacion!$C$8:$CR$93,$A19) -> 941 | P19: =VLOOKUP(P$8,Poblacion!$C$8:$CR$93,$A19) -> 848 | Q19: =VLOOKUP(Q$8,Poblacion!$C$8:$CR$93,$A19) -> 1781 | R19: =VLOOKUP(R$8,Poblacion!$C$8:$CR$93,$A19) -> 660 | S19: =VLOOKUP(S$8,Poblacion!$C$8:$CR$93,$A19) -> 571 | T19: =VLOOKUP(T$8,Poblacion!$C$8:$CR$93,$A19) -> 662 | U19: 4522
B20: TOTAL | C20: =C13+C15+C16+C17+C18 -> 1056 | D20: =D13+D15+D16+D17+D18 -> 1001 | E20: 1685 | F20: 1160 | G20: 11598 | H20: 2186 | I20: 2752 | J20: 1501 | K20: =K13+K15+K16+K17+K18 -> 22939 | L20: =IFERROR((K20/$K$20)*100,0) -> 100 | N20: =N13+N15+N16+N17+N18 -> 45319 | P20: 36965 | Q20: 79188 | R20: 28349 | S20: 20763 | T20: 24318 | U20: 189583
B21: =Interfaz!$A$22 -> Elaboración: Área de Estadística - RIS Huaura Oyón.
G25: 1 | H25: =VLOOKUP($G$25,Poblacion!$C$8:$E$93,3,FALSE) -> RED HUAURA - OYON
B26: POBLACION POR ETAPAS DE VIDA | C26: TOTAL | E26: PORC. (%) | H26: =+"POBLACION POR ETAPAS DE VIDA DEL "&$H$25 -> POBLACION POR ETAPAS DE VIDA DEL RED HUAURA - OYON
A27: 76 | B27: Neonatal (0-28dias) | C27: =VLOOKUP($G$25,Poblacion!$C$8:$CR$93,$A27) -> 337 | E27: =IFERROR(($C27/$C$37)*100,0) -> 0.1424423151 | H27: =B30 -> Niño (0-11años) | I27: =C30 -> 51128
A28: 83 | B28: Infantil (Men.1año) | C28: =VLOOKUP($G$25,Poblacion!$C$8:$CR$93,$A28) -> 4402 | E28: =IFERROR(($C28/$C$37)*100,0) -> 1.860626324 | H28: =B32 -> Adolescente (12-17años) | I28: 28289
A29: 84 | B29: Pre-escolar (01-04años) | C29: =VLOOKUP($G$25,Poblacion!$C$8:$CR$93,$A29) -> 16371 | E29: 6.919653235 | H29: Adulto Joven (18-29años) | I29: 47251
A30: 85 | B30: Niño (0-11años) | C30: =VLOOKUP($G$25,Poblacion!$C$8:$CR$93,$A30) -> 51128 | E30: 21.61065485 | H30: Adulto (30-59años) | I30: 82274
A31: 86 | B31: Escolar (05-17años) | C31: =VLOOKUP($G$25,Poblacion!$C$8:$CR$93,$A31) -> 58644 | E31: 24.78749889 | H31: Adu.Mayor (60 a MAS) | I31: 27645
A32: 87 | B32: Adolescente (12-17años) | C32: =VLOOKUP($G$25,Poblacion!$C$8:$CR$93,$A32) -> 28289 | E32: 11.9571236
A33: 88 | B33: Adulto Joven (18-29años) | C33: =VLOOKUP($G$25,Poblacion!$C$8:$CR$93,$A33) -> 47251 | E33: 19.97193421
A34: 89 | B34: Adulto (30-59años) | C34: =VLOOKUP($G$25,Poblacion!$C$8:$CR$93,$A34) -> 82274 | E34: 34.77536805
A35: 90 | B35: Adu.Mayor (60 a MAS) | C35: =VLOOKUP($G$25,Poblacion!$C$8:$CR$93,$A35) -> 27645 | E35: 11.68491929
A36: 81 | B36: Gestantes | C36: =VLOOKUP($G$25,Poblacion!$C$8:$CR$93,$A36) -> 5499 | E36: 2.324303533
B37: TOTAL | C37: =C30+C32+C33+C34+C35 -> 236587 | E37: 100
B38: =Interfaz!$A$22 -> Elaboración: Área de Estadística - RIS Huaura Oyón.

Sheet Pobla_EESS
D2: POBLACIÓN SEGÚN DISTRITOS Y EE.SS - 2012
D8: SIN MICRORED | K8: MICRORED HUALMAY
D9: DISTRITO | E9: POBLACIÓN | F9: EE.SS | G9: POBLACIÓN | H9: MASCULINO | I9: FEMENINO | K9: DISTRITO | L9: POBLACIÓN | M9: EE.SS | N9: POBLACIÓN | O9: MASCULINO | P9: FEMENINO
D10: HUACHO | E10: =G10 -> 45319 | F10: HOSPITAL DOCENTE HUACHO | G10: =VLOOKUP($F10,Poblacion!$E$8:$I$87,2,FALSE) -> 45319 | H10: =VLOOKUP($F10,Poblacion!$E$8:$I$87,4,FALSE) -> 22439.70285 | I10: =VLOOKUP($F10,Poblacion!$E$8:$I$87,5,FALSE) -> 22879.29715 | K10: HUALMAY | L10: =SUM(N10:N12) -> 28270 | M10: CENTRO SALUD HUALMAY | N10: =VLOOKUP($M10,Poblacion!$E$8:$I$87,2,FALSE) -> 14901 | O10: =VLOOKUP($M10,Poblacion!$E$8:$I$87,4,FALSE) -> 7378.23015 | P10: =VLOOKUP($M10,Poblacion!$E$8:$I$87,5,FALSE) -> 7522.76985
D11: HUACHO | F11: CLINICA SAN PEDRO | G11: 0 | K11: HUALMAY | M11: PUESTO SALUD DGO.MANDAMIENTO | N11: =VLOOKUP($M11,Poblacion!$E$8:$I$87,2,FALSE) -> 9335 | O11: =VLOOKUP($M11,Poblacion!$E$8:$I$87,4,FALSE) -> 4622.22525 | P11: =VLOOKUP($M11,Poblacion!$E$8:$I$87,5,FALSE) -> 4712.77475
D12: HUACHO | F12: ESSALUD GUSTAVO LA NATA | G12: 0 | K12: HUALMAY | M12: PUESTO SALUD CAMPO ALEGRE | N12: =VLOOKUP($M12,Poblacion!$E$8:$I$87,2,FALSE) -> 4034 | O12: =VLOOKUP($M12,Poblacion!$E$8:$I$87,4,FALSE) -> 1997.4351 | P12: =VLOOKUP($M12,Poblacion!$E$8:$I$87,5,FALSE) -> 2036.5649
D13: HUACHO | F13: CLINICA SAN BARTOLOME | G13: 0 | K13: S.MARIA | L13: =SUM(N13:N17) -> 31528 | M13: CENTRO SALUD SANTA MARIA | N13: =VLOOKUP($M13,Poblacion!$E$8:$I$87,2,FALSE) -> 8813 | O13: =VLOOKUP($M13,Poblacion!$E$8:$I$87,4,FALSE) -> 4363.75695 | P13: =VLOOKUP($M13,Poblacion!$E$8:$I$87,5,FALSE) -> 4449.24305
D14: HUACHO | F14: GOLD ESTANDAR EIRL. | G14: 0 | K14: S.MARIA | M14: PUESTO SALUD CHONTA | N14: =VLOOKUP($M14,Poblacion!$E$8:$I$87,2,FALSE) -> 4733 | O14: =VLOOKUP($M14,Poblacion!$E$8:$I$87,4,FALSE) -> 2343.54495 | P14: =VLOOKUP($M14,Poblacion!$E$8:$I$87,5,FALSE) -> 2389.45505
D15: CARQUIN | F15: INSITUTO NACIONAL PENITENCIARIO CARQUIN | G15: 0 | K15: S.MARIA | M15: PUESTO SALUD ZAPATA | N15: =VLOOKUP($M15,Poblacion!$E$8:$I$87,2,FALSE) -> 2528 | O15: =VLOOKUP($M15,Poblacion!$E$8:$I$87,4,FALSE) -> 1251.7392 | P15: =VLOOKUP($M15,Poblacion!$E$8:$I$87,5,FALSE) -> 1276.2608
F16: OTROS ESTABLECIMIENTOS | G16: 0 | K16: S.MARIA | M16: PUESTO SALUD AMADO VELASQUEZ | N16: =VLOOKUP($M16,Poblacion!$E$8:$I$87,2,FALSE) -> 8194 | O16: =VLOOKUP($M16,Poblacion!$E$8:$I$87,4,FALSE) -> 4057.2591 | P16: =VLOOKUP($M16,Poblacion!$E$8:$I$87,5,FALSE) -> 4136.7409
D17: TOTAL SIN MICRORED | G17: =SUM(G10:G16) -> 45319 | H17: =SUM(H10:H16) -> 22439.70285 | I17: =SUM(I10:I16) -> 22879.29715 | K17: S.MARIA | M17: PUESTO SALUD SAN BARTOLOME | N17: =VLOOKUP($M17,Poblacion!$E$8:$I$87,2,FALSE) -> 7260 | O17: =VLOOKUP($M17,Poblacion!$E$8:$I$87,4,FALSE) -> 3594.789 | P17: =VLOOKUP($M17,Poblacion!$E$8:$I$87,5,FALSE) -> 3665.211
D18: ='etapas y mredes'!B21 -> Elaboración: Área de Estadística - RIS Huaura Oyón. | K18: CARQUIN | L18: =N18 -> 6604 | M18: CENTRO SALUD CARQUIN | N18: =VLOOKUP($M18,Poblacion!$E$8:$I$87,2,FALSE) -> 6604 | O18: =VLOOKUP($M18,Poblacion!$E$8:$I$87,4,FALSE) -> 3269.9706 | P18: =VLOOKUP($M18,Poblacion!$E$8:$I$87,5,FALSE) -> 3334.0294
K19: HUACHO | L19: =N19 -> 12786 | M19: CENTRO SALUD MANZANARES | N19: =VLOOKUP($M19,Poblacion!$E$8:$I$87,2,FALSE) -> 12786 | O19: =VLOOKUP($M19,Poblacion!$E$8:$I$87,4,FALSE) -> 6330.9879 | P19: =VLOOKUP($M19,Poblacion!$E$8:$I$87,5,FALSE) -> 6455.0121
K20: TOTAL MCR HUALMAY | M20: TOTAL MICRORED HUALMAY | N20: =SUM(N10:N19) -> 79188 | O20: =SUM(O10:O19) -> 39209.9382 | P20: =SUM(P10:P19) -> 39978.0618
K21: =D18 -> Elaboración: Área de Estadística - RIS Huaura Oyón.
D24: MICRORED HUAURA | K24: MICRORED VEGUETA
D25: DISTRITO | E25: POBLACIÓN | F25: EE.SS | G25: POBLACIÓN | H25: MASCULINO | I25: FEMENINO | K25: DISTRITO | L25: POBLACIÓN | M25: EE.SS | N25: POBLACIÓN | O25: MASCULINO | P25: FEMENINO
D26: HUAURA | E26: =SUM(G26:G30) -> 34156 | F26: CENTRO SALUD HUAURA | G26: =VLOOKUP($F26,Poblacion!$E$8:$I$87,2,FALSE) -> 15541 | H26: =VLOOKUP($F26,Poblacion!$E$8:$I$87,4,FALSE) -> 7695.12615 | I26: =VLOOKUP($F26,Poblacion!$E$8:$I$87,5,FALSE) -> 7845.87385 | K26: VEGUETA | L26: =SUM(N26:N31) -> 20763 | M26: CENTRO SALUD VEGUETA | N26: =VLOOKUP($M26,Poblacion!$E$8:$I$87,2,FALSE) -> 6229 | O26: =VLOOKUP($M26,Poblacion!$E$8:$I$87,4,FALSE) -> 3084.28935 | P26: =VLOOKUP($M26,Poblacion!$E$8:$I$87,5,FALSE) -> 3144.71065
D27: HUAURA | F27: CENTRO MAT. INF. EL SOCORRO | G27: =VLOOKUP($F27,Poblacion!$E$8:$I$87,2,FALSE) -> 11955 | H27: =VLOOKUP($F27,Poblacion!$E$8:$I$87,4,FALSE) -> 5919.51825 | I27: =VLOOKUP($F27,Poblacion!$E$8:$I$87,5,FALSE) -> 6035.48175 | K27: VEGUETA | M27: PUESTO SALUD MAZO | N27: =VLOOKUP($M27,Poblacion!$E$8:$I$87,2,FALSE) -> 2076 | O27: =VLOOKUP($M27,Poblacion!$E$8:$I$87,4,FALSE) -> 1027.9314 | P27: =VLOOKUP($M27,Poblacion!$E$8:$I$87,5,FALSE) -> 1048.0686
D28: HUAURA | F28: PUESTO SALUD HUMAYA | G28: =VLOOKUP($F28,Poblacion!$E$8:$I$87,2,FALSE) -> 4099 | H28: =VLOOKUP($F28,Poblacion!$E$8:$I$87,4,FALSE) -> 2029.61985 | I28: =VLOOKUP($F28,Poblacion!$E$8:$I$87,5,FALSE) -> 2069.38015 | K28: VEGUETA | M28: PUESTO SALUD PRIMAVERA | N28: =VLOOKUP($M28,Poblacion!$E$8:$I$87,2,FALSE) -> 2284 | O28: =VLOOKUP($M28,Poblacion!$E$8:$I$87,4,FALSE) -> 1130.9226 | P28: =VLOOKUP($M28,Poblacion!$E$8:$I$87,5,FALSE) -> 1153.0774
D29: HUAURA | F29: PUESTO SALUD VILCAHUAURA | G29: =VLOOKUP($F29,Poblacion!$E$8:$I$87,2,FALSE) -> 2049 | H29: =VLOOKUP($F29,Poblacion!$E$8:$I$87,4,FALSE) -> 1014.56235 | I29: =VLOOKUP($F29,Poblacion!$E$8:$I$87,5,FALSE) -> 1034.43765 | K29: VEGUETA | M29: PUESTO SALUD JOSE C. MARIATEGUI | N29: =VLOOKUP($M29,Poblacion!$E$8:$I$87,2,FALSE) -> 4983 | O29: =VLOOKUP($M29,Poblacion!$E$8:$I$87,4,FALSE) -> 2467.33245 | P29: =VLOOKUP($M29,Poblacion!$E$8:$I$87,5,FALSE) -> 2515.66755
D30: HUAURA | F30: PUESTO SALUD PEÑICO | G30: =VLOOKUP($F30,Poblacion!$E$8:$I$87,2,FALSE) -> 512 | H30: =VLOOKUP($F30,Poblacion!$E$8:$I$87,4,FALSE) -> 253.5168 | I30: =VLOOKUP($F30,Poblacion!$E$8:$I$87,5,FALSE) -> 258.4832 | K30: VEGUETA | M30: PUESTO SALUD MEDIO MUNDO | N30: =VLOOKUP($M30,Poblacion!$E$8:$I$87,2,FALSE) -> 4360 | O30: =VLOOKUP($M30,Poblacion!$E$8:$I$87,4,FALSE) -> 2158.854 | P30: =VLOOKUP($M30,Poblacion!$E$8:$I$87,5,FALSE) -> 2201.146
D31: AMBAR | E31: =SUM(G31:G32) -> 2809 | F31: CENTRO SALUD AMBAR | G31: =VLOOKUP($F31,Poblacion!$E$8:$I$87,2,FALSE) -> 1683 | H31: =VLOOKUP($F31,Poblacion!$E$8:$I$87,4,FALSE) -> 833.33745 | I31: =VLOOKUP($F31,Poblacion!$E$8:$I$87,5,FALSE) -> 849.66255 | K31: VEGUETA | M31: PUESTO SALUD TIROLER | N31: =VLOOKUP($M31,Poblacion!$E$8:$I$87,2,FALSE) -> 831 | O31: =VLOOKUP($M31,Poblacion!$E$8:$I$87,4,FALSE) -> 411.46965 | P31: =VLOOKUP($M31,Poblacion!$E$8:$I$87,5,FALSE) -> 419.53035
D32: AMBAR | F32: PUESTO SALUD AYNACA | G32: =VLOOKUP($F32,Poblacion!$E$8:$I$87,2,FALSE) -> 1126 | H32: =VLOOKUP($F32,Poblacion!$E$8:$I$87,4,FALSE) -> 557.5389 | I32: =VLOOKUP($F32,Poblacion!$E$8:$I$87,5,FALSE) -> 568.4611 | K32: TOTAL MCR VEGUETA | N32: =SUM(N26:N31) -> 20763 | O32: =SUM(O26:O31) -> 10280.79945 | P32: =SUM(P26:P31) -> 10482.20055
D33: TOTAL MCR HUAURA | F33: TOTAL MICRORED HUAURA | G33: =SUM(G26:G32) -> 36965 | H33: =SUM(H26:H32) -> 18303.21975 | I33: 18661.78025 | K33: =K21 -> Elaboración: Área de Estadística - RIS Huaura Oyón.
D34: =K21 -> Elaboración: Área de Estadística - RIS Huaura Oyón.
D38: MICRORED SAYAN | K38: MICRORED CHURIN OYÓN
D39: DISTRITO | E39: POBLACIÓN | F39: EE.SS | G39: POBLACIÓN | H39: MASCULINO | I39: FEMENINO | K39: DISTRITO | L39: POBLACIÓN | M39: EE.SS | N39: POBLACIÓN | O39: MASCULINO | P39: FEMENINO
D40: SAYAN | E40: =SUM(G40:G46) -> 23561 | F40: CENTRO SALUD SAYAN | G40: =VLOOKUP($F40,Poblacion!$E$8:$I$87,2,FALSE) -> 9896 | H40: =VLOOKUP($F40,Poblacion!$E$8:$I$87,4,FALSE) -> 4900.0044 | I40: =VLOOKUP($F40,Poblacion!$E$8:$I$87,5,FALSE) -> 4995.9956 | K40: PACHANGARA | L40: =SUM(N40:N42) -> 3440 | M40: CENTRO SALUD CHURIN | N40: =VLOOKUP(M40,Poblacion!$E$5:$I$88,2,FALSE) -> 2752 | O40: =VLOOKUP(M40,Poblacion!$E$5:$I$88,4,FALSE) -> 1362.6528 | P40: =VLOOKUP(M40,Poblacion!$E$5:$I$88,5,FALSE) -> 1389.3472
D41: SAYAN | F41: CENTRO SALUD 9 DE OCTUBRE | G41: =VLOOKUP($F41,Poblacion!$E$8:$I$87,2,FALSE) -> 4712 | H41: =VLOOKUP($F41,Poblacion!$E$8:$I$87,4,FALSE) -> 2333.1468 | I41: =VLOOKUP($F41,Poblacion!$E$8:$I$87,5,FALSE) -> 2378.8532 | K41: PACHANGARA | M41: PUESTO SALUD HUANCAHUASI | N41: =VLOOKUP(M41,Poblacion!$E$5:$I$88,2,FALSE) -> 308 | O41: =VLOOKUP(M41,Poblacion!$E$5:$I$88,4,FALSE) -> 152.5062 | P41: =VLOOKUP(M41,Poblacion!$E$5:$I$88,5,FALSE) -> 155.4938
D42: SAYAN | F42: PUESTO SALUD CHAMBARA | G42: =VLOOKUP($F42,Poblacion!$E$8:$I$87,2,FALSE) -> 1178 | H42: =VLOOKUP($F42,Poblacion!$E$8:$I$87,4,FALSE) -> 583.2867 | I42: =VLOOKUP($F42,Poblacion!$E$8:$I$87,5,FALSE) -> 594.7133 | K42: PACHANGARA | M42: PUESTO SALUD PACHANGARA | N42: =VLOOKUP(M42,Poblacion!$E$5:$I$88,2,FALSE) -> 380 | O42: =VLOOKUP(M42,Poblacion!$E$5:$I$88,4,FALSE) -> 188.157 | P42: =VLOOKUP(M42,Poblacion!$E$5:$I$88,5,FALSE) -> 191.843
D43: SAYAN | F43: PUESTO SALUD LA MERCED | G43: =VLOOKUP($F43,Poblacion!$E$8:$I$87,2,FALSE) -> 2356 | H43: =VLOOKUP($F43,Poblacion!$E$8:$I$87,4,FALSE) -> 1166.5734 | I43: =VLOOKUP($F43,Poblacion!$E$8:$I$87,5,FALSE) -> 1189.4266 | K43: OYON | L43: =SUM(N43:N47) -> 13974 | M43: CENTRO SALUD OYON | N43: =VLOOKUP(M43,Poblacion!$E$5:$I$88,2,FALSE) -> 11598 | O43: =VLOOKUP(M43,Poblacion!$E$5:$I$88,4,FALSE) -> 5742.7497 | P43: =VLOOKUP(M43,Poblacion!$E$5:$I$88,5,FALSE) -> 5855.2503
D44: SAYAN | F44: PUESTO SALUD LA VILLA | G44: =VLOOKUP($F44,Poblacion!$E$8:$I$87,2,FALSE) -> 3770 | H44: =VLOOKUP($F44,Poblacion!$E$8:$I$87,4,FALSE) -> 1866.7155 | I44: =VLOOKUP($F44,Poblacion!$E$8:$I$87,5,FALSE) -> 1903.2845 | K44: OYON | M44: PUESTO SALUD MALLAY | N44: =VLOOKUP(M44,Poblacion!$E$5:$I$88,2,FALSE) -> 700 | O44: =VLOOKUP(M44,Poblacion!$E$5:$I$88,4,FALSE) -> 346.605 | P44: =VLOOKUP(M44,Poblacion!$E$5:$I$88,5,FALSE) -> 353.395
D45: SAYAN | F45: PUESTO SALUD EL AHOARCADO | G45: =VLOOKUP($F45,Poblacion!$E$8:$I$87,2,FALSE) -> 942 | H45: =VLOOKUP($F45,Poblacion!$E$8:$I$87,4,FALSE) -> 466.4313 | I45: =VLOOKUP($F45,Poblacion!$E$8:$I$87,5,FALSE) -> 475.5687 | K45: OYON | M45: PUESTO SALUD NAVA | N45: =VLOOKUP(M45,Poblacion!$E$5:$I$88,2,FALSE) -> 139 | O45: =VLOOKUP(M45,Poblacion!$E$5:$I$88,4,FALSE) -> 68.82585 | P45: =VLOOKUP(M45,Poblacion!$E$5:$I$88,5,FALSE) -> 70.17415
D46: SAYAN | F46: PUESTO SALUD LA UNION | G46: =VLOOKUP($F46,Poblacion!$E$8:$I$87,2,FALSE) -> 707 | H46: =VLOOKUP($F46,Poblacion!$E$8:$I$87,4,FALSE) -> 350.07105 | I46: =VLOOKUP($F46,Poblacion!$E$8:$I$87,5,FALSE) -> 356.92895 | K46: OYON | M46: PUESTO SALUD TINTA | N46: =VLOOKUP(M46,Poblacion!$E$5:$I$88,2,FALSE) -> 419 | O46: =VLOOKUP(M46,Poblacion!$E$5:$I$88,4,FALSE) -> 207.46785 | P46: =VLOOKUP(M46,Poblacion!$E$5:$I$88,5,FALSE) -> 211.53215
D47: L.PRADO | E47: =SUM(G47:G50) -> 2020 | F47: PUESTO SALUD AUQUIMARCA | G47: =VLOOKUP($F47,Poblacion!$E$8:$I$87,2,FALSE) -> 364 | H47: =VLOOKUP($F47,Poblacion!$E$8:$I$87,4,FALSE) -> 180.2346 | I47: =VLOOKUP($F47,Poblacion!$E$8:$I$87,5,FALSE) -> 183.7654 | K47: OYON | M47: PUESTO SALUD RAPAZ | N47: =VLOOKUP(M47,Poblacion!$E$5:$I$88,2,FALSE) -> 1118 | O47: =VLOOKUP(M47,Poblacion!$E$5:$I$88,4,FALSE) -> 553.5777 | P47: =VLOOKUP(M47,Poblacion!$E$5:$I$88,5,FALSE) -> 564.4223
D48: L.PRADO | F48: PUESTO SALUD PARAN | G48: =VLOOKUP($F48,Poblacion!$E$8:$I$87,2,FALSE) -> 828 | H48: =VLOOKUP($F48,Poblacion!$E$8:$I$87,4,FALSE) -> 409.9842 | I48: =VLOOKUP($F48,Poblacion!$E$8:$I$87,5,FALSE) -> 418.0158 | K48: ANDAJES | L48: =N48 -> 1056 | M48: PUESTO SALUD ANDAJES | N48: =VLOOKUP(M48,Poblacion!$E$5:$I$88,2,FALSE) -> 1056 | O48: =VLOOKUP(M48,Poblacion!$E$5:$I$88,4,FALSE) -> 522.8784 | P48: =VLOOKUP(M48,Poblacion!$E$5:$I$88,5,FALSE) -> 533.1216
D49: L.PRADO | F49: PUESTO SALUD SANTA CRUZ | G49: =VLOOKUP($F49,Poblacion!$E$8:$I$87,2,FALSE) -> 404 | H49: =VLOOKUP($F49,Poblacion!$E$8:$I$87,4,FALSE) -> 200.0406 | I49: =VLOOKUP($F49,Poblacion!$E$8:$I$87,5,FALSE) -> 203.9594 | K49: CAUJUL | L49: =N49 -> 1001 | M49: PUESTO SALUD CAUJUL | N49: =VLOOKUP(M49,Poblacion!$E$5:$I$88,2,FALSE) -> 1001 | O49: =VLOOKUP(M49,Poblacion!$E$5:$I$88,4,FALSE) -> 495.64515 | P49: =VLOOKUP(M49,Poblacion!$E$5:$I$88,5,FALSE) -> 505.35485
D50: L.PRADO | F50: PUESTO SALUD HUANANGUI | G50: =VLOOKUP($F50,Poblacion!$E$8:$I$87,2,FALSE) -> 424 | H50: =VLOOKUP($F50,Poblacion!$E$8:$I$87,4,FALSE) -> 209.9436 | I50: =VLOOKUP($F50,Poblacion!$E$8:$I$87,5,FALSE) -> 214.0564 | K50: NAVAN | L50: 1160 | M50: PUESTO SALUD NAVAN | N50: =VLOOKUP(M50,Poblacion!$E$5:$I$88,2,FALSE) -> 1160 | O50: =VLOOKUP(M50,Poblacion!$E$5:$I$88,4,FALSE) -> 574.374 | P50: =VLOOKUP(M50,Poblacion!$E$5:$I$88,5,FALSE) -> 585.626
D51: COCHAMARCA | E51: =SUM(G51:G53) -> 1586 | F51: PUESTO SALUD COCHAMARCA | G51: =VLOOKUP($F51,Poblacion!$E$8:$I$87,2,FALSE) -> 571 | H51: =VLOOKUP($F51,Poblacion!$E$8:$I$87,4,FALSE) -> 282.73065 | I51: =VLOOKUP($F51,Poblacion!$E$8:$I$87,5,FALSE) -> 288.26935 | K51: CHECRAS | L51: 1685 | M51: PUESTO SALUD PUÑUN | N51: =VLOOKUP(M51,Poblacion!$E$5:$I$88,2,FALSE) -> 1685 | O51: =VLOOKUP(M51,Poblacion!$E$5:$I$88,4,FALSE) -> 834.32775 | P51: =VLOOKUP(M51,Poblacion!$E$5:$I$88,5,FALSE) -> 850.67225
D52: COCHAMARCA | F52: PUESTO SALUD COLCAPAMPA | G52: =VLOOKUP($F52,Poblacion!$E$8:$I$87,2,FALSE) -> 761 | H52: =VLOOKUP($F52,Poblacion!$E$8:$I$87,4,FALSE) -> 376.80915 | I52: =VLOOKUP($F52,Poblacion!$E$8:$I$87,5,FALSE) -> 384.19085 | K52: PACCHO | L52: =SUM(N52:N55) -> 2186 | M52: CENTRO SALUD PACCHO | N52: =VLOOKUP(M52,Poblacion!$E$5:$I$88,2,FALSE) -> 831 | O52: =VLOOKUP(M52,Poblacion!$E$5:$I$88,4,FALSE) -> 411.46965 | P52: =VLOOKUP(M52,Poblacion!$E$5:$I$88,5,FALSE) -> 419.53035
D53: COCHAMARCA | F53: PUESTO SALUD YARUCAYA | G53: =VLOOKUP($F53,Poblacion!$E$8:$I$87,2,FALSE) -> 254 | H53: =VLOOKUP($F53,Poblacion!$E$8:$I$87,4,FALSE) -> 125.7681 | I53: =VLOOKUP($F53,Poblacion!$E$8:$I$87,5,FALSE) -> 128.2319 | K53: PACCHO | M53: PUESTO SALUD LACSANGA | N53: =VLOOKUP(M53,Poblacion!$E$5:$I$88,2,FALSE) -> 459 | O53: =VLOOKUP(M53,Poblacion!$E$5:$I$88,4,FALSE) -> 227.27385 | P53: =VLOOKUP(M53,Poblacion!$E$5:$I$88,5,FALSE) -> 231.72615
D54: IHUARI - ACOTAMA | E54: =SUM(G54) -> 1182 | F54: PUESTO SALUD ACOTAMA IHUARI (46.8%) | G54: =VLOOKUP($F54,Poblacion!$E$8:$I$87,2,FALSE) -> 1182 | H54: =VLOOKUP($F54,Poblacion!$E$8:$I$87,4,FALSE) -> 585.2673 | I54: =VLOOKUP($F54,Poblacion!$E$8:$I$87,5,FALSE) -> 596.7327 | K54: PACCHO | M54: PUESTO SALUD AYARANGA | N54: =VLOOKUP(M54,Poblacion!$E$5:$I$88,2,FALSE) -> 415 | O54: =VLOOKUP(M54,Poblacion!$E$5:$I$88,4,FALSE) -> 205.48725 | P54: =VLOOKUP(M54,Poblacion!$E$5:$I$88,5,FALSE) -> 209.51275
D55: TOTAL MICRORED SAYAN | G55: =SUM(G40:G54) -> 28349 | H55: =SUM(H40:H54) -> 14037.00735 | I55: 14311.99265 | K55: PACCHO | M55: PUESTO SALD MUZGA | N55: =VLOOKUP(M55,Poblacion!$E$5:$I$88,2,FALSE) -> 481 | O55: =VLOOKUP(M55,Poblacion!$E$5:$I$88,4,FALSE) -> 238.16715 | P55: =VLOOKUP(M55,Poblacion!$E$5:$I$88,5,FALSE) -> 242.83285
D56: =K33 -> Elaboración: Área de Estadística - RIS Huaura Oyón. | K56: S.LEONOR | L56: =SUM(N56:N58) -> 1501 | M56: CENTRO SALUD CHIUCHIN | N56: =VLOOKUP(M56,Poblacion!$E$5:$I$88,2,FALSE) -> 916 | O56: =VLOOKUP(M56,Poblacion!$E$5:$I$88,4,FALSE) -> 453.5574 | P56: =VLOOKUP(M56,Poblacion!$E$5:$I$88,5,FALSE) -> 462.4426
K57: S.LEONOR | M57: PUESTO SALUD PARQUIN | N57: =VLOOKUP(M57,Poblacion!$E$5:$I$88,2,FALSE) -> 421 | O57: =VLOOKUP(M57,Poblacion!$E$5:$I$88,4,FALSE) -> 208.45815 | P57: =VLOOKUP(M57,Poblacion!$E$5:$I$88,5,FALSE) -> 212.54185
K58: S.LEONOR | M58: PUESTO SALUD JUCUL | N58: =VLOOKUP(M58,Poblacion!$E$5:$I$88,2,FALSE) -> 164 | O58: =VLOOKUP(M58,Poblacion!$E$5:$I$88,4,FALSE) -> 81.2046 | P58: =VLOOKUP(M58,Poblacion!$E$5:$I$88,5,FALSE) -> 82.7954
K59: TOTAL MICRORED CHURIN - OYON | N59: =SUM(N40:N58) -> 26003 | O59: =SUM(O40:O58) -> 12875.38545 | P59: 13127.61455
K60: =K33 -> Elaboración: Área de Estadística - RIS Huaura Oyón.
